Workbook

Sheet Inhalt
B6: Leitfaden und Formular
B8: Planungshilfe zur
B9: Pfarrdienstordnung
B12: Vorbemerkungen
B14: Übersicht Pfarrpersonen und Pfarrstellenprozente
B16: Pfarramtliche Aufgaben- und Verantwortungsbereiche nach Handlungsfeldern (A&V)
B17: - Verkündigung und Gottesdienst (A&V_Verk.&GD)
B18: - Diakonie und Seelsorge (A&V_Diak.&Seels.)
B19: - Bildung und Spiritualität (A&V_Bild.&Spirit.)
B20: - Gemeindeaufbau und Leitung (A&V_Aufb.&Leit.)
B21: - Weitere Dienste (A&V_W.Dienste)
B23: Stellenbeschrieb Einzelperson
B25: Grafik Gesamtpensum
B34: Version: PDO_Planungshilfe_3.0_07.12.2020

Sheet Vorbemerkungen

Sheet Pfarrpersonen
H3: Anzahl Gemeinde-mitglieder | I3: Stellenprozente Gesamtgemeinde (2000 Gemeindemitglieder = 100% Stelle; ab 2000 Mitglieder jeweils 5 Stellenprozente zusätzlich pro 825 Mitglieder)
A4: Übersicht Pfarrpersonen und Pfarrstellenprozente | I4: =IF(H4>2000,H4/2000+(ROUNDUP(H4/825,0)*5/100),H4/2000) -> 0
A7: Kürzel | B7: Name | D7: Vorname | E7: AHV-Nummer | F7: Alter | G7: Beschäftigungsgrad in Stellenprozenten | H7: Zur Verfügung stehende Arbeitstage | I7: Status (Stellvertretung, Projektstelle, gemeindeeigene Stelle, etc.) | J7: In der KG seit | K7: Datum der Wahl
A8: Gesamtpensum | G8: =G23 -> 0 | H8: =H23 -> 0
A9: Delta | H9: =IF(F9>59,(($B$33-(5.5-0.75))*G9),$B$33*G9) -> 0
H10: =IF(F10>59,(($B$33-(5.5-0.75))*G10),$B$33*G10) -> 0
H11: 0
H12: 0
H13: 0
H14: 0
H15: 0
H16: 0
H17: 0
H18: 0
H19: 0
H20: 0
H21: 0
H22: 0
A23: Total | G23: =SUM(G10:G22) -> 0 | H23: =SUM(H10:H22) -> 0
A24: Berechnungsgrundlage 100%-Pensum: (Angaben dienen ausschliesslich zur Kalkulation. Es besteht keinerlei Anspruch auf den Bezug von vollen oder halben Tagen für die Erfüllung einzelner Aufgabenbereiche)
B25: 365 | C25: Kalendertage im Jahr
A26: ./. | B26: =1.5*52 -> 78 | C26: Wochenendtage (1.5 Tage * 52 Wochen)
B27: =B25-B26 -> 287 | C27: Bruttoarbeitstage
A28: ./. | B28: 33 | C28: Ferientage (6 x 5.5 Tage, ab dem 60. Altersjahr 7 Wochen)
A29: ./. | B29: 5 | C29: Weiterbildungstage (pro zwei Amtsjahre 10 Tage)
A30: ./. | B30: =(52-6)*0.25 -> 11.5 | C30: Arbeitstage für allgemeine Administrationsaufgaben (1/4 AT pro Netto-Jahresarbeitswoche)
A31: ./. | B31: =(52-6)*0.25 -> 11.5 | C31: Arbeitstage für Unvorhergesehenes (1/4 AT pro Netto-Jahresarbeitswoche)
A32: ./. | B32: =(52-6)*0.25 -> 11.5 | C32: Arbeitstage für theologische Existenz und Spiritualität (1/4 AT pro Natto-Jahresarbeitswoche)
A33: = | B33: =B27-B28-B29-B30-B31-B32 -> 214.5 | C33: Nettoarbeitstage
C53: Zeilenbeschriftungen
C54: abc | E54: abc
C55: cde
C56: def
C57: Delta
C58: Gesamtpensum
C59: xyz
C60: (Leer)
C61: Gesamtergebnis

Sheet A&V_Verk.&GD
C1: Pfarramtliche Aufgaben- und Verantwortungsbereiche im Handlungsfeld Verkündigung und Gottesdienst
C16: Pfarrpersonen | D16: =Pfarrpersonen!A8 -> Gesamtpensum
A17: =CONCATENATE($D$16,B17) -> GesamtpensumGD0 | B17: GD0 | C17: Arbeitsbereich Gottesdienst / Kasualien | D17: Anzahl Anlässe pro Jahr | G17: Zeitbedarf in AT pro zugeteilte Grösse | I17: Summe Zeitbedarf in AT | J17: Bemerkung (Hauptverantwortung, Planung, konzeptioneller Ansatz) | K17: Erklärungen zu den Berechnung / Kalkulations-Faktoren
D18: Ist | E18: Änderung | F18: Soll | G18: Ausgangs-wert | H18: eigener Faktor | I18: =SUM(I19:I32) -> 0
A19: =CONCATENATE($D$16,B19) -> GesamtpensumGD1 | B19: GD1 | C19: Predigtgottesdienste | F19: =D19+E19 -> 0 | G19: 1.2 | I19: =F19*IF(ISBLANK(H19),G19,H19) -> 0 | K19: Durchschnittlicher Aufwand 1.2 AT pro GD
A20: GesamtpensumGD2 | B20: GD2 | C20: Festtagsgottesdienste | F20: 0 | G20: 1.5 | I20: =F20*IF(ISBLANK(H20),G20,H20) -> 0 | K20: Durchschnittlicher Aufwand 1 .5 AT pro GD
A21: GesamtpensumGD3 | B21: GD3 | C21: Liturgische Feiern | F21: 0 | G21: 0.5 | I21: 0 | K21: Durchschnittlicher Aufwand 0.5 AT pro Feier
A22: GesamtpensumGD4 | B22: GD4 | C22: Abdankungen | F22: 0 | G22: 1.5 | I22: 0 | K22: Durchschnittlicher Aufwand 1.5 AT pro Abdankung
A23: GesamtpensumGD5 | B23: GD5 | C23: Beisetzung am Grab | F23: 0 | G23: 0.8 | I23: 0 | K23: Durchschnittlicher Aufwand 0.8 AT pro Stille Beisetzung
A24: GesamtpensumGD6 | B24: GD6 | C24: Taufen (im Gemeindegottesdienst) | F24: 0 | G24: 0.5 | I24: 0 | K24: Durchschnittlicher Aufwand 0.5 AT pro Taufe
A25: GesamtpensumGD7 | B25: GD7 | C25: Trauungen als eigene gottesdienstliche Feier | F25: 0 | G25: 1.5 | I25: 0 | K25: Durchschnittlicher Aufwand 2 AT pro Trauung
A26: GesamtpensumGD8 | B26: GD8 | C26: Taufen als eigene gottesdienstliche Feier | D26: 0 | F26: 0 | G26: 1 | I26: 0 | K26: Durchschnittlicher Aufwand 0.5 AT pro Heim-GD
A27: GesamtpensumGD9 | B27: GD9 | C27: Heim-Gottesdienste | D27: 0 | F27: 0 | I27: 0
A28: GesamtpensumGD10 | B28: GD10 | C28: Besondere und übrige Aufgaben | F28: 0 | I28: =F28*IF(ISBLANK(H28),G28,H28) -> 0
A29: GesamtpensumGD11 | B29: GD11 | C29: … | F29: 0 | I29: =F29*IF(ISBLANK(H29),G29,H29) -> 0
A30: GesamtpensumGD12 | B30: GD12 | C30: … | F30: 0 | I30: 0
A31: GesamtpensumGD13 | B31: GD13 | C31: … | F31: 0 | I31: 0
A32: GesamtpensumGD14 | B32: GD14 | C32: … | F32: 0 | I32: 0
C34: =Pfarrpersonen!A8 -> Gesamtpensum | D34: =Pfarrpersonen!A9 -> Delta
A35: =CONCATENATE($D$34,B35) -> DeltaGD0 | B35: =B17 -> GD0 | C35: =$C$17 -> Arbeitsbereich Gottesdienst / Kasualien | D35: =$D$17 -> Anzahl Anlässe pro Jahr | G35: =$G$17 -> Zeitbedarf in AT pro zugeteilte Grösse | I35: =$I$17 -> Summe Zeitbedarf in AT | J35: =$J$17 -> Bemerkung (Hauptverantwortung, Planung, konzeptioneller Ansatz) | K35: =$K$17 -> Erklärungen zu den Berechnung / Kalkulations-Faktoren
D36: =$D$18 -> Ist | E36: =$E$18 -> Änderung | F36: =$F$18 -> Soll | G36: =$G$18 -> Ausgangs-wert | H36: =$H$18 -> eigener Faktor
A37: =CONCATENATE($D$34,B37) -> DeltaGD1 | B37: =B19 -> GD1 | C37: =C$19 -> Predigtgottesdienste | F37: =D37+E37 -> 0 | G37: =G$19 -> 1.2 | I37: =I19-I55-I73-I91-I109-I127-I145-I163-I181 -> 0 | K37: =$K$19 -> Durchschnittlicher Aufwand 1.2 AT pro GD
A38: DeltaGD2 | B38: GD2 | C38: =C$20 -> Festtagsgottesdienste | F38: 0 | G38: =G$20 -> 1.5 | I38: =I20-I56-I74-I92-I110-I128-I146-I164-I182 -> 0 | K38: =$K$20 -> Durchschnittlicher Aufwand 1 .5 AT pro GD
A39: DeltaGD3 | B39: GD3 | C39: =C$21 -> Liturgische Feiern | F39: 0 | G39: =G$21 -> 0.5 | I39: 0 | K39: =$K$21 -> Durchschnittlicher Aufwand 0.5 AT pro Feier
A40: DeltaGD4 | B40: GD4 | C40: =C$22 -> Abdankungen | F40: 0 | G40: =G$22 -> 1.5 | I40: 0 | K40: =$K$22 -> Durchschnittlicher Aufwand 1.5 AT pro Abdankung
A41: DeltaGD5 | B41: GD5 | C41: =C$23 -> Beisetzung am Grab | F41: 0 | G41: =G$23 -> 0.8 | I41: 0 | K41: =$K$23 -> Durchschnittlicher Aufwand 0.8 AT pro Stille Beisetzung
A42: DeltaGD6 | B42: GD6 | C42: =C$24 -> Taufen (im Gemeindegottesdienst) | F42: 0 | G42: =G$24 -> 0.5 | I42: 0 | K42: =$K$24 -> Durchschnittlicher Aufwand 0.5 AT pro Taufe
A43: DeltaGD7 | B43: GD7 | C43: =C$25 -> Trauungen als eigene gottesdienstliche Feier | F43: 0 | G43: =G$25 -> 1.5 | I43: 0 | K43: =$K$25 -> Durchschnittlicher Aufwand 2 AT pro Trauung
A44: DeltaGD8 | B44: GD8 | C44: =C$26 -> Taufen als eigene gottesdienstliche Feier | F44: 0 | G44: =G$26 -> 1 | I44: 0 | K44: =$K$26 -> Durchschnittlicher Aufwand 0.5 AT pro Heim-GD
A45: DeltaGD9 | B45: GD9 | C45: =C$27 -> Heim-Gottesdienste | F45: 0 | G45: =G$27 -> 0 | I45: 0
A46: DeltaGD10 | B46: GD10 | C46: =C$28 -> Besondere und übrige Aufgaben | F46: 0 | G46: =G$28 -> 0 | I46: 0
A47: DeltaGD11 | B47: GD11 | C47: =C$29 -> … | F47: 0 | G47: =G$29 -> 0 | I47: 0
A48: DeltaGD12 | B48: GD12 | C48: =C$30 -> … | F48: 0 | G48: =G$30 -> 0 | I48: 0
A49: DeltaGD13 | B49: GD13 | C49: =C$31 -> … | F49: 0 | G49: =G$31 -> 0 | I49: 0
A50: DeltaGD14 | B50: GD14 | C50: =C$32 -> … | F50: 0 | G50: =G$32 -> 0 | I50: 0
C52: Pfarrperson
A53: =CONCATENATE($D$52,B53) -> GD0 | B53: =B35 -> GD0 | C53: =$C$17 -> Arbeitsbereich Gottesdienst / Kasualien | D53: =$D$17 -> Anzahl Anlässe pro Jahr | G53: =$G$17 -> Zeitbedarf in AT pro zugeteilte Grösse | I53: =$I$17 -> Summe Zeitbedarf in AT | J53: =$J$17 -> Bemerkung (Hauptverantwortung, Planung, konzeptioneller Ansatz) | K53: =$K$17 -> Erklärungen zu den Berechnung / Kalkulations-Faktoren
D54: =$D$18 -> Ist | E54: =$E$18 -> Änderung | F54: =$F$18 -> Soll | G54: =$G$18 -> Ausgangs-wert | H54: =$H$18 -> eigener Faktor
A55: GD1 | B55: =B37 -> GD1 | C55: =$C$19 -> Predigtgottesdienste | F55: =D55+E55 -> 0 | G55: =$G$19 -> 1.2 | I55: =F55*IF(ISBLANK(H55),G55,H55) -> 0 | K55: =$K$19 -> Durchschnittlicher Aufwand 1.2 AT pro GD
A56: GD2 | B56: GD2 | C56: =$C$20 -> Festtagsgottesdienste | F56: 0 | G56: =$G$20 -> 1.5 | I56: 0 | K56: =$K$20 -> Durchschnittlicher Aufwand 1 .5 AT pro GD
A57: GD3 | B57: GD3 | C57: =$C$21 -> Liturgische Feiern | F57: 0 | G57: =$G$21 -> 0.5 | I57: 0 | K57: =$K$21 -> Durchschnittlicher Aufwand 0.5 AT pro Feier
A58: GD4 | B58: GD4 | C58: =$C$22 -> Abdankungen | F58: 0 | G58: =$G$22 -> 1.5 | I58: 0 | K58: =$K$22 -> Durchschnittlicher Aufwand 1.5 AT pro Abdankung
A59: GD5 | B59: GD5 | C59: =$C$23 -> Beisetzung am Grab | F59: 0 | G59: =$G$23 -> 0.8 | I59: 0 | K59: =$K$23 -> Durchschnittlicher Aufwand 0.8 AT pro Stille Beisetzung
A60: GD6 | B60: GD6 | C60: =$C$24 -> Taufen (im Gemeindegottesdienst) | F60: 0 | G60: =$G$24 -> 0.5 | I60: 0 | K60: =$K$24 -> Durchschnittlicher Aufwand 0.5 AT pro Taufe
A61: GD7 | B61: GD7 | C61: =$C$25 -> Trauungen als eigene gottesdienstliche Feier | F61: 0 | G61: =$G$25 -> 1.5 | I61: 0 | K61: =$K$25 -> Durchschnittlicher Aufwand 2 AT pro Trauung
A62: GD8 | B62: GD8 | C62: =$C$26 -> Taufen als eigene gottesdienstliche Feier | F62: 0 | G62: =$G$26 -> 1 | I62: 0 | K62: =$K$26 -> Durchschnittlicher Aufwand 0.5 AT pro Heim-GD
A63: GD9 | B63: GD9 | C63: =$C$27 -> Heim-Gottesdienste | F63: 0 | G63: =$G$27 -> 0 | I63: 0
A64: GD10 | B64: GD10 | C64: =$C$28 -> Besondere und übrige Aufgaben | F64: 0 | G64: =$G$28 -> 0 | I64: 0
A65: GD11 | B65: GD11 | C65: =$C$29 -> … | F65: 0 | G65: =$G$29 -> 0 | I65: 0
A66: GD12 | B66: GD12 | C66: =$C$30 -> … | F66: 0 | G66: =$G$30 -> 0 | I66: 0
A67: GD13 | B67: GD13 | C67: =$C$31 -> … | F67: 0 | G67: =$G$31 -> 0 | I67: 0
A68: GD14 | B68: GD14 | C68: =$C$32 -> … | F68: 0 | G68: =$G$32 -> 0 | I68: 0
C70: Pfarrperson
A71: =CONCATENATE($D$70,B71) -> GD0 | B71: =B53 -> GD0 | C71: =$C$17 -> Arbeitsbereich Gottesdienst / Kasualien | D71: =$D$17 -> Anzahl Anlässe pro Jahr | G71: =$G$17 -> Zeitbedarf in AT pro zugeteilte Grösse | I71: =$I$17 -> Summe Zeitbedarf in AT | J71: =$J$17 -> Bemerkung (Hauptverantwortung, Planung, konzeptioneller Ansatz) | K71: =$K$17 -> Erklärungen zu den Berechnung / Kalkulations-Faktoren
D72: =$D$18 -> Ist | E72: =$E$18 -> Änderung | F72: =$F$18 -> Soll | G72: =$G$18 -> Ausgangs-wert | H72: =$H$18 -> eigener Faktor
A73: GD1 | B73: =B55 -> GD1 | C73: =C$19 -> Predigtgottesdienste | F73: =D73+E73 -> 0 | G73: =G$19 -> 1.2 | I73: =F73*IF(ISBLANK(H73),G73,H73) -> 0 | K73: =$K$19 -> Durchschnittlicher Aufwand 1.2 AT pro GD
A74: GD2 | B74: GD2 | C74: =C$20 -> Festtagsgottesdienste | F74: 0 | G74: =G$20 -> 1.5 | I74: =F74*IF(ISBLANK(H74),G74,H74) -> 0 | K74: =$K$20 -> Durchschnittlicher Aufwand 1 .5 AT pro GD
A75: GD3 | B75: GD3 | C75: =C$21 -> Liturgische Feiern | F75: 0 | G75: =G$21 -> 0.5 | I75: 0 | K75: =$K$21 -> Durchschnittlicher Aufwand 0.5 AT pro Feier
A76: GD4 | B76: GD4 | C76: =C$22 -> Abdankungen | F76: 0 | G76: =G$22 -> 1.5 | I76: 0 | K76: =$K$22 -> Durchschnittlicher Aufwand 1.5 AT pro Abdankung
A77: GD5 | B77: GD5 | C77: =C$23 -> Beisetzung am Grab | F77: 0 | G77: =G$23 -> 0.8 | I77: 0 | K77: =$K$23 -> Durchschnittlicher Aufwand 0.8 AT pro Stille Beisetzung
A78: GD6 | B78: GD6 | C78: =C$24 -> Taufen (im Gemeindegottesdienst) | F78: 0 | G78: =G$24 -> 0.5 | I78: 0 | K78: =$K$24 -> Durchschnittlicher Aufwand 0.5 AT pro Taufe
A79: GD7 | B79: GD7 | C79: =C$25 -> Trauungen als eigene gottesdienstliche Feier | F79: 0 | G79: =G$25 -> 1.5 | I79: 0 | K79: =$K$25 -> Durchschnittlicher Aufwand 2 AT pro Trauung
A80: GD8 | B80: GD8 | C80: =C$26 -> Taufen als eigene gottesdienstliche Feier | F80: 0 | G80: =G$26 -> 1 | I80: 0 | K80: =$K$26 -> Durchschnittlicher Aufwand 0.5 AT pro Heim-GD
A81: GD9 | B81: GD9 | C81: =C$27 -> Heim-Gottesdienste | F81: 0 | G81: =$G$27 -> 0 | I81: 0
A82: GD10 | B82: GD10 | C82: =C$28 -> Besondere und übrige Aufgaben | F82: 0 | G82: =$G$28 -> 0 | I82: 0
A83: GD11 | B83: GD11 | C83: =C$29 -> … | F83: 0 | G83: =$G$29 -> 0 | I83: 0
A84: GD12 | B84: GD12 | C84: =C$30 -> … | F84: 0 | G84: =$G$30 -> 0 | I84: 0
A85: GD13 | B85: GD13 | C85: =C$31 -> … | F85: 0 | G85: =$G$31 -> 0 | I85: 0
A86: GD14 | B86: GD14 | C86: =C$32 -> … | F86: 0 | G86: =$G$32 -> 0 | I86: 0
C88: Pfarrperson
A89: =CONCATENATE($D$88,B89) -> GD0 | B89: =B71 -> GD0 | C89: =$C$17 -> Arbeitsbereich Gottesdienst / Kasualien | D89: =$D$17 -> Anzahl Anlässe pro Jahr | G89: =$G$17 -> Zeitbedarf in AT pro zugeteilte Grösse | I89: =$I$17 -> Summe Zeitbedarf in AT | J89: =$J$17 -> Bemerkung (Hauptverantwortung, Planung, konzeptioneller Ansatz) | K89: =$K$17 -> Erklärungen zu den Berechnung / Kalkulations-Faktoren
D90: =$D$18 -> Ist | E90: =$E$18 -> Änderung | F90: =$F$18 -> Soll | G90: =$G$18 -> Ausgangs-wert | H90: =$H$18 -> eigener Faktor
A91: GD1 | B91: =B73 -> GD1 | C91: =C$19 -> Predigtgottesdienste | F91: =D91+E91 -> 0 | G91: =G$19 -> 1.2 | I91: =F91*IF(ISBLANK(H91),G91,H91) -> 0 | K91: =$K$19 -> Durchschnittlicher Aufwand 1.2 AT pro GD
A92: GD2 | B92: GD2 | C92: =C$20 -> Festtagsgottesdienste | F92: 0 | G92: =G$20 -> 1.5 | I92: =F92*IF(ISBLANK(H92),G92,H92) -> 0 | K92: =$K$20 -> Durchschnittlicher Aufwand 1 .5 AT pro GD
A93: GD3 | B93: GD3 | C93: =C$21 -> Liturgische Feiern | F93: 0 | G93: =G$21 -> 0.5 | I93: 0 | K93: =$K$21 -> Durchschnittlicher Aufwand 0.5 AT pro Feier
A94: GD4 | B94: GD4 | C94: =C$22 -> Abdankungen | F94: 0 | G94: =G$22 -> 1.5 | I94: 0 | K94: =$K$22 -> Durchschnittlicher Aufwand 1.5 AT pro Abdankung
A95: GD5 | B95: GD5 | C95: =C$23 -> Beisetzung am Grab | F95: 0 | G95: =G$23 -> 0.8 | I95: 0 | K95: =$K$23 -> Durchschnittlicher Aufwand 0.8 AT pro Stille Beisetzung
A96: GD6 | B96: GD6 | C96: =C$24 -> Taufen (im Gemeindegottesdienst) | F96: 0 | G96: =G$24 -> 0.5 | I96: 0 | K96: =$K$24 -> Durchschnittlicher Aufwand 0.5 AT pro Taufe
A97: GD7 | B97: GD7 | C97: =C$25 -> Trauungen als eigene gottesdienstliche Feier | F97: 0 | G97: =G$25 -> 1.5 | I97: 0 | K97: =$K$25 -> Durchschnittlicher Aufwand 2 AT pro Trauung
A98: GD8 | B98: GD8 | C98: =C$26 -> Taufen als eigene gottesdienstliche Feier | F98: 0 | G98: =G$26 -> 1 | I98: 0 | K98: =$K$26 -> Durchschnittlicher Aufwand 0.5 AT pro Heim-GD
A99: GD9 | B99: GD9 | C99: =C$27 -> Heim-Gottesdienste | F99: 0 | G99: =$G$27 -> 0 | I99: 0
A100: GD10 | B100: GD10 | C100: =C$28 -> Besondere und übrige Aufgaben | F100: 0 | G100: =$G$28 -> 0 | I100: 0
A101: GD11 | B101: GD11 | C101: =C$29 -> … | F101: 0 | G101: =$G$29 -> 0 | I101: 0
A102: GD12 | B102: GD12 | C102: =C$30 -> … | F102: 0 | G102: =$G$30 -> 0 | I102: 0
A103: GD13 | B103: GD13 | C103: =C$31 -> … | F103: 0 | G103: =$G$31 -> 0 | I103: 0
A104: GD14 | B104: GD14 | C104: =C$32 -> … | F104: 0 | G104: =$G$32 -> 0 | I104: 0
C106: Pfarrperson
A107: =CONCATENATE($D$106,B107) -> GD0 | B107: =B89 -> GD0 | C107: =$C$17 -> Arbeitsbereich Gottesdienst / Kasualien | D107: =$D$17 -> Anzahl Anlässe pro Jahr | G107: =$G$17 -> Zeitbedarf in AT pro zugeteilte Grösse | I107: =$I$17 -> Summe Zeitbedarf in AT | J107: =$J$17 -> Bemerkung (Hauptverantwortung, Planung, konzeptioneller Ansatz) | K107: =$K$17 -> Erklärungen zu den Berechnung / Kalkulations-Faktoren
D108: =$D$18 -> Ist | E108: =$E$18 -> Änderung | F108: =$F$18 -> Soll | G108: =$G$18 -> Ausgangs-wert | H108: =$H$18 -> eigener Faktor
A109: GD1 | B109: =B91 -> GD1 | C109: =C$19 -> Predigtgottesdienste | F109: =D109+E109 -> 0 | G109: =G$19 -> 1.2 | I109: =F109*IF(ISBLANK(H109),G109,H109) -> 0 | K109: =$K$19 -> Durchschnittlicher Aufwand 1.2 AT pro GD
A110: GD2 | B110: GD2 | C110: =C$20 -> Festtagsgottesdienste | F110: 0 | G110: =G$20 -> 1.5 | I110: =F110*IF(ISBLANK(H110),G110,H110) -> 0 | K110: =$K$20 -> Durchschnittlicher Aufwand 1 .5 AT pro GD
A111: GD3 | B111: GD3 | C111: =C$21 -> Liturgische Feiern | F111: 0 | G111: =G$21 -> 0.5 | I111: 0 | K111: =$K$21 -> Durchschnittlicher Aufwand 0.5 AT pro Feier
A112: GD4 | B112: GD4 | C112: =C$22 -> Abdankungen | F112: 0 | G112: =G$22 -> 1.5 | I112: 0 | K112: =$K$22 -> Durchschnittlicher Aufwand 1.5 AT pro Abdankung
A113: GD5 | B113: GD5 | C113: =C$23 -> Beisetzung am Grab | F113: 0 | G113: =G$23 -> 0.8 | I113: 0 | K113: =$K$23 -> Durchschnittlicher Aufwand 0.8 AT pro Stille Beisetzung
A114: GD6 | B114: GD6 | C114: =C$24 -> Taufen (im Gemeindegottesdienst) | F114: 0 | G114: =G$24 -> 0.5 | I114: 0 | K114: =$K$24 -> Durchschnittlicher Aufwand 0.5 AT pro Taufe
A115: GD7 | B115: GD7 | C115: =C$25 -> Trauungen als eigene gottesdienstliche Feier | F115: 0 | G115: =G$25 -> 1.5 | I115: 0 | K115: =$K$25 -> Durchschnittlicher Aufwand 2 AT pro Trauung
A116: GD8 | B116: GD8 | C116: =C$26 -> Taufen als eigene gottesdienstliche Feier | F116: 0 | G116: =G$26 -> 1 | I116: 0 | K116: =$K$26 -> Durchschnittlicher Aufwand 0.5 AT pro Heim-GD
A117: GD9 | B117: GD9 | C117: =C$27 -> Heim-Gottesdienste | F117: 0 | G117: =$G$27 -> 0 | I117: 0
A118: GD10 | B118: GD10 | C118: =C$28 -> Besondere und übrige Aufgaben | F118: 0 | G118: =$G$28 -> 0 | I118: 0
A119: GD11 | B119: GD11 | C119: =C$29 -> … | F119: 0 | G119: =$G$29 -> 0 | I119: 0
A120: GD12 | B120: GD12 | C120: =C$30 -> … | F120: 0 | G120: =$G$30 -> 0 | I120: 0
A121: GD13 | B121: GD13 | C121: =C$31 -> … | F121: 0 | G121: =$G$31 -> 0 | I121: 0
A122: GD14 | B122: GD14 | C122: =C$32 -> … | F122: 0 | G122: =$G$32 -> 0 | I122: 0
C124: Pfarrperson
A125: =CONCATENATE($D$124,B125) -> GD0 | B125: =B107 -> GD0 | C125: =$C$17 -> Arbeitsbereich Gottesdienst / Kasualien | D125: =$D$17 -> Anzahl Anlässe pro Jahr | G125: =$G$17 -> Zeitbedarf in AT pro zugeteilte Grösse | I125: =$I$17 -> Summe Zeitbedarf in AT | J125: =$J$17 -> Bemerkung (Hauptverantwortung, Planung, konzeptioneller Ansatz) | K125: =$K$17 -> Erklärungen zu den Berechnung / Kalkulations-Faktoren
D126: =$D$18 -> Ist | E126: =$E$18 -> Änderung | F126: =$F$18 -> Soll | G126: =$G$18 -> Ausgangs-wert | H126: =$H$18 -> eigener Faktor
A127: GD1 | B127: =B109 -> GD1 | C127: =C$19 -> Predigtgottesdienste | F127: =D127+E127 -> 0 | G127: =G$19 -> 1.2 | I127: =F127*IF(ISBLANK(H127),G127,H127) -> 0 | K127: =$K$19 -> Durchschnittlicher Aufwand 1.2 AT pro GD
A128: GD2 | B128: GD2 | C128: =C$20 -> Festtagsgottesdienste | F128: 0 | G128: =G$20 -> 1.5 | I128: =F128*IF(ISBLANK(H128),G128,H128) -> 0 | K128: =$K$20 -> Durchschnittlicher Aufwand 1 .5 AT pro GD
A129: GD3 | B129: GD3 | C129: =C$21 -> Liturgische Feiern | F129: 0 | G129: =G$21 -> 0.5 | I129: 0 | K129: =$K$21 -> Durchschnittlicher Aufwand 0.5 AT pro Feier
A130: GD4 | B130: GD4 | C130: =C$22 -> Abdankungen | F130: 0 | G130: =G$22 -> 1.5 | I130: 0 | K130: =$K$22 -> Durchschnittlicher Aufwand 1.5 AT pro Abdankung
A131: GD5 | B131: GD5 | C131: =C$23 -> Beisetzung am Grab | F131: 0 | G131: =G$23 -> 0.8 | I131: 0 | K131: =$K$23 -> Durchschnittlicher Aufwand 0.8 AT pro Stille Beisetzung
A132: GD6 | B132: GD6 | C132: =C$24 -> Taufen (im Gemeindegottesdienst) | F132: 0 | G132: =G$24 -> 0.5 | I132: 0 | K132: =$K$24 -> Durchschnittlicher Aufwand 0.5 AT pro Taufe
A133: GD7 | B133: GD7 | C133: =C$25 -> Trauungen als eigene gottesdienstliche Feier | F133: 0 | G133: =G$25 -> 1.5 | I133: 0 | K133: =$K$25 -> Durchschnittlicher Aufwand 2 AT pro Trauung
A134: GD8 | B134: GD8 | C134: =C$26 -> Taufen als eigene gottesdienstliche Feier | F134: 0 | G134: =G$26 -> 1 | I134: 0 | K134: =$K$26 -> Durchschnittlicher Aufwand 0.5 AT pro Heim-GD
A135: GD9 | B135: GD9 | C135: =C$27 -> Heim-Gottesdienste | F135: 0 | G135: =$G$27 -> 0 | I135: 0
A136: GD10 | B136: GD10 | C136: =C$28 -> Besondere und übrige Aufgaben | F136: 0 | G136: =$G$28 -> 0 | I136: 0
A137: GD11 | B137: GD11 | C137: =C$29 -> … | F137: 0 | G137: =$G$29 -> 0 | I137: 0
A138: GD12 | B138: GD12 | C138: =C$30 -> … | F138: 0 | G138: =$G$30 -> 0 | I138: 0
A139: GD13 | B139: GD13 | C139: =C$31 -> … | F139: 0 | G139: =$G$31 -> 0 | I139: 0
A140: GD14 | B140: GD14 | C140: =C$32 -> … | F140: 0 | G140: =$G$32 -> 0 | I140: 0
C142: Pfarrperson
A143: =CONCATENATE($D$142,B143) -> GD0 | B143: =B125 -> GD0 | C143: =$C$17 -> Arbeitsbereich Gottesdienst / Kasualien | D143: =$D$17 -> Anzahl Anlässe pro Jahr | G143: =$G$17 -> Zeitbedarf in AT pro zugeteilte Grösse | I143: =$I$17 -> Summe Zeitbedarf in AT | J143: =$J$17 -> Bemerkung (Hauptverantwortung, Planung, konzeptioneller Ansatz) | K143: =$K$17 -> Erklärungen zu den Berechnung / Kalkulations-Faktoren
D144: =$D$18 -> Ist | E144: =$E$18 -> Änderung | F144: =$F$18 -> Soll | G144: =$G$18 -> Ausgangs-wert | H144: =$H$18 -> eigener Faktor
A145: GD1 | B145: =B127 -> GD1 | C145: =C$19 -> Predigtgottesdienste | F145: =D145+E145 -> 0 | G145: =G$19 -> 1.2 | I145: =F145*IF(ISBLANK(H145),G145,H145) -> 0 | K145: =$K$19 -> Durchschnittlicher Aufwand 1.2 AT pro GD
A146: GD2 | B146: GD2 | C146: =C$20 -> Festtagsgottesdienste | F146: 0 | G146: =G$20 -> 1.5 | I146: =F146*IF(ISBLANK(H146),G146,H146) -> 0 | K146: =$K$20 -> Durchschnittlicher Aufwand 1 .5 AT pro GD
A147: GD3 | B147: GD3 | C147: =C$21 -> Liturgische Feiern | F147: 0 | G147: =G$21 -> 0.5 | I147: 0 | K147: =$K$21 -> Durchschnittlicher Aufwand 0.5 AT pro Feier
A148: GD4 | B148: GD4 | C148: =C$22 -> Abdankungen | F148: 0 | G148: =G$22 -> 1.5 | I148: 0 | K148: =$K$22 -> Durchschnittlicher Aufwand 1.5 AT pro Abdankung
A149: GD5 | B149: GD5 | C149: =C$23 -> Beisetzung am Grab | F149: 0 | G149: =G$23 -> 0.8 | I149: 0 | K149: =$K$23 -> Durchschnittlicher Aufwand 0.8 AT pro Stille Beisetzung
A150: GD6 | B150: GD6 | C150: =C$24 -> Taufen (im Gemeindegottesdienst) | F150: 0 | G150: =G$24 -> 0.5 | I150: 0 | K150: =$K$24 -> Durchschnittlicher Aufwand 0.5 AT pro Taufe
A151: GD7 | B151: GD7 | C151: =C$25 -> Trauungen als eigene gottesdienstliche Feier | F151: 0 | G151: =G$25 -> 1.5 | I151: 0 | K151: =$K$25 -> Durchschnittlicher Aufwand 2 AT pro Trauung
A152: GD8 | B152: GD8 | C152: =C$26 -> Taufen als eigene gottesdienstliche Feier | F152: 0 | G152: =G$26 -> 1 | I152: 0 | K152: =$K$26 -> Durchschnittlicher Aufwand 0.5 AT pro Heim-GD
A153: GD9 | B153: GD9 | C153: =C$27 -> Heim-Gottesdienste | F153: 0 | G153: =$G$27 -> 0 | I153: 0
A154: GD10 | B154: GD10 | C154: =C$28 -> Besondere und übrige Aufgaben | F154: 0 | G154: =$G$28 -> 0 | I154: 0
A155: GD11 | B155: GD11 | C155: =C$29 -> … | F155: 0 | G155: =$G$29 -> 0 | I155: 0
A156: GD12 | B156: GD12 | C156: =C$30 -> … | F156: 0 | G156: =$G$30 -> 0 | I156: 0
A157: GD13 | B157: GD13 | C157: =C$31 -> … | F157: 0 | G157: =$G$31 -> 0 | I157: 0
A158: GD14 | B158: GD14 | C158: =C$32 -> … | F158: 0 | G158: =$G$32 -> 0 | I158: 0
C160: Pfarrperson
A161: =CONCATENATE($D$160,B161) -> GD0 | B161: =B143 -> GD0 | C161: =$C$17 -> Arbeitsbereich Gottesdienst / Kasualien | D161: =$D$17 -> Anzahl Anlässe pro Jahr | G161: =$G$17 -> Zeitbedarf in AT pro zugeteilte Grösse | I161: =$I$17 -> Summe Zeitbedarf in AT | J161: =$J$17 -> Bemerkung (Hauptverantwortung, Planung, konzeptioneller Ansatz) | K161: =$K$17 -> Erklärungen zu den Berechnung / Kalkulations-Faktoren
D162: =$D$18 -> Ist | E162: =$E$18 -> Änderung | F162: =$F$18 -> Soll | G162: =$G$18 -> Ausgangs-wert | H162: =$H$18 -> eigener Faktor
A163: GD1 | B163: =B145 -> GD1 | C163: =C$19 -> Predigtgottesdienste | F163: =D163+E163 -> 0 | G163: =G$19 -> 1.2 | I163: =F163*IF(ISBLANK(H163),G163,H163) -> 0 | K163: =$K$19 -> Durchschnittlicher Aufwand 1.2 AT pro GD
A164: GD2 | B164: GD2 | C164: =C$20 -> Festtagsgottesdienste | F164: 0 | G164: =G$20 -> 1.5 | I164: =F164*IF(ISBLANK(H164),G164,H164) -> 0 | K164: =$K$20 -> Durchschnittlicher Aufwand 1 .5 AT pro GD
A165: GD3 | B165: GD3 | C165: =C$21 -> Liturgische Feiern | F165: 0 | G165: =G$21 -> 0.5 | I165: 0 | K165: =$K$21 -> Durchschnittlicher Aufwand 0.5 AT pro Feier
A166: GD4 | B166: GD4 | C166: =C$22 -> Abdankungen | F166: 0 | G166: =G$22 -> 1.5 | I166: 0 | K166: =$K$22 -> Durchschnittlicher Aufwand 1.5 AT pro Abdankung
A167: GD5 | B167: GD5 | C167: =C$23 -> Beisetzung am Grab | F167: 0 | G167: =G$23 -> 0.8 | I167: 0 | K167: =$K$23 -> Durchschnittlicher Aufwand 0.8 AT pro Stille Beisetzung
A168: GD6 | B168: GD6 | C168: =C$24 -> Taufen (im Gemeindegottesdienst) | F168: 0 | G168: =G$24 -> 0.5 | I168: 0 | K168: =$K$24 -> Durchschnittlicher Aufwand 0.5 AT pro Taufe
A169: GD7 | B169: GD7 | C169: =C$25 -> Trauungen als eigene gottesdienstliche Feier | F169: 0 | G169: =G$25 -> 1.5 | I169: 0 | K169: =$K$25 -> Durchschnittlicher Aufwand 2 AT pro Trauung
A170: GD8 | B170: GD8 | C170: =C$26 -> Taufen als eigene gottesdienstliche Feier | F170: 0 | G170: =G$26 -> 1 | I170: 0 | K170: =$K$26 -> Durchschnittlicher Aufwand 0.5 AT pro Heim-GD
A171: GD9 | B171: GD9 | C171: =C$27 -> Heim-Gottesdienste | F171: 0 | G171: =G$27 -> 0 | I171: 0
A172: GD10 | B172: GD10 | C172: =C$28 -> Besondere und übrige Aufgaben | F172: 0 | G172: =G$28 -> 0 | I172: 0
A173: GD11 | B173: GD11 | C173: =C$29 -> … | F173: 0 | G173: =G$29 -> 0 | I173: 0
A174: GD12 | B174: GD12 | C174: =C$30 -> … | F174: 0 | G174: =G$30 -> 0 | I174: 0
A175: GD13 | B175: GD13 | C175: =C$31 -> … | F175: 0 | G175: =G$31 -> 0 | I175: 0
A176: GD14 | B176: GD14 | C176: =C$32 -> … | F176: 0 | G176: =G$32 -> 0 | I176: 0
C178: Pfarrperson
A179: =CONCATENATE($D$178,B179) -> GD0 | B179: =B161 -> GD0 | C179: =$C$17 -> Arbeitsbereich Gottesdienst / Kasualien | D179: =$D$17 -> Anzahl Anlässe pro Jahr | G179: =$G$17 -> Zeitbedarf in AT pro zugeteilte Grösse | I179: =$I$17 -> Summe Zeitbedarf in AT | J179: =$J$17 -> Bemerkung (Hauptverantwortung, Planung, konzeptioneller Ansatz) | K179: =$K$17 -> Erklärungen zu den Berechnung / Kalkulations-Faktoren
D180: =$D$18 -> Ist | E180: =$E$18 -> Änderung | F180: =$F$18 -> Soll | G180: =$G$18 -> Ausgangs-wert | H180: =$H$18 -> eigener Faktor
A181: GD1 | B181: =B163 -> GD1 | C181: =C$19 -> Predigtgottesdienste | F181: =D181+E181 -> 0 | G181: =G$19 -> 1.2 | I181: =F181*IF(ISBLANK(H181),G181,H181) -> 0 | K181: =$K$19 -> Durchschnittlicher Aufwand 1.2 AT pro GD
A182: GD2 | B182: GD2 | C182: =C$20 -> Festtagsgottesdienste | F182: 0 | G182: =G$20 -> 1.5 | I182: =F182*IF(ISBLANK(H182),G182,H182) -> 0 | K182: =$K$20 -> Durchschnittlicher Aufwand 1 .5 AT pro GD
A183: GD3 | B183: GD3 | C183: =C$21 -> Liturgische Feiern | F183: 0 | G183: =G$21 -> 0.5 | I183: 0 | K183: =$K$21 -> Durchschnittlicher Aufwand 0.5 AT pro Feier
A184: GD4 | B184: GD4 | C184: =C$22 -> Abdankungen | F184: 0 | G184: =G$22 -> 1.5 | I184: 0 | K184: =$K$22 -> Durchschnittlicher Aufwand 1.5 AT pro Abdankung
A185: GD5 | B185: GD5 | C185: =C$23 -> Beisetzung am Grab | F185: 0 | G185: =G$23 -> 0.8 | I185: 0 | K185: =$K$23 -> Durchschnittlicher Aufwand 0.8 AT pro Stille Beisetzung
A186: GD6 | B186: GD6 | C186: =C$24 -> Taufen (im Gemeindegottesdienst) | F186: 0 | G186: =G$24 -> 0.5 | I186: 0 | K186: =$K$24 -> Durchschnittlicher Aufwand 0.5 AT pro Taufe
A187: GD7 | B187: GD7 | C187: =C$25 -> Trauungen als eigene gottesdienstliche Feier | F187: 0 | G187: =G$25 -> 1.5 | I187: 0 | K187: =$K$25 -> Durchschnittlicher Aufwand 2 AT pro Trauung
A188: GD8 | B188: GD8 | C188: =C$26 -> Taufen als eigene gottesdienstliche Feier | F188: 0 | G188: =G$26 -> 1 | I188: 0 | K188: =$K$26 -> Durchschnittlicher Aufwand 0.5 AT pro Heim-GD
A189: GD9 | B189: GD9 | C189: =C$27 -> Heim-Gottesdienste | F189: 0 | G189: =$G$27 -> 0 | I189: 0
A190: GD10 | B190: GD10 | C190: =C$28 -> Besondere und übrige Aufgaben | F190: 0 | G190: =$G$28 -> 0 | I190: 0
A191: GD11 | B191: GD11 | C191: =C$29 -> … | F191: 0 | G191: =$G$29 -> 0 | I191: 0
A192: GD12 | B192: GD12 | C192: =C$30 -> … | F192: 0 | G192: =$G$30 -> 0 | I192: 0
A193: GD13 | B193: GD13 | C193: =C$31 -> … | F193: 0 | G193: =$G$31 -> 0 | I193: 0
A194: GD14 | B194: GD14 | C194: =C$32 -> … | F194: 0 | G194: =$G$32 -> 0 | I194: 0

Sheet A&V_Diak.&Seels.
C1: Pfarramtliche Aufgaben- und Verantwortungsbereiche im Handlungsfeld Diakonie und Seelsorge
C15: Seelsorge
C16: Pfarrpersonen | D16: =Pfarrpersonen!A8 -> Gesamtpensum
A17: =CONCATENATE($D$16,B17) -> GesamtpensumSEE0 | B17: SEE0 | C17: Arbeitsbereich Seelsorge | D17: Anzahl Anlässe pro Jahr | G17: Zeitbedarf in AT pro zugeteilte Grösse | I17: Summe Zeitbedarf in AT | J17: Bemerkung (Hauptverantwortung, Planung, konzeptioneller Ansatz) | K17: Erklärungen zu den Berechnung / Kalkulations-Faktoren
D18: Ist | E18: Änderung | F18: Soll | G18: Ausgangs-wert | H18: eigener Faktor | I18: =SUM(I19:I28) -> 0
A19: =CONCATENATE($D$16,B19) -> GesamtpensumSEE1 | B19: SEE1 | C19: Seelsorge in der Gemeinde (Anzahl zugewandte Mitglieder) | F19: =D19+E19 -> 0 | G19: =0.1/8.73 -> 0.01145475372 | I19: =F19*IF(ISBLANK(H19),G19,H19) -> 0 | K19: Eingabe: Anzahl zugewandter Gemeindemitglieder, Faktor: durchschn. 0.01 AT pro Mitglied pro Jahr bzw. 0.5AT pro Woche in einem 100% Pensum
A20: GesamtpensumSEE2 | B20: SEE2 | C20: Betreuung von Gruppen (AZ Gruppen) | F20: 0 | G20: 1 | I20: 0 | K20: Eingabe: Anzahl Gruppen, Faktor: 1 AT pro Gruppe pro Jahr
A21: GesamtpensumSEE3 | B21: SEE3 | C21: Besuche an Institutionen | F21: 0 | G21: =1/8.73 -> 0.1145475372 | I21: =F21*IF(ISBLANK(H21),G21,H21) -> 0 | K21: Eingabe: Anzahl Stunden für Besuche por Jahr
A22: GesamtpensumSEE4 | B22: SEE4 | C22: Notfallseelsorge | F22: 0 | I22: 0
A23: GesamtpensumSEE5 | B23: SEE5 | C23: Besondere und übrige Aufgaben | F23: 0 | I23: 0
A24: GesamtpensumSEE6 | B24: SEE6 | C24: … | F24: 0 | I24: 0
A25: GesamtpensumSEE7 | B25: SEE7 | C25: … | F25: 0 | I25: =F25*IF(ISBLANK(H25),G25,H25) -> 0
A26: GesamtpensumSEE8 | B26: SEE8 | C26: … | F26: 0 | I26: =F26*IF(ISBLANK(H26),G26,H26) -> 0
A27: GesamtpensumSEE9 | B27: SEE9 | C27: … | F27: =D27+E27 -> 0 | I27: 0
A28: GesamtpensumSEE10 | B28: SEE10 | C28: … | F28: 0 | I28: 0
C30: =Pfarrpersonen!A8 -> Gesamtpensum | D30: =Pfarrpersonen!A9 -> Delta
A31: =CONCATENATE($D$30,B31) -> DeltaSEE0 | B31: =B17 -> SEE0 | C31: =$C$17 -> Arbeitsbereich Seelsorge | D31: =$D$17 -> Anzahl Anlässe pro Jahr | G31: =$G$17 -> Zeitbedarf in AT pro zugeteilte Grösse | I31: =$I$17 -> Summe Zeitbedarf in AT | J31: =$J$17 -> Bemerkung (Hauptverantwortung, Planung, konzeptioneller Ansatz) | K31: =$K$17 -> Erklärungen zu den Berechnung / Kalkulations-Faktoren
B32: 0 | D32: =$D$18 -> Ist | E32: =$E$18 -> Änderung | F32: =$F$18 -> Soll | G32: =$G$18 -> Ausgangs-wert | H32: =$H$18 -> eigener Faktor | K32: =$K$18 -> 0
A33: =CONCATENATE($D$30,B33) -> DeltaSEE1 | B33: SEE1 | C33: =C$19 -> Seelsorge in der Gemeinde (Anzahl zugewandte Mitglieder) | F33: =D33+E33 -> 0 | G33: =G$19 -> 0.01145475372 | I33: =+I19-I47-I61-I75-I89-I103-I117-I131-I145 -> 0 | K33: =$K$19 -> Eingabe: Anzahl zugewandter Gemeindemitglieder, Faktor: durchschn. 0.01 AT pro Mitglied pro Jahr bzw. 0.5AT pro Woche in einem 100% Pensum
A34: DeltaSEE2 | B34: SEE2 | C34: =C$20 -> Betreuung von Gruppen (AZ Gruppen) | F34: 0 | G34: =G$20 -> 1 | I34: =+I20-I48-I62-I76-I90-I104-I118-I132-I146 -> 0 | K34: =$K$20 -> Eingabe: Anzahl Gruppen, Faktor: 1 AT pro Gruppe pro Jahr
A35: DeltaSEE3 | B35: SEE3 | C35: =C$21 -> Besuche an Institutionen | F35: 0 | G35: =G$21 -> 0.1145475372 | I35: 0 | K35: =$K$21 -> Eingabe: Anzahl Stunden für Besuche por Jahr
A36: DeltaSEE4 | B36: SEE4 | C36: =C$22 -> Notfallseelsorge | F36: 0 | G36: =G$22 -> 0 | I36: 0 | K36: =$K$22 -> 0
A37: DeltaSEE5 | B37: SEE5 | C37: =C$23 -> Besondere und übrige Aufgaben | F37: 0 | G37: =G$23 -> 0 | I37: 0 | K37: =$K$23 -> 0
A38: DeltaSEE6 | B38: SEE6 | C38: =C$24 -> … | F38: 0 | G38: =G$24 -> 0 | I38: 0 | K38: =$K$23 -> 0
A39: DeltaSEE7 | B39: SEE7 | C39: =C$25 -> … | F39: 0 | G39: =G$25 -> 0 | I39: 0 | K39: =$K$28 -> 0
A40: DeltaSEE8 | B40: SEE8 | C40: =C$26 -> … | F40: 0 | G40: =G$26 -> 0 | I40: 0 | K40: =$K$23 -> 0
A41: DeltaSEE9 | B41: SEE9 | C41: =C$27 -> … | F41: =D41+E41 -> 0 | G41: =G$27 -> 0 | I41: 0 | K41: =$K$28 -> 0
A42: DeltaSEE10 | B42: SEE10 | C42: =C$28 -> … | F42: 0 | G42: =G$28 -> 0 | I42: 0 | K42: =$K$28 -> 0
C44: Pfarrperson
A45: =CONCATENATE($D$44,B45) -> SEE0 | B45: =B31 -> SEE0 | C45: =$C$17 -> Arbeitsbereich Seelsorge | D45: =$D$17 -> Anzahl Anlässe pro Jahr | G45: =$G$17 -> Zeitbedarf in AT pro zugeteilte Grösse | I45: =$I$17 -> Summe Zeitbedarf in AT | J45: =$J$17 -> Bemerkung (Hauptverantwortung, Planung, konzeptioneller Ansatz) | K45: =$K$17 -> Erklärungen zu den Berechnung / Kalkulations-Faktoren
A46: 0 | B46: 0 | D46: =$D$18 -> Ist | E46: =$E$18 -> Änderung | F46: =$F$18 -> Soll | G46: =$G$18 -> Ausgangs-wert | H46: =$H$18 -> eigener Faktor | K46: =$K$18 -> 0
A47: SEE1 | B47: SEE1 | C47: =C$19 -> Seelsorge in der Gemeinde (Anzahl zugewandte Mitglieder) | F47: =D47+E47 -> 0 | G47: =G$19 -> 0.01145475372 | I47: =F47*IF(ISBLANK(H47),G47,H47) -> 0 | K47: =$K$19 -> Eingabe: Anzahl zugewandter Gemeindemitglieder, Faktor: durchschn. 0.01 AT pro Mitglied pro Jahr bzw. 0.5AT pro Woche in einem 100% Pensum
A48: SEE2 | B48: SEE2 | C48: =C$20 -> Betreuung von Gruppen (AZ Gruppen) | F48: 0 | G48: =G$20 -> 1 | I48: 0 | K48: =$K$20 -> Eingabe: Anzahl Gruppen, Faktor: 1 AT pro Gruppe pro Jahr
A49: SEE3 | B49: SEE3 | C49: =C$21 -> Besuche an Institutionen | F49: 0 | G49: =G$21 -> 0.1145475372 | I49: 0 | K49: =$K$21 -> Eingabe: Anzahl Stunden für Besuche por Jahr
A50: SEE4 | B50: SEE4 | C50: =C$22 -> Notfallseelsorge | F50: 0 | G50: =G$22 -> 0 | I50: 0 | K50: =$K$22 -> 0
A51: SEE5 | B51: SEE5 | C51: =C$23 -> Besondere und übrige Aufgaben | F51: 0 | G51: =G$23 -> 0 | I51: 0 | K51: =$K$23 -> 0
A52: SEE6 | B52: SEE6 | C52: =C$24 -> … | F52: 0 | G52: =G$24 -> 0 | I52: 0 | K52: =$K$23 -> 0
A53: SEE7 | B53: SEE7 | C53: =C$25 -> … | F53: 0 | G53: =G$25 -> 0 | I53: 0 | K53: =$K$23 -> 0
A54: SEE8 | B54: SEE8 | C54: =C$26 -> … | F54: =D54+E54 -> 0 | G54: =G$26 -> 0 | I54: =F54*IF(ISBLANK(H54),G54,H54) -> 0 | K54: =$K$23 -> 0
A55: SEE9 | B55: SEE9 | C55: =C$27 -> … | F55: 0 | G55: =G$27 -> 0 | I55: 0 | K55: =$K$23 -> 0
A56: SEE10 | B56: SEE10 | C56: =C$28 -> … | F56: 0 | G56: =G$28 -> 0 | I56: 0 | K56: =$K$28 -> 0
C58: Pfarrperson
A59: =CONCATENATE($D$58,B59) -> SEE0 | B59: =B45 -> SEE0 | C59: =$C$17 -> Arbeitsbereich Seelsorge | D59: =$D$17 -> Anzahl Anlässe pro Jahr | G59: =$G$17 -> Zeitbedarf in AT pro zugeteilte Grösse | I59: =$I$17 -> Summe Zeitbedarf in AT | J59: =$J$17 -> Bemerkung (Hauptverantwortung, Planung, konzeptioneller Ansatz) | K59: =$K$17 -> Erklärungen zu den Berechnung / Kalkulations-Faktoren
A60: 0 | B60: 0 | D60: =$D$18 -> Ist | E60: =$E$18 -> Änderung | F60: =$F$18 -> Soll | G60: =$G$18 -> Ausgangs-wert | H60: =$H$18 -> eigener Faktor | K60: =$K$18 -> 0
A61: SEE1 | B61: SEE1 | C61: =C$19 -> Seelsorge in der Gemeinde (Anzahl zugewandte Mitglieder) | F61: =D61+E61 -> 0 | G61: =G$19 -> 0.01145475372 | I61: =F61*IF(ISBLANK(H61),G61,H61) -> 0 | K61: =$K$19 -> Eingabe: Anzahl zugewandter Gemeindemitglieder, Faktor: durchschn. 0.01 AT pro Mitglied pro Jahr bzw. 0.5AT pro Woche in einem 100% Pensum
A62: SEE2 | B62: SEE2 | C62: =C$20 -> Betreuung von Gruppen (AZ Gruppen) | F62: 0 | G62: =G$20 -> 1 | I62: 0 | K62: =$K$20 -> Eingabe: Anzahl Gruppen, Faktor: 1 AT pro Gruppe pro Jahr
A63: SEE3 | B63: SEE3 | C63: =C$21 -> Besuche an Institutionen | F63: 0 | G63: =G$21 -> 0.1145475372 | I63: 0 | K63: =$K$21 -> Eingabe: Anzahl Stunden für Besuche por Jahr
A64: SEE4 | B64: SEE4 | C64: =C$22 -> Notfallseelsorge | F64: 0 | G64: =G$22 -> 0 | I64: 0 | K64: =$K$22 -> 0
A65: SEE5 | B65: SEE5 | C65: =C$23 -> Besondere und übrige Aufgaben | F65: 0 | G65: =G$23 -> 0 | I65: 0 | K65: =$K$23 -> 0
A66: SEE6 | B66: SEE6 | C66: =C$24 -> … | F66: 0 | G66: =G$24 -> 0 | I66: 0 | K66: =$K$23 -> 0
A67: SEE7 | B67: SEE7 | C67: =C$25 -> … | F67: 0 | G67: =G$25 -> 0 | I67: 0 | K67: =$K$23 -> 0
A68: SEE8 | B68: SEE8 | C68: =C$26 -> … | F68: 0 | G68: =G$26 -> 0 | I68: 0 | K68: =$K$23 -> 0
A69: SEE9 | B69: SEE9 | C69: =C$27 -> … | F69: =D69+E69 -> 0 | G69: =G$27 -> 0 | I69: =F69*IF(ISBLANK(H69),G69,H69) -> 0 | K69: =$K$28 -> 0
A70: SEE10 | B70: SEE10 | C70: =C$28 -> … | F70: 0 | G70: =G$28 -> 0 | I70: 0 | K70: =$K$28 -> 0
C72: Pfarrperson
A73: =CONCATENATE($D$72,B73) -> SEE0 | B73: =B59 -> SEE0 | C73: =$C$17 -> Arbeitsbereich Seelsorge | D73: =$D$17 -> Anzahl Anlässe pro Jahr | G73: =$G$17 -> Zeitbedarf in AT pro zugeteilte Grösse | I73: =$I$17 -> Summe Zeitbedarf in AT | J73: =$J$17 -> Bemerkung (Hauptverantwortung, Planung, konzeptioneller Ansatz) | K73: =$K$17 -> Erklärungen zu den Berechnung / Kalkulations-Faktoren
A74: 0 | B74: 0 | D74: =$D$18 -> Ist | E74: =$E$18 -> Änderung | F74: =$F$18 -> Soll | G74: =$G$18 -> Ausgangs-wert | H74: =$H$18 -> eigener Faktor | K74: =$K$18 -> 0
A75: SEE1 | B75: SEE1 | C75: =C$19 -> Seelsorge in der Gemeinde (Anzahl zugewandte Mitglieder) | F75: =D75+E75 -> 0 | G75: =G$19 -> 0.01145475372 | I75: =F75*IF(ISBLANK(H75),G75,H75) -> 0 | K75: =$K$19 -> Eingabe: Anzahl zugewandter Gemeindemitglieder, Faktor: durchschn. 0.01 AT pro Mitglied pro Jahr bzw. 0.5AT pro Woche in einem 100% Pensum
A76: SEE2 | B76: SEE2 | C76: =C$20 -> Betreuung von Gruppen (AZ Gruppen) | F76: 0 | G76: =G$20 -> 1 | I76: 0 | K76: =$K$20 -> Eingabe: Anzahl Gruppen, Faktor: 1 AT pro Gruppe pro Jahr
A77: SEE3 | B77: SEE3 | C77: =C$21 -> Besuche an Institutionen | F77: 0 | G77: =G$21 -> 0.1145475372 | I77: 0 | K77: =$K$21 -> Eingabe: Anzahl Stunden für Besuche por Jahr
A78: SEE4 | B78: SEE4 | C78: =C$22 -> Notfallseelsorge | F78: 0 | G78: =G$22 -> 0 | I78: 0 | K78: =$K$22 -> 0
A79: SEE5 | B79: SEE5 | C79: =C$23 -> Besondere und übrige Aufgaben | F79: 0 | G79: =G$23 -> 0 | I79: 0 | K79: =$K$23 -> 0
A80: SEE6 | B80: SEE6 | C80: =C$24 -> … | F80: 0 | G80: =G$24 -> 0 | I80: 0 | K80: =$K$23 -> 0
A81: SEE7 | B81: SEE7 | C81: =C$25 -> … | F81: 0 | G81: =G$25 -> 0 | I81: 0 | K81: =$K$23 -> 0
A82: SEE8 | B82: SEE8 | C82: =C$26 -> … | F82: =D82+E82 -> 0 | G82: =G$26 -> 0 | I82: =F82*IF(ISBLANK(H82),G82,H82) -> 0 | K82: =$K$23 -> 0
A83: SEE9 | B83: SEE9 | C83: =C$27 -> … | F83: 0 | G83: =G$27 -> 0 | I83: 0 | K83: =$K$23 -> 0
A84: SEE10 | B84: =B70 -> SEE10 | C84: =C$28 -> … | F84: 0 | G84: =G$28 -> 0 | I84: 0 | K84: =$K$28 -> 0
C86: Pfarrperson
A87: =CONCATENATE($D$86,B87) -> SEE0 | B87: =B73 -> SEE0 | C87: =$C$17 -> Arbeitsbereich Seelsorge | D87: =$D$17 -> Anzahl Anlässe pro Jahr | G87: =$G$17 -> Zeitbedarf in AT pro zugeteilte Grösse | I87: =$I$17 -> Summe Zeitbedarf in AT | J87: =$J$17 -> Bemerkung (Hauptverantwortung, Planung, konzeptioneller Ansatz) | K87: =$K$17 -> Erklärungen zu den Berechnung / Kalkulations-Faktoren
A88: 0 | B88: 0 | D88: =$D$18 -> Ist | E88: =$E$18 -> Änderung | F88: =$F$18 -> Soll | G88: =$G$18 -> Ausgangs-wert | H88: =$H$18 -> eigener Faktor | K88: =$K$18 -> 0
A89: SEE1 | B89: SEE1 | C89: =C$19 -> Seelsorge in der Gemeinde (Anzahl zugewandte Mitglieder) | F89: =D89+E89 -> 0 | G89: =G$19 -> 0.01145475372 | I89: =F89*IF(ISBLANK(H89),G89,H89) -> 0 | K89: =$K$19 -> Eingabe: Anzahl zugewandter Gemeindemitglieder, Faktor: durchschn. 0.01 AT pro Mitglied pro Jahr bzw. 0.5AT pro Woche in einem 100% Pensum
A90: SEE2 | B90: SEE2 | C90: =C$20 -> Betreuung von Gruppen (AZ Gruppen) | F90: 0 | G90: =G$20 -> 1 | I90: 0 | K90: =$K$20 -> Eingabe: Anzahl Gruppen, Faktor: 1 AT pro Gruppe pro Jahr
A91: SEE3 | B91: SEE3 | C91: =C$21 -> Besuche an Institutionen | F91: 0 | G91: =G$21 -> 0.1145475372 | I91: 0 | K91: =$K$21 -> Eingabe: Anzahl Stunden für Besuche por Jahr
A92: SEE4 | B92: SEE4 | C92: =C$22 -> Notfallseelsorge | F92: 0 | G92: =G$22 -> 0 | I92: 0 | K92: =$K$22 -> 0
A93: SEE5 | B93: SEE5 | C93: =C$23 -> Besondere und übrige Aufgaben | F93: 0 | G93: =G$23 -> 0 | I93: 0 | K93: =$K$23 -> 0
A94: SEE6 | B94: SEE6 | C94: =C$24 -> … | F94: 0 | G94: =G$24 -> 0 | I94: 0 | K94: =$K$23 -> 0
A95: SEE7 | B95: SEE7 | C95: =C$25 -> … | F95: 0 | G95: =G$25 -> 0 | I95: 0 | K95: =$K$23 -> 0
A96: SEE8 | B96: SEE8 | C96: =C$26 -> … | F96: =D96+E96 -> 0 | G96: =G$26 -> 0 | I96: =F96*IF(ISBLANK(H96),G96,H96) -> 0 | K96: =$K$23 -> 0
A97: SEE9 | B97: SEE9 | C97: =C$27 -> … | F97: 0 | G97: =G$27 -> 0 | I97: 0 | K97: =$K$23 -> 0
A98: SEE10 | B98: SEE10 | C98: =C$28 -> … | F98: 0 | G98: =G$28 -> 0 | I98: 0 | K98: =$K$28 -> 0
C100: Pfarrperson
A101: =CONCATENATE($D$100,B101) -> SEE0 | B101: =B87 -> SEE0 | C101: =$C$17 -> Arbeitsbereich Seelsorge | D101: =$D$17 -> Anzahl Anlässe pro Jahr | G101: =$G$17 -> Zeitbedarf in AT pro zugeteilte Grösse | I101: =$I$17 -> Summe Zeitbedarf in AT | J101: =$J$17 -> Bemerkung (Hauptverantwortung, Planung, konzeptioneller Ansatz) | K101: =$K$17 -> Erklärungen zu den Berechnung / Kalkulations-Faktoren
A102: 0 | B102: 0 | D102: =$D$18 -> Ist | E102: =$E$18 -> Änderung | F102: =$F$18 -> Soll | G102: =$G$18 -> Ausgangs-wert | H102: =$H$18 -> eigener Faktor | K102: =$K$18 -> 0
A103: SEE1 | B103: SEE1 | C103: =C$19 -> Seelsorge in der Gemeinde (Anzahl zugewandte Mitglieder) | F103: =D103+E103 -> 0 | G103: =G$19 -> 0.01145475372 | I103: =F103*IF(ISBLANK(H103),G103,H103) -> 0 | K103: =$K$19 -> Eingabe: Anzahl zugewandter Gemeindemitglieder, Faktor: durchschn. 0.01 AT pro Mitglied pro Jahr bzw. 0.5AT pro Woche in einem 100% Pensum
A104: SEE2 | B104: SEE2 | C104: =C$20 -> Betreuung von Gruppen (AZ Gruppen) | F104: 0 | G104: =G$20 -> 1 | I104: 0 | K104: =$K$20 -> Eingabe: Anzahl Gruppen, Faktor: 1 AT pro Gruppe pro Jahr
A105: SEE3 | B105: SEE3 | C105: =C$21 -> Besuche an Institutionen | F105: 0 | G105: =G$21 -> 0.1145475372 | I105: 0 | K105: =$K$21 -> Eingabe: Anzahl Stunden für Besuche por Jahr
A106: SEE4 | B106: SEE4 | C106: =C$22 -> Notfallseelsorge | F106: 0 | G106: =G$22 -> 0 | I106: 0 | K106: =$K$22 -> 0
A107: SEE5 | B107: SEE5 | C107: =C$23 -> Besondere und übrige Aufgaben | F107: 0 | G107: =G$23 -> 0 | I107: 0 | K107: =$K$23 -> 0
A108: SEE6 | B108: SEE6 | C108: =C$24 -> … | F108: 0 | G108: =G$24 -> 0 | I108: 0 | K108: =$K$23 -> 0
A109: SEE7 | B109: SEE7 | C109: =C$25 -> … | F109: 0 | G109: =G$25 -> 0 | I109: 0 | K109: =$K$23 -> 0
A110: SEE8 | B110: SEE8 | C110: =C$26 -> … | F110: =D110+E110 -> 0 | G110: =G$26 -> 0 | I110: =F110*IF(ISBLANK(H110),G110,H110) -> 0 | K110: =$K$23 -> 0
A111: SEE9 | B111: SEE9 | C111: =C$27 -> … | F111: 0 | G111: =G$27 -> 0 | I111: 0 | K111: =$K$23 -> 0
A112: SEE10 | B112: SEE10 | C112: =C$28 -> … | F112: 0 | G112: =G$28 -> 0 | I112: 0 | K112: =$K$28 -> 0
C114: Pfarrperson
A115: =CONCATENATE($D$114,B115) -> SEE0 | B115: =B101 -> SEE0 | C115: =$C$17 -> Arbeitsbereich Seelsorge | D115: =$D$17 -> Anzahl Anlässe pro Jahr | G115: =$G$17 -> Zeitbedarf in AT pro zugeteilte Grösse | I115: =$I$17 -> Summe Zeitbedarf in AT | J115: =$J$17 -> Bemerkung (Hauptverantwortung, Planung, konzeptioneller Ansatz) | K115: =$K$17 -> Erklärungen zu den Berechnung / Kalkulations-Faktoren
A116: 0 | B116: 0 | D116: =$D$18 -> Ist | E116: =$E$18 -> Änderung | F116: =$F$18 -> Soll | G116: =$G$18 -> Ausgangs-wert | H116: =$H$18 -> eigener Faktor | K116: =$K$18 -> 0
A117: SEE1 | B117: SEE1 | C117: =C$19 -> Seelsorge in der Gemeinde (Anzahl zugewandte Mitglieder) | F117: =D117+E117 -> 0 | G117: =G$19 -> 0.01145475372 | I117: =F117*IF(ISBLANK(H117),G117,H117) -> 0 | K117: =$K$19 -> Eingabe: Anzahl zugewandter Gemeindemitglieder, Faktor: durchschn. 0.01 AT pro Mitglied pro Jahr bzw. 0.5AT pro Woche in einem 100% Pensum
A118: SEE2 | B118: SEE2 | C118: =C$20 -> Betreuung von Gruppen (AZ Gruppen) | F118: 0 | G118: =G$20 -> 1 | I118: 0 | K118: =$K$20 -> Eingabe: Anzahl Gruppen, Faktor: 1 AT pro Gruppe pro Jahr
A119: SEE3 | B119: SEE3 | C119: =C$21 -> Besuche an Institutionen | F119: 0 | G119: =G$21 -> 0.1145475372 | I119: 0 | K119: =$K$21 -> Eingabe: Anzahl Stunden für Besuche por Jahr
A120: SEE4 | B120: SEE4 | C120: =C$22 -> Notfallseelsorge | F120: 0 | G120: =G$22 -> 0 | I120: 0 | K120: =$K$22 -> 0
A121: SEE5 | B121: SEE5 | C121: =C$23 -> Besondere und übrige Aufgaben | F121: 0 | G121: =G$23 -> 0 | I121: 0 | K121: =$K$23 -> 0
A122: SEE6 | B122: SEE6 | C122: =C$24 -> … | F122: 0 | G122: =G$24 -> 0 | I122: 0 | K122: =$K$23 -> 0
A123: SEE7 | B123: SEE7 | C123: =C$25 -> … | F123: 0 | G123: =G$25 -> 0 | I123: 0 | K123: =$K$23 -> 0
A124: SEE8 | B124: SEE8 | C124: =C$26 -> … | F124: =D124+E124 -> 0 | G124: =G$26 -> 0 | I124: =F124*IF(ISBLANK(H124),G124,H124) -> 0 | K124: =$K$23 -> 0
A125: SEE9 | B125: SEE9 | C125: =C$27 -> … | F125: 0 | G125: =G$27 -> 0 | I125: 0 | K125: =$K$23 -> 0
A126: SEE10 | B126: SEE10 | C126: =C$28 -> … | F126: 0 | G126: =G$28 -> 0 | I126: 0 | K126: =$K$28 -> 0
C128: Pfarrperson
A129: =CONCATENATE($D$128,B129) -> SEE0 | B129: =B115 -> SEE0 | C129: =$C$17 -> Arbeitsbereich Seelsorge | D129: =$D$17 -> Anzahl Anlässe pro Jahr | G129: =$G$17 -> Zeitbedarf in AT pro zugeteilte Grösse | I129: =$I$17 -> Summe Zeitbedarf in AT | J129: =$J$17 -> Bemerkung (Hauptverantwortung, Planung, konzeptioneller Ansatz) | K129: =$K$17 -> Erklärungen zu den Berechnung / Kalkulations-Faktoren
A130: 0 | B130: 0 | D130: =$D$18 -> Ist | E130: =$E$18 -> Änderung | F130: =$F$18 -> Soll | G130: =$G$18 -> Ausgangs-wert | H130: =$H$18 -> eigener Faktor | K130: =$K$18 -> 0
A131: SEE1 | B131: SEE1 | C131: =C$19 -> Seelsorge in der Gemeinde (Anzahl zugewandte Mitglieder) | F131: =D131+E131 -> 0 | G131: =G$19 -> 0.01145475372 | I131: =F131*IF(ISBLANK(H131),G131,H131) -> 0 | K131: =$K$19 -> Eingabe: Anzahl zugewandter Gemeindemitglieder, Faktor: durchschn. 0.01 AT pro Mitglied pro Jahr bzw. 0.5AT pro Woche in einem 100% Pensum
A132: SEE2 | B132: SEE2 | C132: =C$20 -> Betreuung von Gruppen (AZ Gruppen) | F132: 0 | G132: =G$20 -> 1 | I132: 0 | K132: =$K$20 -> Eingabe: Anzahl Gruppen, Faktor: 1 AT pro Gruppe pro Jahr
A133: SEE3 | B133: SEE3 | C133: =C$21 -> Besuche an Institutionen | F133: 0 | G133: =G$21 -> 0.1145475372 | I133: 0 | K133: =$K$21 -> Eingabe: Anzahl Stunden für Besuche por Jahr
A134: SEE4 | B134: SEE4 | C134: =C$22 -> Notfallseelsorge | F134: 0 | G134: =G$22 -> 0 | I134: 0 | K134: =$K$22 -> 0
A135: SEE5 | B135: SEE5 | C135: =C$23 -> Besondere und übrige Aufgaben | F135: 0 | G135: =G$23 -> 0 | I135: 0 | K135: =$K$23 -> 0
A136: SEE6 | B136: SEE6 | C136: =C$24 -> … | F136: 0 | G136: =G$24 -> 0 | I136: 0 | K136: =$K$23 -> 0
A137: SEE7 | B137: SEE7 | C137: =C$25 -> … | F137: 0 | G137: =G$25 -> 0 | I137: 0 | K137: =$K$23 -> 0
A138: SEE8 | B138: SEE8 | C138: =C$26 -> … | F138: =D138+E138 -> 0 | G138: =G$26 -> 0 | I138: =F138*IF(ISBLANK(H138),G138,H138) -> 0 | K138: =$K$23 -> 0
A139: SEE9 | B139: SEE9 | C139: =C$27 -> … | F139: 0 | G139: =G$27 -> 0 | I139: 0 | K139: =$K$23 -> 0
A140: SEE10 | B140: SEE10 | C140: =C$28 -> … | F140: 0 | G140: =G$28 -> 0 | I140: 0 | K140: =$K$28 -> 0
C142: Pfarrperson
A143: =CONCATENATE($D$142,B143) -> SEE0 | B143: =B129 -> SEE0 | C143: =$C$17 -> Arbeitsbereich Seelsorge | D143: =$D$17 -> Anzahl Anlässe pro Jahr | G143: =$G$17 -> Zeitbedarf in AT pro zugeteilte Grösse | I143: =$I$17 -> Summe Zeitbedarf in AT | J143: =$J$17 -> Bemerkung (Hauptverantwortung, Planung, konzeptioneller Ansatz) | K143: =$K$17 -> Erklärungen zu den Berechnung / Kalkulations-Faktoren
A144: 0 | B144: 0 | D144: =$D$18 -> Ist | E144: =$E$18 -> Änderung | F144: =$F$18 -> Soll | G144: =$G$18 -> Ausgangs-wert | H144: =$H$18 -> eigener Faktor | K144: =$K$18 -> 0
A145: SEE1 | B145: SEE1 | C145: =C$19 -> Seelsorge in der Gemeinde (Anzahl zugewandte Mitglieder) | F145: =D145+E145 -> 0 | G145: =G$19 -> 0.01145475372 | I145: =F145*IF(ISBLANK(H145),G145,H145) -> 0 | K145: =$K$19 -> Eingabe: Anzahl zugewandter Gemeindemitglieder, Faktor: durchschn. 0.01 AT pro Mitglied pro Jahr bzw. 0.5AT pro Woche in einem 100% Pensum
A146: SEE2 | B146: SEE2 | C146: =C$20 -> Betreuung von Gruppen (AZ Gruppen) | F146: 0 | G146: =G$20 -> 1 | I146: 0 | K146: =$K$20 -> Eingabe: Anzahl Gruppen, Faktor: 1 AT pro Gruppe pro Jahr
A147: SEE3 | B147: SEE3 | C147: =C$21 -> Besuche an Institutionen | F147: 0 | G147: =G$21 -> 0.1145475372 | I147: 0 | K147: =$K$21 -> Eingabe: Anzahl Stunden für Besuche por Jahr
A148: SEE4 | B148: SEE4 | C148: =C$22 -> Notfallseelsorge | F148: 0 | G148: =G$22 -> 0 | I148: 0 | K148: =$K$22 -> 0
A149: SEE5 | B149: SEE5 | C149: =C$23 -> Besondere und übrige Aufgaben | F149: 0 | G149: =G$23 -> 0 | I149: 0 | K149: =$K$23 -> 0
A150: SEE6 | B150: SEE6 | C150: =C$24 -> … | F150: 0 | G150: =G$24 -> 0 | I150: 0 | K150: =$K$23 -> 0
A151: SEE7 | B151: SEE7 | C151: =C$25 -> … | F151: 0 | G151: =G$25 -> 0 | I151: 0 | K151: =$K$23 -> 0
A152: SEE8 | B152: SEE8 | C152: =C$26 -> … | F152: =D152+E152 -> 0 | G152: =G$26 -> 0 | I152: =F152*IF(ISBLANK(H152),G152,H152) -> 0 | K152: =$K$23 -> 0
A153: SEE9 | B153: SEE9 | C153: =C$27 -> … | F153: 0 | G153: =G$27 -> 0 | I153: 0 | K153: =$K$23 -> 0
A154: SEE10 | B154: SEE10 | C154: =C$28 -> … | F154: 0 | G154: =G$28 -> 0 | I154: 0 | K154: =$K$28 -> 0
C157: Diakonie
C158: Pfarrpersonen | D158: =Pfarrpersonen!A8 -> Gesamtpensum
A159: =CONCATENATE($D$158,B159) -> GesamtpensumD0 | B159: D0 | C159: Arbeitsbereich Diakonie | D159: Anzahl Stunden | G159: Zeitbedarf in AT pro zugeteilte Grösse | I159: Summe Zeitbedarf in AT | J159: Bemerkung (Hauptverantwortung, Planung, konzeptioneller Ansatz) | K159: Erklärungen zu den Berechnung / Kalkulations-Faktoren
D160: =$D$18 -> Ist | E160: =$E$18 -> Änderung | F160: =$F$18 -> Soll | G160: Ausgangs-wert | H160: eigener Faktor | I160: =SUM(I161:I169) -> 0
A161: =CONCATENATE($D$158,B161) -> GesamtpensumD1 | B161: D1 | C161: Veranstaltungen (AZ Stunden der Anlässe-> +AZ Std. * AZ Anlässe) | F161: =D161+E161 -> 0 | G161: =1.5/8.73 -> 0.1718213058 | I161: =F161*IF(ISBLANK(H161),G161,H161) -> 0 | K161: Eingabe: Anzahl Stunden, Faktor: 1,5h pro Anlassstunde
A162: GesamtpensumD2 | B162: D2 | C162: Projekte (va Bene, letzte Hilfe etc.) | F162: 0 | G162: =1/8.73 -> 0.1145475372 | I162: 0 | K162: Eingabe: Anzahl Stunden, Faktor: 1h
A163: GesamtpensumD3 | B163: D3 | C163: Gruppen/Freiwillige | F163: 0 | G163: =1/8.73 -> 0.1145475372 | I163: 0 | K163: Eingabe: Anzahl Stunden, Faktor: 1h
A164: GesamtpensumD4 | B164: D4 | C164: Besondere und übrige Aufgaben | F164: 0
A165: GesamtpensumD5 | B165: D5 | C165: … | F165: 0 | I165: =F165*IF(ISBLANK(H165),G165,H165) -> 0
A166: GesamtpensumD6 | B166: D6 | C166: … | F166: 0 | I166: 0
A167: GesamtpensumD7 | B167: D7 | C167: … | F167: 0 | I167: 0
A168: GesamtpensumD8 | B168: D8 | C168: … | F168: 0 | I168: 0
A169: GesamtpensumD9 | B169: D9 | C169: … | F169: 0 | I169: 0
C171: =Pfarrpersonen!A8 -> Gesamtpensum | D171: =Pfarrpersonen!A9 -> Delta
A172: =CONCATENATE($D$171,B172) -> DeltaD0 | B172: =B159 -> D0 | C172: =$C$159 -> Arbeitsbereich Diakonie | D172: =$D$159 -> Anzahl Stunden | G172: =$G$159 -> Zeitbedarf in AT pro zugeteilte Grösse | I172: =$I$159 -> Summe Zeitbedarf in AT | J172: =$J$159 -> Bemerkung (Hauptverantwortung, Planung, konzeptioneller Ansatz) | K172: =$K$159 -> Erklärungen zu den Berechnung / Kalkulations-Faktoren
B173: 0 | D173: =$D$18 -> Ist | E173: =$E$18 -> Änderung | F173: =$F$18 -> Soll | G173: =$G$160 -> Ausgangs-wert | H173: =$H$160 -> eigener Faktor | K173: =$K$160 -> 0
A174: =CONCATENATE($D$171,B174) -> DeltaD1 | B174: D1 | C174: =C$161 -> Veranstaltungen (AZ Stunden der Anlässe-> +AZ Std. * AZ Anlässe) | F174: =D174+E174 -> 0 | G174: =G$161 -> 0.1718213058 | I174: =+I161-I187-I200-I213-I226-I239-I252-I265-I278 -> 0 | K174: =$K$161 -> Eingabe: Anzahl Stunden, Faktor: 1,5h pro Anlassstunde
A175: DeltaD2 | B175: D2 | C175: =C$162 -> Projekte (va Bene, letzte Hilfe etc.) | F175: 0 | G175: =G$162 -> 0.1145475372 | I175: =+I162-I188-I201-I214-I227-I240-I253-I266-I279 -> 0 | K175: =$K$162 -> Eingabe: Anzahl Stunden, Faktor: 1h
A176: DeltaD3 | B176: D3 | C176: =C$163 -> Gruppen/Freiwillige | F176: 0 | G176: =G$163 -> 0.1145475372 | I176: 0 | K176: =$K$163 -> Eingabe: Anzahl Stunden, Faktor: 1h
A177: DeltaD4 | B177: D4 | C177: =C$164 -> Besondere und übrige Aufgaben | F177: 0 | G177: =G$164 -> 0 | I177: 0 | K177: =$K$164 -> 0
A178: DeltaD5 | B178: D5 | C178: =C$165 -> … | F178: 0 | G178: =G$165 -> 0 | I178: 0 | K178: =$K$167 -> 0
A179: DeltaD6 | B179: D6 | C179: =C$166 -> … | F179: 0 | G179: =G$166 -> 0 | I179: 0 | K179: =$K$168 -> 0
A180: DeltaD7 | B180: D7 | C180: =C$167 -> … | F180: 0 | G180: =G$167 -> 0 | I180: 0 | K180: =$K$167 -> 0
A181: DeltaD8 | B181: D8 | C181: =C$168 -> … | F181: 0 | G181: =G$168 -> 0 | I181: 0 | K181: =$K$168 -> 0
A182: DeltaD9 | B182: D9 | C182: =C$169 -> … | F182: 0 | G182: =G$169 -> 0 | I182: 0 | K182: =$K$169 -> 0
C184: Pfarrperson
A185: =CONCATENATE($D$184,B185) -> D0 | B185: =B172 -> D0 | C185: =$C$159 -> Arbeitsbereich Diakonie | D185: =$D$159 -> Anzahl Stunden | G185: =$G$159 -> Zeitbedarf in AT pro zugeteilte Grösse | I185: =$I$159 -> Summe Zeitbedarf in AT | J185: =$J$159 -> Bemerkung (Hauptverantwortung, Planung, konzeptioneller Ansatz) | K185: =$K$159 -> Erklärungen zu den Berechnung / Kalkulations-Faktoren
A186: 0 | B186: 0 | D186: =$D$18 -> Ist | E186: =$E$18 -> Änderung | F186: =$F$18 -> Soll | G186: =$G$160 -> Ausgangs-wert | H186: =$H$160 -> eigener Faktor | K186: =$K$160 -> 0
A187: D1 | B187: D1 | C187: =C$161 -> Veranstaltungen (AZ Stunden der Anlässe-> +AZ Std. * AZ Anlässe) | F187: =D187+E187 -> 0 | G187: =G$161 -> 0.1718213058 | I187: =F187*IF(ISBLANK(H187),G187,H187) -> 0 | K187: =$K$161 -> Eingabe: Anzahl Stunden, Faktor: 1,5h pro Anlassstunde
A188: D2 | B188: D2 | C188: =C$162 -> Projekte (va Bene, letzte Hilfe etc.) | F188: 0 | G188: =G$162 -> 0.1145475372 | I188: 0 | K188: =$K$162 -> Eingabe: Anzahl Stunden, Faktor: 1h
A189: D3 | B189: D3 | C189: =C$163 -> Gruppen/Freiwillige | F189: 0 | G189: =G$163 -> 0.1145475372 | I189: 0 | K189: =$K$163 -> Eingabe: Anzahl Stunden, Faktor: 1h
A190: D4 | B190: D4 | C190: =C$164 -> Besondere und übrige Aufgaben | F190: 0 | G190: =G$164 -> 0 | I190: 0 | K190: =$K$164 -> 0
A191: D5 | B191: D5 | C191: =C$165 -> … | F191: 0 | G191: =G$165 -> 0 | I191: 0 | K191: =$K$167 -> 0
A192: D6 | B192: D6 | C192: =C$166 -> … | F192: 0 | G192: =G$166 -> 0 | I192: 0 | K192: =$K$168 -> 0
A193: D7 | B193: D7 | C193: =C$167 -> … | F193: 0 | G193: =G$167 -> 0 | I193: 0 | K193: =$K$167 -> 0
A194: D8 | B194: D8 | C194: =C$168 -> … | F194: 0 | G194: =G$168 -> 0 | I194: 0 | K194: =$K$168 -> 0
A195: D9 | B195: D9 | C195: =C$169 -> … | F195: 0 | G195: =G$169 -> 0 | I195: 0 | K195: =$K$169 -> 0
C197: Pfarrperson
A198: =CONCATENATE($D$197,B198) -> D0 | B198: =B185 -> D0 | C198: =$C$159 -> Arbeitsbereich Diakonie | D198: =$D$159 -> Anzahl Stunden | G198: =$G$159 -> Zeitbedarf in AT pro zugeteilte Grösse | I198: =$I$159 -> Summe Zeitbedarf in AT | J198: =$J$159 -> Bemerkung (Hauptverantwortung, Planung, konzeptioneller Ansatz) | K198: =$K$159 -> Erklärungen zu den Berechnung / Kalkulations-Faktoren
A199: 0 | B199: 0 | D199: =$D$18 -> Ist | E199: =$E$18 -> Änderung | F199: =$F$18 -> Soll | G199: =$G$160 -> Ausgangs-wert | H199: =$H$160 -> eigener Faktor | K199: =$K$160 -> 0
A200: D1 | B200: D1 | C200: =C$161 -> Veranstaltungen (AZ Stunden der Anlässe-> +AZ Std. * AZ Anlässe) | F200: =D200+E200 -> 0 | G200: =G$161 -> 0.1718213058 | I200: =F200*IF(ISBLANK(H200),G200,H200) -> 0 | K200: =$K$161 -> Eingabe: Anzahl Stunden, Faktor: 1,5h pro Anlassstunde
A201: D2 | B201: D2 | C201: =C$162 -> Projekte (va Bene, letzte Hilfe etc.) | F201: 0 | G201: =G$162 -> 0.1145475372 | I201: 0 | K201: =$K$162 -> Eingabe: Anzahl Stunden, Faktor: 1h
A202: D3 | B202: D3 | C202: =C$163 -> Gruppen/Freiwillige | F202: 0 | G202: =G$163 -> 0.1145475372 | I202: 0 | K202: =$K$163 -> Eingabe: Anzahl Stunden, Faktor: 1h
A203: D4 | B203: D4 | C203: =C$164 -> Besondere und übrige Aufgaben | F203: 0 | G203: =G$164 -> 0 | I203: 0 | K203: =$K$164 -> 0
A204: D5 | B204: D5 | C204: =C$165 -> … | F204: 0 | G204: =G$165 -> 0 | I204: 0 | K204: =$K$167 -> 0
A205: D6 | B205: D6 | C205: =C$166 -> … | F205: 0 | G205: =G$166 -> 0 | I205: 0 | K205: =$K$168 -> 0
A206: D7 | B206: D7 | C206: =C$167 -> … | F206: 0 | G206: =G$167 -> 0 | I206: 0 | K206: =$K$167 -> 0
A207: D8 | B207: D8 | C207: =C$168 -> … | F207: 0 | G207: =G$168 -> 0 | I207: 0 | K207: =$K$168 -> 0
A208: D9 | B208: D9 | C208: =C$169 -> … | F208: 0 | G208: =G$169 -> 0 | I208: 0 | K208: =$K$169 -> 0
C210: Pfarrperson
A211: =CONCATENATE($D$210,B211) -> D0 | B211: =B198 -> D0 | C211: =$C$159 -> Arbeitsbereich Diakonie | D211: =$D$159 -> Anzahl Stunden | G211: =$G$159 -> Zeitbedarf in AT pro zugeteilte Grösse | I211: =$I$159 -> Summe Zeitbedarf in AT | J211: =$J$159 -> Bemerkung (Hauptverantwortung, Planung, konzeptioneller Ansatz) | K211: =$K$159 -> Erklärungen zu den Berechnung / Kalkulations-Faktoren
A212: 0 | B212: 0 | D212: =$D$18 -> Ist | E212: =$E$18 -> Änderung | F212: =$F$18 -> Soll | G212: =$G$160 -> Ausgangs-wert | H212: =$H$160 -> eigener Faktor | K212: =$K$160 -> 0
A213: D1 | B213: D1 | C213: =C$161 -> Veranstaltungen (AZ Stunden der Anlässe-> +AZ Std. * AZ Anlässe) | F213: =D213+E213 -> 0 | G213: =G$161 -> 0.1718213058 | I213: =F213*IF(ISBLANK(H213),G213,H213) -> 0 | K213: =$K$161 -> Eingabe: Anzahl Stunden, Faktor: 1,5h pro Anlassstunde
A214: D2 | B214: D2 | C214: =C$162 -> Projekte (va Bene, letzte Hilfe etc.) | F214: 0 | G214: =G$162 -> 0.1145475372 | I214: 0 | K214: =$K$162 -> Eingabe: Anzahl Stunden, Faktor: 1h
A215: D3 | B215: D3 | C215: =C$163 -> Gruppen/Freiwillige | F215: 0 | G215: =G$163 -> 0.1145475372 | I215: 0 | K215: =$K$163 -> Eingabe: Anzahl Stunden, Faktor: 1h
A216: D4 | B216: D4 | C216: =C$164 -> Besondere und übrige Aufgaben | F216: 0 | G216: =G$164 -> 0 | I216: 0 | K216: =$K$164 -> 0
A217: D5 | B217: D5 | C217: =C$165 -> … | F217: 0 | G217: =G$165 -> 0 | I217: 0 | K217: =$K$167 -> 0
A218: D6 | B218: D6 | C218: =C$166 -> … | F218: 0 | G218: =G$166 -> 0 | I218: 0 | K218: =$K$168 -> 0
A219: D7 | B219: D7 | C219: =C$167 -> … | F219: 0 | G219: =G$167 -> 0 | I219: 0 | K219: =$K$167 -> 0
A220: D8 | B220: D8 | C220: =C$168 -> … | F220: 0 | G220: =G$168 -> 0 | I220: 0 | K220: =$K$168 -> 0
A221: D9 | B221: D9 | C221: =C$169 -> … | F221: 0 | G221: =G$169 -> 0 | I221: 0 | K221: =$K$169 -> 0
C223: Pfarrperson
A224: =CONCATENATE($D$223,B224) -> D0 | B224: =B211 -> D0 | C224: =$C$159 -> Arbeitsbereich Diakonie | D224: =$D$159 -> Anzahl Stunden | G224: =$G$159 -> Zeitbedarf in AT pro zugeteilte Grösse | I224: =$I$159 -> Summe Zeitbedarf in AT | J224: =$J$159 -> Bemerkung (Hauptverantwortung, Planung, konzeptioneller Ansatz) | K224: =$K$159 -> Erklärungen zu den Berechnung / Kalkulations-Faktoren
A225: 0 | B225: 0 | D225: =$D$18 -> Ist | E225: =$E$18 -> Änderung | F225: =$F$18 -> Soll | G225: =$G$160 -> Ausgangs-wert | H225: =$H$160 -> eigener Faktor | K225: =$K$160 -> 0
A226: D1 | B226: D1 | C226: =C$161 -> Veranstaltungen (AZ Stunden der Anlässe-> +AZ Std. * AZ Anlässe) | F226: =D226+E226 -> 0 | G226: =G$161 -> 0.1718213058 | I226: =F226*IF(ISBLANK(H226),G226,H226) -> 0 | K226: =$K$161 -> Eingabe: Anzahl Stunden, Faktor: 1,5h pro Anlassstunde
A227: D2 | B227: D2 | C227: =C$162 -> Projekte (va Bene, letzte Hilfe etc.) | F227: 0 | G227: =G$162 -> 0.1145475372 | I227: 0 | K227: =$K$162 -> Eingabe: Anzahl Stunden, Faktor: 1h
A228: D3 | B228: D3 | C228: =C$163 -> Gruppen/Freiwillige | F228: 0 | G228: =G$163 -> 0.1145475372 | I228: 0 | K228: =$K$163 -> Eingabe: Anzahl Stunden, Faktor: 1h
A229: D4 | B229: D4 | C229: =C$164 -> Besondere und übrige Aufgaben | F229: 0 | G229: =G$164 -> 0 | I229: 0 | K229: =$K$164 -> 0
... 194 more rows

Sheet A&V_Bild.&Spirit.
C1: Pfarramtliche Aufgaben- und Verantwortungsbereiche im Handlungsfeld Bildung und Spiritualität
C16: Pfarrpersonen | D16: =Pfarrpersonen!A8 -> Gesamtpensum
A17: =CONCATENATE($D$16,B17) -> GesamtpensumK0 | B17: K0 | C17: Arbeitsbereich Konfirmandenarbeit und rpg | D17: Anzahl | G17: Zeitbedarf in AT pro zugeteilte Grösse | I17: Summe Zeitbedarf in AT | J17: Bemerkung (Hauptverantwortung, Planung, konzeptioneller Ansatz) | K17: Erklärungen zu den Berechnung / Kalkulations-Faktoren
D18: Ist | E18: Änderung | F18: Soll | G18: Ausgangs- wert | H18: eigener Faktor | I18: =SUM(I19:I30) -> 0
A19: =CONCATENATE($D$16,B19) -> GesamtpensumK1 | B19: K1 | C19: Konfirmandenunterricht (AZ Lektionen) | F19: =D19+E19 -> 0 | G19: =2/8.73 -> 0.2290950745 | I19: =F19*IF(ISBLANK(H19),G19,H19) -> 0 | K19: Eingabe: Anzahl Lektionen pro Jahr à 60 Min., Faktor: 2 h pro 60 Min.-Lektion
A20: GesamtpensumK2 | B20: K2 | C20: Juki-Lektionen | F20: 0 | G20: =2/8.73 -> 0.2290950745 | I20: 0 | K20: Eingabe: Anzahl Lektionen pro Jahr à 60 Min., Faktor: 2 h pro 60 Min.-Lektion
A21: GesamtpensumK3 | B21: K3 | C21: Sonstige Angebote rpg (AZ Lektionen) | F21: 0 | G21: =2/8.73 -> 0.2290950745 | I21: 0 | K21: Eingabe: Anzahl Stunden der Anlässe, Faktor: 2 h pro Anlassstunde
A22: GesamtpensumK4 | B22: K4 | C22: Projekttage | F22: 0 | G22: 1.5 | I22: =F22*IF(ISBLANK(H22),G22,H22) -> 0 | K22: Eingabe: Anzahl Projekttage pro Jahr, Faktor: 1.5 AT pro Projekttag
A23: GesamtpensumK5 | B23: K5 | C23: Lager (AZ Tage) | F23: 0 | G23: 1.5 | I23: 0 | K23: Eingabe: Anzahl Lagertage pro Jahr, Faktor: 1.5 AT pro Lagertag
A24: GesamtpensumK6 | B24: K6 | C24: Gemeindeferien (AZ Ferientage) | F24: 0 | G24: 1.5 | I24: 0 | K24: Eingabe: Anzahl Ferientage pro Jahr, Faktor: 1.5 AT pro Ferientag
A25: GesamtpensumK7 | B25: K7 | C25: Besondere und übrige Aufgaben | F25: 0 | I25: 0
A26: GesamtpensumK8 | B26: K8 | C26: … | F26: =D26+E26 -> 0 | I26: 0
A27: GesamtpensumK9 | B27: K9 | C27: … | F27: 0 | I27: =F27*IF(ISBLANK(H27),G27,H27) -> 0
A28: GesamtpensumK10 | B28: K10 | C28: … | F28: 0 | I28: =F28*IF(ISBLANK(H28),G28,H28) -> 0
A29: GesamtpensumK11 | B29: K11 | C29: … | F29: 0 | I29: 0
A30: GesamtpensumK12 | B30: K12 | C30: … | F30: 0 | I30: 0
C32: =Pfarrpersonen!A8 -> Gesamtpensum | D32: =Pfarrpersonen!A9 -> Delta
A33: =CONCATENATE($D$32,B33) -> DeltaK0 | B33: =B17 -> K0 | C33: =$C$17 -> Arbeitsbereich Konfirmandenarbeit und rpg | D33: =$D$17 -> Anzahl | G33: =$G$17 -> Zeitbedarf in AT pro zugeteilte Grösse | I33: =$I$17 -> Summe Zeitbedarf in AT | J33: =$J$17 -> Bemerkung (Hauptverantwortung, Planung, konzeptioneller Ansatz) | K33: =$K$17 -> Erklärungen zu den Berechnung / Kalkulations-Faktoren
C34: =C18 -> 0 | D34: =$D$18 -> Ist | E34: =$E$18 -> Änderung | F34: =$F$18 -> Soll | G34: =$G$18 -> Ausgangs- wert | H34: =$H$18 -> eigener Faktor
A35: =CONCATENATE($D$32,B35) -> DeltaK1 | B35: =B19 -> K1 | C35: =C$19 -> Konfirmandenunterricht (AZ Lektionen) | F35: =D35+E35 -> 0 | G35: =G$19 -> 0.2290950745 | I35: =+I19-I51-I67-I83-I99-I115-I131-I147-I163 -> 0 | K35: =$K$19 -> Eingabe: Anzahl Lektionen pro Jahr à 60 Min., Faktor: 2 h pro 60 Min.-Lektion
A36: DeltaK2 | B36: K2 | C36: =C$20 -> Juki-Lektionen | F36: 0 | G36: =G$20 -> 0.2290950745 | I36: =+I20-I52-I68-I84-I100-I116-I132-I148-I164 -> 0 | K36: =$K$20 -> Eingabe: Anzahl Lektionen pro Jahr à 60 Min., Faktor: 2 h pro 60 Min.-Lektion
A37: DeltaK3 | B37: K3 | C37: =C$21 -> Sonstige Angebote rpg (AZ Lektionen) | F37: 0 | G37: =G$21 -> 0.2290950745 | I37: 0 | K37: =$K$21 -> Eingabe: Anzahl Stunden der Anlässe, Faktor: 2 h pro Anlassstunde
A38: DeltaK4 | B38: K4 | C38: =C$22 -> Projekttage | F38: 0 | G38: =G$22 -> 1.5 | I38: 0 | K38: =$K$22 -> Eingabe: Anzahl Projekttage pro Jahr, Faktor: 1.5 AT pro Projekttag
A39: DeltaK5 | B39: K5 | C39: =C$23 -> Lager (AZ Tage) | F39: 0 | G39: =G$23 -> 1.5 | I39: 0 | K39: =$K$23 -> Eingabe: Anzahl Lagertage pro Jahr, Faktor: 1.5 AT pro Lagertag
A40: DeltaK6 | B40: K6 | C40: =C$24 -> Gemeindeferien (AZ Ferientage) | F40: 0 | G40: =G$24 -> 1.5 | I40: 0 | K40: =$K$24 -> Eingabe: Anzahl Ferientage pro Jahr, Faktor: 1.5 AT pro Ferientag
A41: DeltaK7 | B41: K7 | C41: =C$25 -> Besondere und übrige Aufgaben | F41: 0 | G41: =G$25 -> 0 | I41: 0 | K41: =K25 -> 0
A42: DeltaK8 | B42: K8 | C42: =C$26 -> … | F42: =D42+E42 -> 0 | G42: =G$26 -> 0 | I42: 0
A43: DeltaK9 | B43: K9 | C43: =C$27 -> … | F43: 0 | G43: =G$27 -> 0 | I43: 0
A44: DeltaK10 | B44: K10 | C44: =C$28 -> … | F44: 0 | G44: =G$28 -> 0 | I44: 0
A45: DeltaK11 | B45: K11 | C45: =C$29 -> … | F45: 0 | G45: =G$29 -> 0 | I45: 0
A46: DeltaK12 | B46: K12 | C46: =C$30 -> … | F46: 0 | G46: =G$30 -> 0 | I46: 0 | K46: =K30 -> 0
C48: Pfarrperson
A49: =CONCATENATE($D$48,B49) -> K0 | B49: =B33 -> K0 | C49: =$C$17 -> Arbeitsbereich Konfirmandenarbeit und rpg | D49: =$D$17 -> Anzahl | G49: =$G$17 -> Zeitbedarf in AT pro zugeteilte Grösse | I49: =$I$17 -> Summe Zeitbedarf in AT | J49: =$J$17 -> Bemerkung (Hauptverantwortung, Planung, konzeptioneller Ansatz) | K49: =$K$17 -> Erklärungen zu den Berechnung / Kalkulations-Faktoren
C50: =C34 -> 0 | D50: =$D$18 -> Ist | E50: =$E$18 -> Änderung | F50: =$F$18 -> Soll | G50: =$G$18 -> Ausgangs- wert | H50: =$H$18 -> eigener Faktor
A51: K1 | B51: =B35 -> K1 | C51: =C$19 -> Konfirmandenunterricht (AZ Lektionen) | F51: =D51+E51 -> 0 | G51: =G$19 -> 0.2290950745 | I51: =F51*IF(ISBLANK(H51),G51,H51) -> 0 | K51: =$K$19 -> Eingabe: Anzahl Lektionen pro Jahr à 60 Min., Faktor: 2 h pro 60 Min.-Lektion
A52: K2 | B52: K2 | C52: =C$20 -> Juki-Lektionen | F52: 0 | G52: =G$20 -> 0.2290950745 | I52: 0 | K52: =$K$20 -> Eingabe: Anzahl Lektionen pro Jahr à 60 Min., Faktor: 2 h pro 60 Min.-Lektion
A53: K3 | B53: K3 | C53: =C$21 -> Sonstige Angebote rpg (AZ Lektionen) | F53: 0 | G53: =G$21 -> 0.2290950745 | I53: 0 | K53: =$K$21 -> Eingabe: Anzahl Stunden der Anlässe, Faktor: 2 h pro Anlassstunde
A54: K4 | B54: K4 | C54: =C$22 -> Projekttage | F54: 0 | G54: =G$22 -> 1.5 | K54: =$K$22 -> Eingabe: Anzahl Projekttage pro Jahr, Faktor: 1.5 AT pro Projekttag
A55: K5 | B55: K5 | C55: =C$23 -> Lager (AZ Tage) | F55: 0 | G55: =G$23 -> 1.5 | I55: 0 | K55: =$K$23 -> Eingabe: Anzahl Lagertage pro Jahr, Faktor: 1.5 AT pro Lagertag
A56: K6 | B56: K6 | C56: =C$24 -> Gemeindeferien (AZ Ferientage) | F56: 0 | G56: =G$24 -> 1.5 | I56: 0 | K56: =$K$24 -> Eingabe: Anzahl Ferientage pro Jahr, Faktor: 1.5 AT pro Ferientag
A57: K7 | B57: K7 | C57: =C$25 -> Besondere und übrige Aufgaben | F57: 0 | G57: =G$25 -> 0 | I57: 0 | K57: =K45 -> 0
A58: K8 | B58: K8 | C58: =C$26 -> … | F58: =D58+E58 -> 0 | G58: =G$26 -> 0 | I58: =F58*IF(ISBLANK(H58),G58,H58) -> 0
A59: K9 | B59: K9 | C59: =C$27 -> … | F59: 0 | G59: =G$27 -> 0 | I59: 0
A60: K10 | B60: K10 | C60: =C$28 -> … | F60: 0 | G60: =G$28 -> 0 | I60: 0
A61: K11 | B61: K11 | C61: =C$29 -> … | F61: 0 | G61: =G$29 -> 0 | I61: 0
A62: K12 | B62: K12 | C62: =C$30 -> … | F62: 0 | G62: =G$30 -> 0 | I62: 0
C64: Pfarrperson
A65: =CONCATENATE($D$64,B65) -> K0 | B65: =B49 -> K0 | C65: =$C$17 -> Arbeitsbereich Konfirmandenarbeit und rpg | D65: =$D$17 -> Anzahl | G65: =$G$17 -> Zeitbedarf in AT pro zugeteilte Grösse | I65: =$I$17 -> Summe Zeitbedarf in AT | J65: =$J$17 -> Bemerkung (Hauptverantwortung, Planung, konzeptioneller Ansatz) | K65: =$K$17 -> Erklärungen zu den Berechnung / Kalkulations-Faktoren
C66: =C50 -> 0 | D66: =$D$18 -> Ist | E66: =$E$18 -> Änderung | F66: =$F$18 -> Soll | G66: =$G$18 -> Ausgangs- wert | H66: =$H$18 -> eigener Faktor
A67: K1 | B67: =B51 -> K1 | C67: =C$19 -> Konfirmandenunterricht (AZ Lektionen) | F67: =D67+E67 -> 0 | G67: =G$19 -> 0.2290950745 | I67: =F67*IF(ISBLANK(H67),G67,H67) -> 0 | K67: =$K$19 -> Eingabe: Anzahl Lektionen pro Jahr à 60 Min., Faktor: 2 h pro 60 Min.-Lektion
A68: K2 | B68: K2 | C68: =C$20 -> Juki-Lektionen | F68: 0 | G68: =G$20 -> 0.2290950745 | I68: 0 | K68: =$K$20 -> Eingabe: Anzahl Lektionen pro Jahr à 60 Min., Faktor: 2 h pro 60 Min.-Lektion
A69: K3 | B69: K3 | C69: =C$21 -> Sonstige Angebote rpg (AZ Lektionen) | F69: 0 | G69: =G$21 -> 0.2290950745 | I69: 0 | K69: =$K$21 -> Eingabe: Anzahl Stunden der Anlässe, Faktor: 2 h pro Anlassstunde
A70: K4 | B70: K4 | C70: =C$22 -> Projekttage | F70: 0 | G70: =G$22 -> 1.5 | I70: 0 | K70: =$K$22 -> Eingabe: Anzahl Projekttage pro Jahr, Faktor: 1.5 AT pro Projekttag
A71: K5 | B71: K5 | C71: =C$23 -> Lager (AZ Tage) | F71: 0 | G71: =G$23 -> 1.5 | I71: 0 | K71: =$K$23 -> Eingabe: Anzahl Lagertage pro Jahr, Faktor: 1.5 AT pro Lagertag
A72: K6 | B72: K6 | C72: =C$24 -> Gemeindeferien (AZ Ferientage) | F72: 0 | G72: =G$24 -> 1.5 | I72: 0 | K72: =$K$24 -> Eingabe: Anzahl Ferientage pro Jahr, Faktor: 1.5 AT pro Ferientag
A73: K7 | B73: K7 | C73: =C$25 -> Besondere und übrige Aufgaben | F73: 0 | G73: =G$25 -> 0 | I73: 0 | K73: =K61 -> 0
A74: K8 | B74: K8 | C74: =C$26 -> … | F74: =D74+E74 -> 0 | G74: =G$26 -> 0 | I74: =F74*IF(ISBLANK(H74),G74,H74) -> 0
A75: K9 | B75: K9 | C75: =C$27 -> … | F75: 0 | G75: =G$27 -> 0 | I75: 0
A76: K10 | B76: K10 | C76: =C$28 -> … | F76: 0 | G76: =G$28 -> 0 | I76: 0
A77: K11 | B77: K11 | C77: =C$29 -> … | F77: 0 | G77: =G$29 -> 0 | I77: 0
A78: K12 | B78: K12 | C78: =C$30 -> … | F78: 0 | G78: =G$30 -> 0 | I78: 0
C80: Pfarrperson
A81: =CONCATENATE($D$80,B81) -> K0 | B81: =B65 -> K0 | C81: =$C$17 -> Arbeitsbereich Konfirmandenarbeit und rpg | D81: =$D$17 -> Anzahl | G81: =$G$17 -> Zeitbedarf in AT pro zugeteilte Grösse | I81: =$I$17 -> Summe Zeitbedarf in AT | J81: =$J$17 -> Bemerkung (Hauptverantwortung, Planung, konzeptioneller Ansatz) | K81: =$K$17 -> Erklärungen zu den Berechnung / Kalkulations-Faktoren
C82: =C66 -> 0 | D82: =$D$18 -> Ist | E82: =$E$18 -> Änderung | F82: =$F$18 -> Soll | G82: =$G$18 -> Ausgangs- wert | H82: =$H$18 -> eigener Faktor
A83: K1 | B83: =B67 -> K1 | C83: =C$19 -> Konfirmandenunterricht (AZ Lektionen) | F83: =D83+E83 -> 0 | G83: =G$19 -> 0.2290950745 | I83: =F83*IF(ISBLANK(H83),G83,H83) -> 0 | K83: =$K$19 -> Eingabe: Anzahl Lektionen pro Jahr à 60 Min., Faktor: 2 h pro 60 Min.-Lektion
A84: K2 | B84: K2 | C84: =C$20 -> Juki-Lektionen | F84: 0 | G84: =G$20 -> 0.2290950745 | I84: 0 | K84: =$K$20 -> Eingabe: Anzahl Lektionen pro Jahr à 60 Min., Faktor: 2 h pro 60 Min.-Lektion
A85: K3 | B85: K3 | C85: =C$21 -> Sonstige Angebote rpg (AZ Lektionen) | F85: 0 | G85: =G$21 -> 0.2290950745 | I85: 0 | K85: =$K$21 -> Eingabe: Anzahl Stunden der Anlässe, Faktor: 2 h pro Anlassstunde
A86: K4 | B86: K4 | C86: =C$22 -> Projekttage | F86: 0 | G86: =G$22 -> 1.5 | I86: 0 | K86: =$K$22 -> Eingabe: Anzahl Projekttage pro Jahr, Faktor: 1.5 AT pro Projekttag
A87: K5 | B87: K5 | C87: =C$23 -> Lager (AZ Tage) | F87: 0 | G87: =G$23 -> 1.5 | I87: 0 | K87: =$K$23 -> Eingabe: Anzahl Lagertage pro Jahr, Faktor: 1.5 AT pro Lagertag
A88: K6 | B88: K6 | C88: =C$24 -> Gemeindeferien (AZ Ferientage) | F88: 0 | G88: =G$24 -> 1.5 | I88: 0 | K88: =$K$24 -> Eingabe: Anzahl Ferientage pro Jahr, Faktor: 1.5 AT pro Ferientag
A89: K7 | B89: K7 | C89: =C$25 -> Besondere und übrige Aufgaben | F89: 0 | G89: =G$25 -> 0 | I89: 0 | K89: =K77 -> 0
A90: K8 | B90: K8 | C90: =C$26 -> … | F90: =D90+E90 -> 0 | G90: =G$26 -> 0 | I90: =F90*IF(ISBLANK(H90),G90,H90) -> 0
A91: K9 | B91: K9 | C91: =C$27 -> … | F91: 0 | G91: =G$27 -> 0 | I91: 0
A92: K10 | B92: K10 | C92: =C$28 -> … | F92: 0 | G92: =G$28 -> 0 | I92: 0
A93: K11 | B93: K11 | C93: =C$29 -> … | F93: 0 | G93: =G$29 -> 0 | I93: 0
A94: K12 | B94: K12 | C94: =C$30 -> … | F94: 0 | G94: =G$30 -> 0 | I94: 0
C96: Pfarrperson
A97: =CONCATENATE($D$96,B97) -> K0 | B97: =B81 -> K0 | C97: =$C$17 -> Arbeitsbereich Konfirmandenarbeit und rpg | D97: =$D$17 -> Anzahl | G97: =$G$17 -> Zeitbedarf in AT pro zugeteilte Grösse | I97: =$I$17 -> Summe Zeitbedarf in AT | J97: =$J$17 -> Bemerkung (Hauptverantwortung, Planung, konzeptioneller Ansatz) | K97: =$K$17 -> Erklärungen zu den Berechnung / Kalkulations-Faktoren
C98: =C82 -> 0 | D98: =$D$18 -> Ist | E98: =$E$18 -> Änderung | F98: =$F$18 -> Soll | G98: =$G$18 -> Ausgangs- wert | H98: =$H$18 -> eigener Faktor
A99: K1 | B99: =B83 -> K1 | C99: =C$19 -> Konfirmandenunterricht (AZ Lektionen) | F99: =D99+E99 -> 0 | G99: =G$19 -> 0.2290950745 | I99: =F99*IF(ISBLANK(H99),G99,H99) -> 0 | K99: =$K$19 -> Eingabe: Anzahl Lektionen pro Jahr à 60 Min., Faktor: 2 h pro 60 Min.-Lektion
A100: K2 | B100: K2 | C100: =C$20 -> Juki-Lektionen | F100: 0 | G100: =G$20 -> 0.2290950745 | I100: 0 | K100: =$K$20 -> Eingabe: Anzahl Lektionen pro Jahr à 60 Min., Faktor: 2 h pro 60 Min.-Lektion
A101: K3 | B101: K3 | C101: =C$21 -> Sonstige Angebote rpg (AZ Lektionen) | F101: 0 | G101: =G$21 -> 0.2290950745 | I101: 0 | K101: =$K$21 -> Eingabe: Anzahl Stunden der Anlässe, Faktor: 2 h pro Anlassstunde
A102: K4 | B102: K4 | C102: =C$22 -> Projekttage | F102: 0 | G102: =G$22 -> 1.5 | I102: 0 | K102: =$K$22 -> Eingabe: Anzahl Projekttage pro Jahr, Faktor: 1.5 AT pro Projekttag
A103: K5 | B103: K5 | C103: =C$23 -> Lager (AZ Tage) | F103: 0 | G103: =G$23 -> 1.5 | I103: 0 | K103: =$K$23 -> Eingabe: Anzahl Lagertage pro Jahr, Faktor: 1.5 AT pro Lagertag
A104: K6 | B104: K6 | C104: =C$24 -> Gemeindeferien (AZ Ferientage) | F104: 0 | G104: =G$24 -> 1.5 | I104: 0 | K104: =$K$24 -> Eingabe: Anzahl Ferientage pro Jahr, Faktor: 1.5 AT pro Ferientag
A105: K7 | B105: K7 | C105: =C$25 -> Besondere und übrige Aufgaben | F105: 0 | G105: =G$25 -> 0 | I105: 0 | K105: =K93 -> 0
A106: K8 | B106: K8 | C106: =C$26 -> … | F106: =D106+E106 -> 0 | G106: =G$26 -> 0 | I106: =F106*IF(ISBLANK(H106),G106,H106) -> 0
A107: K9 | B107: K9 | C107: =C$27 -> … | F107: 0 | G107: =G$27 -> 0 | I107: 0
A108: K10 | B108: K10 | C108: =C$28 -> … | F108: 0 | G108: =G$28 -> 0 | I108: 0
A109: K11 | B109: K11 | C109: =C$29 -> … | F109: 0 | G109: =G$29 -> 0 | I109: 0
A110: K12 | B110: K12 | C110: =C$30 -> … | F110: 0 | G110: =G$30 -> 0 | I110: 0
C112: Pfarrperson
A113: =CONCATENATE($D$112,B113) -> K0 | B113: =B97 -> K0 | C113: =$C$17 -> Arbeitsbereich Konfirmandenarbeit und rpg | D113: =$D$17 -> Anzahl | G113: =$G$17 -> Zeitbedarf in AT pro zugeteilte Grösse | I113: =$I$17 -> Summe Zeitbedarf in AT | J113: =$J$17 -> Bemerkung (Hauptverantwortung, Planung, konzeptioneller Ansatz) | K113: =$K$17 -> Erklärungen zu den Berechnung / Kalkulations-Faktoren
C114: =C98 -> 0 | D114: =$D$18 -> Ist | E114: =$E$18 -> Änderung | F114: =$F$18 -> Soll | G114: =$G$18 -> Ausgangs- wert | H114: =$H$18 -> eigener Faktor
A115: K1 | B115: =B99 -> K1 | C115: =C$19 -> Konfirmandenunterricht (AZ Lektionen) | F115: =D115+E115 -> 0 | G115: =G$19 -> 0.2290950745 | I115: =F115*IF(ISBLANK(H115),G115,H115) -> 0 | K115: =$K$19 -> Eingabe: Anzahl Lektionen pro Jahr à 60 Min., Faktor: 2 h pro 60 Min.-Lektion
A116: K2 | B116: K2 | C116: =C$20 -> Juki-Lektionen | F116: 0 | G116: =G$20 -> 0.2290950745 | I116: 0 | K116: =$K$20 -> Eingabe: Anzahl Lektionen pro Jahr à 60 Min., Faktor: 2 h pro 60 Min.-Lektion
A117: K3 | B117: K3 | C117: =C$21 -> Sonstige Angebote rpg (AZ Lektionen) | F117: 0 | G117: =G$21 -> 0.2290950745 | I117: 0 | K117: =$K$21 -> Eingabe: Anzahl Stunden der Anlässe, Faktor: 2 h pro Anlassstunde
A118: K4 | B118: K4 | C118: =C$22 -> Projekttage | F118: 0 | G118: =G$22 -> 1.5 | I118: 0 | K118: =$K$22 -> Eingabe: Anzahl Projekttage pro Jahr, Faktor: 1.5 AT pro Projekttag
A119: K5 | B119: K5 | C119: =C$23 -> Lager (AZ Tage) | F119: 0 | G119: =G$23 -> 1.5 | I119: 0 | K119: =$K$23 -> Eingabe: Anzahl Lagertage pro Jahr, Faktor: 1.5 AT pro Lagertag
A120: K6 | B120: K6 | C120: =C$24 -> Gemeindeferien (AZ Ferientage) | F120: 0 | G120: =G$24 -> 1.5 | I120: 0 | K120: =$K$24 -> Eingabe: Anzahl Ferientage pro Jahr, Faktor: 1.5 AT pro Ferientag
A121: K7 | B121: K7 | C121: =C$25 -> Besondere und übrige Aufgaben | F121: 0 | G121: =G$25 -> 0 | I121: 0 | K121: =K109 -> 0
A122: K8 | B122: K8 | C122: =C$26 -> … | F122: =D122+E122 -> 0 | G122: =G$26 -> 0 | I122: =F122*IF(ISBLANK(H122),G122,H122) -> 0
A123: K9 | B123: K9 | C123: =C$27 -> … | F123: 0 | G123: =G$27 -> 0 | I123: 0
A124: K10 | B124: K10 | C124: =C$28 -> … | F124: 0 | G124: =G$28 -> 0 | I124: 0
A125: K11 | B125: K11 | C125: =C$29 -> … | F125: 0 | G125: =G$29 -> 0 | I125: 0
A126: K12 | B126: K12 | C126: =C$30 -> … | F126: 0 | G126: =G$30 -> 0 | I126: 0
C128: Pfarrperson
A129: =CONCATENATE($D$128,B129) -> K0 | B129: =B113 -> K0 | C129: =$C$17 -> Arbeitsbereich Konfirmandenarbeit und rpg | D129: =$D$17 -> Anzahl | G129: =$G$17 -> Zeitbedarf in AT pro zugeteilte Grösse | I129: =$I$17 -> Summe Zeitbedarf in AT | J129: =$J$17 -> Bemerkung (Hauptverantwortung, Planung, konzeptioneller Ansatz) | K129: =$K$17 -> Erklärungen zu den Berechnung / Kalkulations-Faktoren
C130: =C114 -> 0 | D130: =$D$18 -> Ist | E130: =$E$18 -> Änderung | F130: =$F$18 -> Soll | G130: =$G$18 -> Ausgangs- wert | H130: =$H$18 -> eigener Faktor
A131: K1 | B131: =B115 -> K1 | C131: =C$19 -> Konfirmandenunterricht (AZ Lektionen) | F131: =D131+E131 -> 0 | G131: =G$19 -> 0.2290950745 | I131: =F131*IF(ISBLANK(H131),G131,H131) -> 0 | K131: =$K$19 -> Eingabe: Anzahl Lektionen pro Jahr à 60 Min., Faktor: 2 h pro 60 Min.-Lektion
A132: K2 | B132: K2 | C132: =C$20 -> Juki-Lektionen | F132: 0 | G132: =G$20 -> 0.2290950745 | I132: 0 | K132: =$K$20 -> Eingabe: Anzahl Lektionen pro Jahr à 60 Min., Faktor: 2 h pro 60 Min.-Lektion
A133: K3 | B133: K3 | C133: =C$21 -> Sonstige Angebote rpg (AZ Lektionen) | F133: 0 | G133: =G$21 -> 0.2290950745 | I133: 0 | K133: =$K$21 -> Eingabe: Anzahl Stunden der Anlässe, Faktor: 2 h pro Anlassstunde
A134: K4 | B134: K4 | C134: =C$22 -> Projekttage | F134: 0 | G134: =G$22 -> 1.5 | I134: 0 | K134: =$K$22 -> Eingabe: Anzahl Projekttage pro Jahr, Faktor: 1.5 AT pro Projekttag
A135: K5 | B135: K5 | C135: =C$23 -> Lager (AZ Tage) | F135: 0 | G135: =G$23 -> 1.5 | I135: 0 | K135: =$K$23 -> Eingabe: Anzahl Lagertage pro Jahr, Faktor: 1.5 AT pro Lagertag
A136: K6 | B136: K6 | C136: =C$24 -> Gemeindeferien (AZ Ferientage) | F136: 0 | G136: =G$24 -> 1.5 | I136: 0 | K136: =$K$24 -> Eingabe: Anzahl Ferientage pro Jahr, Faktor: 1.5 AT pro Ferientag
A137: K7 | B137: K7 | C137: =C$25 -> Besondere und übrige Aufgaben | F137: 0 | G137: =G$25 -> 0 | I137: 0 | K137: =K125 -> 0
A138: K8 | B138: K8 | C138: =C$26 -> … | F138: =D138+E138 -> 0 | G138: =G$26 -> 0 | I138: =F138*IF(ISBLANK(H138),G138,H138) -> 0
A139: K9 | B139: K9 | C139: =C$27 -> … | F139: 0 | G139: =G$27 -> 0 | I139: 0
A140: K10 | B140: K10 | C140: =C$28 -> … | F140: 0 | G140: =G$28 -> 0 | I140: 0
A141: K11 | B141: K11 | C141: =C$29 -> … | F141: 0 | G141: =G$29 -> 0 | I141: 0
A142: K12 | B142: K12 | C142: =C$30 -> … | F142: 0 | G142: =G$30 -> 0 | I142: 0
C144: Pfarrperson
A145: =CONCATENATE($D$144,B145) -> K0 | B145: =B129 -> K0 | C145: =$C$17 -> Arbeitsbereich Konfirmandenarbeit und rpg | D145: =$D$17 -> Anzahl | G145: =$G$17 -> Zeitbedarf in AT pro zugeteilte Grösse | I145: =$I$17 -> Summe Zeitbedarf in AT | J145: =$J$17 -> Bemerkung (Hauptverantwortung, Planung, konzeptioneller Ansatz) | K145: =$K$17 -> Erklärungen zu den Berechnung / Kalkulations-Faktoren
C146: =C130 -> 0 | D146: =$D$18 -> Ist | E146: =$E$18 -> Änderung | F146: =$F$18 -> Soll | G146: =$G$18 -> Ausgangs- wert | H146: =$H$18 -> eigener Faktor
A147: K1 | B147: =B131 -> K1 | C147: =C$19 -> Konfirmandenunterricht (AZ Lektionen) | F147: =D147+E147 -> 0 | G147: =G$19 -> 0.2290950745 | I147: =F147*IF(ISBLANK(H147),G147,H147) -> 0 | K147: =$K$19 -> Eingabe: Anzahl Lektionen pro Jahr à 60 Min., Faktor: 2 h pro 60 Min.-Lektion
A148: K2 | B148: K2 | C148: =C$20 -> Juki-Lektionen | F148: 0 | G148: =G$20 -> 0.2290950745 | I148: 0 | K148: =$K$20 -> Eingabe: Anzahl Lektionen pro Jahr à 60 Min., Faktor: 2 h pro 60 Min.-Lektion
A149: K3 | B149: K3 | C149: =C$21 -> Sonstige Angebote rpg (AZ Lektionen) | F149: 0 | G149: =G$21 -> 0.2290950745 | I149: 0 | K149: =$K$21 -> Eingabe: Anzahl Stunden der Anlässe, Faktor: 2 h pro Anlassstunde
A150: K4 | B150: K4 | C150: =C$22 -> Projekttage | F150: 0 | G150: =G$22 -> 1.5 | I150: 0 | K150: =$K$22 -> Eingabe: Anzahl Projekttage pro Jahr, Faktor: 1.5 AT pro Projekttag
A151: K5 | B151: K5 | C151: =C$23 -> Lager (AZ Tage) | F151: 0 | G151: =G$23 -> 1.5 | I151: 0 | K151: =$K$23 -> Eingabe: Anzahl Lagertage pro Jahr, Faktor: 1.5 AT pro Lagertag
A152: K6 | B152: K6 | C152: =C$24 -> Gemeindeferien (AZ Ferientage) | F152: 0 | G152: =G$24 -> 1.5 | I152: 0 | K152: =$K$24 -> Eingabe: Anzahl Ferientage pro Jahr, Faktor: 1.5 AT pro Ferientag
A153: K7 | B153: K7 | C153: =C$25 -> Besondere und übrige Aufgaben | F153: 0 | G153: =G$25 -> 0 | I153: 0 | K153: =K141 -> 0
A154: K8 | B154: K8 | C154: =C$26 -> … | F154: =D154+E154 -> 0 | G154: =G$26 -> 0 | I154: =F154*IF(ISBLANK(H154),G154,H154) -> 0
A155: K9 | B155: K9 | C155: =C$27 -> … | F155: 0 | G155: =G$27 -> 0 | I155: 0
A156: K10 | B156: K10 | C156: =C$28 -> … | F156: 0 | G156: =G$28 -> 0 | I156: 0
A157: K11 | B157: K11 | C157: =C$29 -> … | F157: 0 | G157: =G$29 -> 0 | I157: 0
A158: K12 | B158: K12 | C158: =C$30 -> … | F158: 0 | G158: =G$30 -> 0 | I158: 0
C160: Pfarrperson
A161: =CONCATENATE($D$160,B161) -> K0 | B161: =B145 -> K0 | C161: =$C$17 -> Arbeitsbereich Konfirmandenarbeit und rpg | D161: =$D$17 -> Anzahl | G161: =$G$17 -> Zeitbedarf in AT pro zugeteilte Grösse | I161: =$I$17 -> Summe Zeitbedarf in AT | J161: =$J$17 -> Bemerkung (Hauptverantwortung, Planung, konzeptioneller Ansatz) | K161: =$K$17 -> Erklärungen zu den Berechnung / Kalkulations-Faktoren
C162: =C146 -> 0 | D162: =$D$18 -> Ist | E162: =$E$18 -> Änderung | F162: =$F$18 -> Soll | G162: =$G$18 -> Ausgangs- wert | H162: =$H$18 -> eigener Faktor
A163: K1 | B163: =B147 -> K1 | C163: =C$19 -> Konfirmandenunterricht (AZ Lektionen) | F163: =D163+E163 -> 0 | G163: =G$19 -> 0.2290950745 | I163: =F163*IF(ISBLANK(H163),G163,H163) -> 0 | K163: =$K$19 -> Eingabe: Anzahl Lektionen pro Jahr à 60 Min., Faktor: 2 h pro 60 Min.-Lektion
A164: K2 | B164: K2 | C164: =C$20 -> Juki-Lektionen | F164: 0 | G164: =G$20 -> 0.2290950745 | I164: 0 | K164: =$K$20 -> Eingabe: Anzahl Lektionen pro Jahr à 60 Min., Faktor: 2 h pro 60 Min.-Lektion
A165: K3 | B165: K3 | C165: =C$21 -> Sonstige Angebote rpg (AZ Lektionen) | F165: 0 | G165: =G$21 -> 0.2290950745 | I165: 0 | K165: =$K$21 -> Eingabe: Anzahl Stunden der Anlässe, Faktor: 2 h pro Anlassstunde
A166: K4 | B166: K4 | C166: =C$22 -> Projekttage | F166: 0 | G166: =G$22 -> 1.5 | I166: 0 | K166: =$K$22 -> Eingabe: Anzahl Projekttage pro Jahr, Faktor: 1.5 AT pro Projekttag
A167: K5 | B167: K5 | C167: =C$23 -> Lager (AZ Tage) | F167: 0 | G167: =G$23 -> 1.5 | I167: 0 | K167: =$K$23 -> Eingabe: Anzahl Lagertage pro Jahr, Faktor: 1.5 AT pro Lagertag
A168: K6 | B168: K6 | C168: =C$24 -> Gemeindeferien (AZ Ferientage) | F168: 0 | G168: =G$24 -> 1.5 | I168: 0 | K168: =$K$24 -> Eingabe: Anzahl Ferientage pro Jahr, Faktor: 1.5 AT pro Ferientag
A169: K7 | B169: K7 | C169: =C$25 -> Besondere und übrige Aufgaben | F169: 0 | G169: =G$25 -> 0 | I169: 0 | K169: =K157 -> 0
A170: K8 | B170: K8 | C170: =C$26 -> … | F170: =D170+E170 -> 0 | G170: =G$26 -> 0 | I170: =F170*IF(ISBLANK(H170),G170,H170) -> 0
A171: K9 | B171: K9 | C171: =C$27 -> … | F171: 0 | G171: =G$27 -> 0 | I171: 0
A172: K10 | B172: K10 | C172: =C$28 -> … | F172: 0 | G172: =G$28 -> 0 | I172: 0
A173: K11 | B173: K11 | C173: =C$29 -> … | F173: 0 | G173: =G$29 -> 0 | I173: 0
A174: K12 | B174: K12 | C174: =C$30 -> … | F174: 0 | G174: =G$30 -> 0 | I174: 0
C181: Erwachsenenbildung
C182: Pfarrpersonen | D182: =Pfarrpersonen!A8 -> Gesamtpensum
A183: =CONCATENATE($D$182,B183) -> GesamtpensumE0 | B183: E0 | C183: Arbeitsbereich Erwachsenenbildung | D183: =$D$17 -> Anzahl | G183: Zeitbedarf in AT pro zugeteilte Grösse | I183: Summe Zeitbedarf in AT | J183: Bemerkung (Hauptverantwortung, Planung, konzeptioneller Ansatz) | K183: Erklärungen zu den Berechnung / Kalkulations-Faktoren
D184: =$D$18 -> Ist | E184: =$E$18 -> Änderung | F184: =$F$18 -> Soll | G184: Ausgangs- wert | H184: eigener Faktor | I184: =SUM(I185:I194) -> 0
A185: =CONCATENATE($D$182,B185) -> GesamtpensumE1 | B185: E1 | C185: Veranstaltungen (Bildungsveranstaltungen, Ausflüge, Pilgern, AZ Stunden der Anlässe) | F185: =D185+E185 -> 0 | G185: =1.5/8.73 -> 0.1718213058 | I185: =F185*IF(ISBLANK(H185),G185,H185) -> 0 | K185: Eingabe: Anzahl Stunden der Anlässe, Faktor: 1.5h pro Anlassstunde
A186: GesamtpensumE2 | B186: E2 | C186: Gemeindereisen (Tagesausflüge, Tagesreisen, AZ Reisetage) | F186: 0 | G186: 1.5 | I186: 0 | K186: Eingabe: Anzahl Reisetage pro Jahr, Faktor: 1.5 AT pro Reisetag
A187: GesamtpensumE3 | B187: E3 | C187: Gemeindeferien (Mehrtägige Reisen, AZ Reisetage) | F187: 0 | G187: 1.5 | I187: 0 | K187: Eingabe: Anzahl Ferientage pro Jahr, Faktor: 1.5 AT pro Ferientag
A188: GesamtpensumE4 | B188: E4 | C188: Gruppen/Freiwillige | F188: 0 | I188: 0
A189: GesamtpensumE5 | B189: E5 | C189: Besondere und übrige Aufgaben | F189: 0 | I189: 0
A190: GesamtpensumE6 | B190: E6 | C190: … | F190: 0 | I190: =F190*IF(ISBLANK(H190),G190,H190) -> 0
A191: GesamtpensumE7 | B191: E7 | C191: … | F191: =D191+E191 -> 0 | I191: 0
A192: GesamtpensumE8 | B192: E8 | C192: … | F192: 0 | I192: =F192*IF(ISBLANK(H192),G192,H192) -> 0
A193: GesamtpensumE9 | B193: E9 | C193: … | F193: 0 | I193: =F193*IF(ISBLANK(H193),G193,H193) -> 0
A194: GesamtpensumE10 | B194: E10 | C194: … | F194: 0 | I194: 0
C196: =Pfarrpersonen!A8 -> Gesamtpensum | D196: =Pfarrpersonen!A9 -> Delta
A197: =CONCATENATE($D$196,B197) -> DeltaE0 | B197: =B183 -> E0 | C197: =$C$183 -> Arbeitsbereich Erwachsenenbildung | D197: =$D$17 -> Anzahl | G197: =$G$183 -> Zeitbedarf in AT pro zugeteilte Grösse | I197: =$I$183 -> Summe Zeitbedarf in AT | J197: =$J$183 -> Bemerkung (Hauptverantwortung, Planung, konzeptioneller Ansatz) | K197: =$K$183 -> Erklärungen zu den Berechnung / Kalkulations-Faktoren
B198: 0 | D198: =$D$18 -> Ist | E198: =$E$18 -> Änderung | F198: =$F$18 -> Soll | G198: =$G$184 -> Ausgangs- wert | H198: =$H$184 -> eigener Faktor | K198: =$K$184 -> 0
A199: =CONCATENATE($D$196,B199) -> DeltaE1 | B199: E1 | C199: =C$185 -> Veranstaltungen (Bildungsveranstaltungen, Ausflüge, Pilgern, AZ Stunden der Anlässe) | F199: =D199+E199 -> 0 | G199: =G$185 -> 0.1718213058 | I199: =+I185-I213-I227-I241-I255-I269-I283-I297-I311 -> 0 | K199: =$K$185 -> Eingabe: Anzahl Stunden der Anlässe, Faktor: 1.5h pro Anlassstunde
A200: DeltaE2 | B200: E2 | C200: =C$186 -> Gemeindereisen (Tagesausflüge, Tagesreisen, AZ Reisetage) | F200: 0 | G200: =G$186 -> 1.5 | I200: =+I186-I214-I228-I242-I256-I270-I284-I298-I312 -> 0 | K200: =$K$186 -> Eingabe: Anzahl Reisetage pro Jahr, Faktor: 1.5 AT pro Reisetag
A201: DeltaE3 | B201: E3 | C201: =C$187 -> Gemeindeferien (Mehrtägige Reisen, AZ Reisetage) | F201: 0 | G201: =G$187 -> 1.5 | I201: 0 | K201: =$K$187 -> Eingabe: Anzahl Ferientage pro Jahr, Faktor: 1.5 AT pro Ferientag
A202: DeltaE4 | B202: E4 | C202: =C$188 -> Gruppen/Freiwillige | F202: 0 | G202: =G$188 -> 0 | I202: 0 | K202: =$K$188 -> 0
A203: DeltaE5 | B203: E5 | C203: =C$189 -> Besondere und übrige Aufgaben | F203: 0 | G203: =G$189 -> 0 | I203: 0 | K203: =$K$189 -> 0
A204: DeltaE6 | B204: E6 | C204: =C$190 -> … | F204: 0 | G204: =G$190 -> 0 | I204: 0 | K204: =$K$194 -> 0
A205: DeltaE7 | B205: E7 | C205: =C$191 -> … | F205: =D205+E205 -> 0 | G205: =G$191 -> 0 | I205: 0 | K205: =$K$194 -> 0
A206: DeltaE8 | B206: E8 | C206: =C$192 -> … | F206: 0 | G206: =G$192 -> 0 | I206: 0 | K206: =$K$194 -> 0
A207: DeltaE9 | B207: E9 | C207: =C$193 -> … | F207: 0 | G207: =G$193 -> 0 | I207: 0 | K207: =$K$194 -> 0
A208: DeltaE10 | B208: E10 | C208: =C$194 -> … | F208: 0 | G208: =G$194 -> 0 | I208: 0 | K208: =$K$194 -> 0
C210: Pfarrperson
A211: =CONCATENATE($D$210,B211) -> E0 | B211: =B197 -> E0 | C211: =$C$183 -> Arbeitsbereich Erwachsenenbildung | D211: =$D$17 -> Anzahl | G211: =$G$183 -> Zeitbedarf in AT pro zugeteilte Grösse | I211: =$I$183 -> Summe Zeitbedarf in AT | J211: =$J$183 -> Bemerkung (Hauptverantwortung, Planung, konzeptioneller Ansatz) | K211: =$K$183 -> Erklärungen zu den Berechnung / Kalkulations-Faktoren
A212: 0 | B212: 0 | D212: =$D$18 -> Ist | E212: =$E$18 -> Änderung | F212: =$F$18 -> Soll | G212: =$G$184 -> Ausgangs- wert | H212: =$H$184 -> eigener Faktor | K212: =$K$184 -> 0
A213: E1 | B213: E1 | C213: =C$185 -> Veranstaltungen (Bildungsveranstaltungen, Ausflüge, Pilgern, AZ Stunden der Anlässe) | F213: =D213+E213 -> 0 | G213: =G$185 -> 0.1718213058 | I213: =F213*IF(ISBLANK(H213),G213,H213) -> 0 | K213: =$K$185 -> Eingabe: Anzahl Stunden der Anlässe, Faktor: 1.5h pro Anlassstunde
A214: E2 | B214: E2 | C214: =C$186 -> Gemeindereisen (Tagesausflüge, Tagesreisen, AZ Reisetage) | F214: 0 | G214: =G$186 -> 1.5 | I214: 0 | K214: =$K$186 -> Eingabe: Anzahl Reisetage pro Jahr, Faktor: 1.5 AT pro Reisetag
A215: E3 | B215: E3 | C215: =C$187 -> Gemeindeferien (Mehrtägige Reisen, AZ Reisetage) | F215: 0 | G215: =G$187 -> 1.5 | I215: 0 | K215: =$K$187 -> Eingabe: Anzahl Ferientage pro Jahr, Faktor: 1.5 AT pro Ferientag
A216: E4 | B216: E4 | C216: =C$188 -> Gruppen/Freiwillige | F216: 0 | G216: =G$188 -> 0 | I216: 0 | K216: =$K$188 -> 0
A217: E5 | B217: E5 | C217: =C$189 -> Besondere und übrige Aufgaben | F217: 0 | G217: =G$189 -> 0 | I217: 0 | K217: =$K$189 -> 0
A218: E6 | B218: E6 | C218: =C$190 -> … | F218: 0 | G218: =G$190 -> 0 | I218: 0 | K218: =$K$194 -> 0
A219: E7 | B219: E7 | C219: =C$191 -> … | F219: =D219+E219 -> 0 | G219: =G$191 -> 0 | I219: =F219*IF(ISBLANK(H219),G219,H219) -> 0 | K219: =$K$194 -> 0
A220: E8 | B220: E8 | C220: =C$192 -> … | F220: 0 | G220: =G$192 -> 0 | I220: 0 | K220: =$K$194 -> 0
A221: E9 | B221: E9 | C221: =C$193 -> … | F221: 0 | G221: =G$193 -> 0 | I221: 0 | K221: =$K$194 -> 0
A222: E10 | B222: E10 | C222: =C$194 -> … | F222: 0 | G222: =G$194 -> 0 | I222: 0 | K222: =$K$194 -> 0
C224: Pfarrperson
A225: =CONCATENATE($D$224,B225) -> E0 | B225: =B211 -> E0 | C225: =$C$183 -> Arbeitsbereich Erwachsenenbildung | D225: =$D$17 -> Anzahl | G225: =$G$183 -> Zeitbedarf in AT pro zugeteilte Grösse | I225: =$I$183 -> Summe Zeitbedarf in AT | J225: =$J$183 -> Bemerkung (Hauptverantwortung, Planung, konzeptioneller Ansatz) | K225: =$K$183 -> Erklärungen zu den Berechnung / Kalkulations-Faktoren
A226: 0 | B226: 0 | D226: =$D$18 -> Ist | E226: =$E$18 -> Änderung | F226: =$F$18 -> Soll | G226: =$G$184 -> Ausgangs- wert | H226: =$H$184 -> eigener Faktor | K226: =$K$184 -> 0
A227: E1 | B227: E1 | C227: =C$185 -> Veranstaltungen (Bildungsveranstaltungen, Ausflüge, Pilgern, AZ Stunden der Anlässe) | F227: =D227+E227 -> 0 | G227: =G$185 -> 0.1718213058 | I227: =F227*IF(ISBLANK(H227),G227,H227) -> 0 | K227: =$K$185 -> Eingabe: Anzahl Stunden der Anlässe, Faktor: 1.5h pro Anlassstunde
A228: E2 | B228: E2 | C228: =C$186 -> Gemeindereisen (Tagesausflüge, Tagesreisen, AZ Reisetage) | F228: 0 | G228: =G$186 -> 1.5 | I228: 0 | K228: =$K$186 -> Eingabe: Anzahl Reisetage pro Jahr, Faktor: 1.5 AT pro Reisetag
A229: E3 | B229: E3 | C229: =C$187 -> Gemeindeferien (Mehrtägige Reisen, AZ Reisetage) | F229: 0 | G229: =G$187 -> 1.5 | I229: 0 | K229: =$K$187 -> Eingabe: Anzahl Ferientage pro Jahr, Faktor: 1.5 AT pro Ferientag
A230: E4 | B230: E4 | C230: =C$188 -> Gruppen/Freiwillige | F230: 0 | G230: =G$188 -> 0 | I230: 0 | K230: =$K$188 -> 0
A231: E5 | B231: E5 | C231: =C$189 -> Besondere und übrige Aufgaben | F231: 0 | G231: =G$189 -> 0 | I231: 0 | K231: =$K$189 -> 0
A232: E6 | B232: E6 | C232: =C$190 -> … | F232: 0 | G232: =G$190 -> 0 | I232: 0 | K232: =$K$194 -> 0
... 82 more rows

Sheet A&V_Aufb.&Leit.
C1: Pfarramtliche Aufgaben- und Verantwortungsbereiche im Handlungsfeld Gemeindeaufbau und Leitung
C15: Gemeindeleitung
C16: Pfarrpersonen | D16: =Pfarrpersonen!A8 -> Gesamtpensum
A17: =CONCATENATE($D$16,B17) -> GesamtpensumG0 | B17: G0 | C17: Arbeitsbereich Gemeindeleitung | D17: Anzahl Sitzungen | G17: Zeitbedarf in AT pro zugeteilte Grösse | I17: Summe Zeitbedarf in AT | J17: Bemerkung (Hauptverantwortung, Planung, konzeptioneller Ansatz) | K17: Erklärungen zu den Berechnung / Kalkulations-Faktoren
D18: Ist | E18: Änderung | F18: Soll | G18: Ausgangs- wert | H18: eigener Faktor | I18: =SUM(I19:I30) -> 0
A19: =CONCATENATE($D$16,B19) -> GesamtpensumG1 | B19: G1 | C19: Sitzungen Pfarrkonvent | F19: =D19+E19 -> 0 | G19: =2/8.73 -> 0.2290950745 | I19: =F19*IF(ISBLANK(H19),G19,H19) -> 0 | K19: Eingabe: Anzahl Sitzungen pro Jahr, Faktor: 2 h pro Sitzung
A20: GesamtpensumG2 | B20: G2 | C20: Leitung Pfarrkonvent (in AT) | F20: 0 | G20: =1 -> 1 | I20: 0 | K20: Geschätzter Aufwand in Tagen pro Jahr
A21: GesamtpensumG3 | B21: G3 | C21: Vertretung des Pfarrkonvents in der KP | F21: 0 | G21: =3/8.73 -> 0.3436426117 | I21: 0 | K21: Eingabe: Anzahl Sitzungen pro Jahr, Faktor: 3 h pro Sitzung
A22: GesamtpensumG4 | B22: G4 | C22: Sitzungen Gemeindekonvent | F22: 0 | G22: =4/8.73 -> 0.4581901489 | I22: 0 | K22: Eingabe: Anzahl Sitzungen pro Jahr, Faktor: 4 h pro Sitzung
A23: GesamtpensumG5 | B23: G5 | C23: Kommissionen | F23: 0 | G23: =1.5/8.73 -> 0.1718213058 | I23: 0 | K23: Eingabe: Anzahl Sitzungen pro Jahr, Faktor: 1.5 h pro Sitzung
A24: GesamtpensumG6 | B24: G6 | C24: Arbeitsgruppen | F24: 0 | G24: =1.5/8.73 -> 0.1718213058 | I24: 0 | K24: Eingabe: Anzahl Sitzungen pro Jahr, Faktor: 1.5 h pro Sitzung
A25: GesamtpensumG7 | B25: G7 | C25: Schwerpunktleitung | F25: 0 | I25: =F25*IF(ISBLANK(H25),G25,H25) -> 0
A26: GesamtpensumG8 | B26: G8 | C26: … | F26: 0 | I26: =F26*IF(ISBLANK(H26),G26,H26) -> 0
A27: GesamtpensumG9 | B27: G9 | C27: … | F27: =D27+E27 -> 0 | I27: 0
A28: GesamtpensumG10 | B28: G10 | C28: … | F28: 0 | I28: =F28*IF(ISBLANK(H28),G28,H28) -> 0
A29: GesamtpensumG11 | B29: G11 | C29: … | F29: 0 | I29: =F29*IF(ISBLANK(H29),G29,H29) -> 0
A30: GesamtpensumG12 | B30: G12 | C30: … | F30: 0 | I30: 0
C32: =Pfarrpersonen!A8 -> Gesamtpensum | D32: =Pfarrpersonen!A9 -> Delta
A33: =CONCATENATE($D$32,B33) -> DeltaG0 | B33: =B17 -> G0 | C33: =$C$17 -> Arbeitsbereich Gemeindeleitung | D33: =$D$17 -> Anzahl Sitzungen | G33: =$G$17 -> Zeitbedarf in AT pro zugeteilte Grösse | I33: =$I$17 -> Summe Zeitbedarf in AT | J33: =$J$17 -> Bemerkung (Hauptverantwortung, Planung, konzeptioneller Ansatz) | K33: =$K$17 -> Erklärungen zu den Berechnung / Kalkulations-Faktoren
B34: 0 | C34: =$C$18 -> 0 | D34: =$D$18 -> Ist | E34: =$E$18 -> Änderung | F34: =$F$18 -> Soll | G34: =$G$18 -> Ausgangs- wert | H34: =$H$18 -> eigener Faktor | J34: =$J$18 -> 0 | K34: =$K$18 -> 0
A35: =CONCATENATE($D$32,B35) -> DeltaG1 | B35: G1 | C35: =C$19 -> Sitzungen Pfarrkonvent | F35: =D35+E35 -> 0 | G35: =G$19 -> 0.2290950745 | I35: =+I19-I51-I67-I83-I99-I115-I131-I147-I163 -> 0 | K35: =$K$19 -> Eingabe: Anzahl Sitzungen pro Jahr, Faktor: 2 h pro Sitzung
A36: DeltaG2 | B36: G2 | C36: =C$20 -> Leitung Pfarrkonvent (in AT) | F36: 0 | G36: =G$20 -> 1 | I36: =+I20-I52-I68-I84-I100-I116-I132-I148-I164 -> 0 | K36: =$K$20 -> Geschätzter Aufwand in Tagen pro Jahr
A37: DeltaG3 | B37: G3 | C37: =C$21 -> Vertretung des Pfarrkonvents in der KP | F37: 0 | G37: =G$21 -> 0.3436426117 | I37: 0 | K37: =$K$21 -> Eingabe: Anzahl Sitzungen pro Jahr, Faktor: 3 h pro Sitzung
A38: DeltaG4 | B38: G4 | C38: =C$22 -> Sitzungen Gemeindekonvent | F38: 0 | G38: =G$22 -> 0.4581901489 | I38: 0 | K38: =$K$22 -> Eingabe: Anzahl Sitzungen pro Jahr, Faktor: 4 h pro Sitzung
A39: DeltaG5 | B39: G5 | C39: =C$23 -> Kommissionen | F39: 0 | G39: =G$23 -> 0.1718213058 | I39: 0 | K39: =$K$23 -> Eingabe: Anzahl Sitzungen pro Jahr, Faktor: 1.5 h pro Sitzung
A40: DeltaG6 | B40: =B24 -> G6 | C40: =C$24 -> Arbeitsgruppen | F40: 0 | G40: =G$24 -> 0.1718213058 | I40: 0 | K40: =$K$24 -> Eingabe: Anzahl Sitzungen pro Jahr, Faktor: 1.5 h pro Sitzung
A41: DeltaG7 | B41: G7 | C41: =C$25 -> Schwerpunktleitung | F41: 0 | G41: =G$25 -> 0 | I41: 0 | K41: =$K$25 -> 0
A42: DeltaG8 | B42: G8 | C42: =C$26 -> … | F42: =D42+E42 -> 0 | G42: =G$26 -> 0 | I42: 0 | K42: =$K$29 -> 0
A43: DeltaG9 | B43: G9 | C43: =C$27 -> … | F43: =D43+E43 -> 0 | G43: =G$27 -> 0 | I43: 0 | K43: =$K$30 -> 0
A44: DeltaG10 | B44: G10 | C44: =C$28 -> … | F44: 0 | G44: =G$28 -> 0 | I44: 0 | K44: =$K$30 -> 0
A45: DeltaG11 | B45: G11 | C45: =C$29 -> … | F45: 0 | G45: =G$29 -> 0 | I45: 0 | K45: =$K$29 -> 0
A46: DeltaG12 | B46: G12 | C46: =C$30 -> … | F46: 0 | G46: =G$30 -> 0 | I46: 0 | K46: =$K$30 -> 0
K47: =K31 -> 0
C48: Pfarrperson
A49: =CONCATENATE($D$48,B49) -> G0 | B49: =B33 -> G0 | C49: =$C$17 -> Arbeitsbereich Gemeindeleitung | D49: =$D$17 -> Anzahl Sitzungen | G49: =$G$17 -> Zeitbedarf in AT pro zugeteilte Grösse | I49: =$I$17 -> Summe Zeitbedarf in AT | J49: =$J$17 -> Bemerkung (Hauptverantwortung, Planung, konzeptioneller Ansatz) | K49: =$K$17 -> Erklärungen zu den Berechnung / Kalkulations-Faktoren
A50: 0 | B50: 0 | C50: =$C$18 -> 0 | D50: =$D$18 -> Ist | E50: =$E$18 -> Änderung | F50: =$F$18 -> Soll | G50: =$G$18 -> Ausgangs- wert | H50: =$H$18 -> eigener Faktor | J50: =$J$18 -> 0 | K50: =$K$18 -> 0
A51: G1 | B51: G1 | C51: =C$19 -> Sitzungen Pfarrkonvent | F51: =D51+E51 -> 0 | G51: =G$19 -> 0.2290950745 | I51: =F51*IF(ISBLANK(H51),G51,H51) -> 0 | K51: =$K$19 -> Eingabe: Anzahl Sitzungen pro Jahr, Faktor: 2 h pro Sitzung
A52: G2 | B52: G2 | C52: =C$20 -> Leitung Pfarrkonvent (in AT) | F52: 0 | G52: =G$20 -> 1 | I52: 0 | K52: =$K$20 -> Geschätzter Aufwand in Tagen pro Jahr
A53: G3 | B53: G3 | C53: =C$21 -> Vertretung des Pfarrkonvents in der KP | F53: 0 | G53: =G$21 -> 0.3436426117 | I53: 0 | K53: =$K$21 -> Eingabe: Anzahl Sitzungen pro Jahr, Faktor: 3 h pro Sitzung
A54: G4 | B54: G4 | C54: =C$22 -> Sitzungen Gemeindekonvent | F54: 0 | G54: =G$22 -> 0.4581901489 | I54: 0 | K54: =$K$22 -> Eingabe: Anzahl Sitzungen pro Jahr, Faktor: 4 h pro Sitzung
A55: G5 | B55: G5 | C55: =C$23 -> Kommissionen | F55: 0 | G55: =G$23 -> 0.1718213058 | I55: 0 | K55: =$K$23 -> Eingabe: Anzahl Sitzungen pro Jahr, Faktor: 1.5 h pro Sitzung
A56: G6 | B56: G6 | C56: =C$24 -> Arbeitsgruppen | F56: 0 | G56: =G$24 -> 0.1718213058 | I56: 0 | K56: =$K$24 -> Eingabe: Anzahl Sitzungen pro Jahr, Faktor: 1.5 h pro Sitzung
A57: G7 | B57: G7 | C57: =C$25 -> Schwerpunktleitung | F57: 0 | G57: =G$25 -> 0 | I57: 0 | K57: =$K$25 -> 0
A58: G8 | B58: G8 | C58: =C$26 -> … | F58: 0 | G58: =G$26 -> 0 | I58: 0 | K58: =$K$29 -> 0
A59: G9 | B59: G9 | C59: =C$27 -> … | F59: =D59+E59 -> 0 | G59: =G$27 -> 0 | I59: 0 | K59: =$K$29 -> 0
A60: G10 | B60: G10 | C60: =C$28 -> … | F60: 0 | G60: =G$28 -> 0 | I60: 0 | K60: =$K$30 -> 0
A61: G11 | B61: G11 | C61: =C$29 -> … | F61: 0 | G61: =G$29 -> 0 | I61: 0 | K61: =$K$29 -> 0
A62: G12 | B62: G12 | C62: =C$30 -> … | F62: 0 | G62: =G$30 -> 0 | I62: 0 | K62: =$K$30 -> 0
K63: =K47 -> 0
C64: Pfarrperson
A65: =CONCATENATE($D$64,B65) -> G0 | B65: =B49 -> G0 | C65: =$C$17 -> Arbeitsbereich Gemeindeleitung | D65: =$D$17 -> Anzahl Sitzungen | G65: =$G$17 -> Zeitbedarf in AT pro zugeteilte Grösse | I65: =$I$17 -> Summe Zeitbedarf in AT | J65: =$J$17 -> Bemerkung (Hauptverantwortung, Planung, konzeptioneller Ansatz) | K65: =$K$17 -> Erklärungen zu den Berechnung / Kalkulations-Faktoren
A66: 0 | B66: 0 | C66: =$C$18 -> 0 | D66: =$D$18 -> Ist | E66: =$E$18 -> Änderung | F66: =$F$18 -> Soll | G66: =$G$18 -> Ausgangs- wert | H66: =$H$18 -> eigener Faktor | J66: =$J$18 -> 0 | K66: =$K$18 -> 0
A67: G1 | B67: G1 | C67: =C$19 -> Sitzungen Pfarrkonvent | F67: =D67+E67 -> 0 | G67: =G$19 -> 0.2290950745 | I67: =F67*IF(ISBLANK(H67),G67,H67) -> 0 | K67: =$K$19 -> Eingabe: Anzahl Sitzungen pro Jahr, Faktor: 2 h pro Sitzung
A68: G2 | B68: G2 | C68: =C$20 -> Leitung Pfarrkonvent (in AT) | F68: 0 | G68: =G$20 -> 1 | I68: 0 | K68: =$K$20 -> Geschätzter Aufwand in Tagen pro Jahr
A69: G3 | B69: G3 | C69: =C$21 -> Vertretung des Pfarrkonvents in der KP | F69: 0 | G69: =G$21 -> 0.3436426117 | I69: 0 | K69: =$K$21 -> Eingabe: Anzahl Sitzungen pro Jahr, Faktor: 3 h pro Sitzung
A70: G4 | B70: G4 | C70: =C$22 -> Sitzungen Gemeindekonvent | F70: 0 | G70: =G$22 -> 0.4581901489 | I70: 0 | K70: =$K$22 -> Eingabe: Anzahl Sitzungen pro Jahr, Faktor: 4 h pro Sitzung
A71: G5 | B71: G5 | C71: =C$23 -> Kommissionen | F71: 0 | G71: =G$23 -> 0.1718213058 | I71: 0 | K71: =$K$23 -> Eingabe: Anzahl Sitzungen pro Jahr, Faktor: 1.5 h pro Sitzung
A72: G6 | B72: G6 | C72: =C$24 -> Arbeitsgruppen | F72: 0 | G72: =G$24 -> 0.1718213058 | I72: 0 | K72: =$K$24 -> Eingabe: Anzahl Sitzungen pro Jahr, Faktor: 1.5 h pro Sitzung
A73: G7 | B73: G7 | C73: =C$25 -> Schwerpunktleitung | F73: 0 | G73: =G$25 -> 0 | I73: 0 | K73: =$K$25 -> 0
A74: G8 | B74: G8 | C74: =C$26 -> … | F74: 0 | G74: =G$26 -> 0 | I74: 0 | K74: =$K$29 -> 0
A75: G9 | B75: G9 | C75: =C$27 -> … | F75: =D75+E75 -> 0 | G75: =G$27 -> 0 | I75: 0 | K75: =$K$29 -> 0
A76: G10 | B76: G10 | C76: =C$28 -> … | F76: 0 | G76: =G$28 -> 0 | I76: 0 | K76: =$K$30 -> 0
A77: G11 | B77: G11 | C77: =C$29 -> … | F77: 0 | G77: =G$29 -> 0 | I77: 0 | K77: =$K$29 -> 0
A78: G12 | B78: G12 | C78: =C$30 -> … | F78: 0 | G78: =G$30 -> 0 | I78: 0 | K78: =$K$30 -> 0
K79: =K63 -> 0
C80: Pfarrperson
A81: =CONCATENATE($D$80,B81) -> G0 | B81: =B65 -> G0 | C81: =$C$17 -> Arbeitsbereich Gemeindeleitung | D81: =$D$17 -> Anzahl Sitzungen | G81: =$G$17 -> Zeitbedarf in AT pro zugeteilte Grösse | I81: =$I$17 -> Summe Zeitbedarf in AT | J81: =$J$17 -> Bemerkung (Hauptverantwortung, Planung, konzeptioneller Ansatz) | K81: =$K$17 -> Erklärungen zu den Berechnung / Kalkulations-Faktoren
A82: 0 | B82: 0 | C82: =$C$18 -> 0 | D82: =$D$18 -> Ist | E82: =$E$18 -> Änderung | F82: =$F$18 -> Soll | G82: =$G$18 -> Ausgangs- wert | H82: =$H$18 -> eigener Faktor | J82: =$J$18 -> 0 | K82: =$K$18 -> 0
A83: G1 | B83: G1 | C83: =C$19 -> Sitzungen Pfarrkonvent | F83: =D83+E83 -> 0 | G83: =G$19 -> 0.2290950745 | I83: =F83*IF(ISBLANK(H83),G83,H83) -> 0 | K83: =$K$19 -> Eingabe: Anzahl Sitzungen pro Jahr, Faktor: 2 h pro Sitzung
A84: G2 | B84: G2 | C84: =C$20 -> Leitung Pfarrkonvent (in AT) | F84: 0 | G84: =G$20 -> 1 | I84: 0 | K84: =$K$20 -> Geschätzter Aufwand in Tagen pro Jahr
A85: G3 | B85: G3 | C85: =C$21 -> Vertretung des Pfarrkonvents in der KP | F85: 0 | G85: =G$21 -> 0.3436426117 | I85: 0 | K85: =$K$21 -> Eingabe: Anzahl Sitzungen pro Jahr, Faktor: 3 h pro Sitzung
A86: G4 | B86: G4 | C86: =C$22 -> Sitzungen Gemeindekonvent | F86: 0 | G86: =G$22 -> 0.4581901489 | I86: 0 | K86: =$K$22 -> Eingabe: Anzahl Sitzungen pro Jahr, Faktor: 4 h pro Sitzung
A87: G5 | B87: G5 | C87: =C$23 -> Kommissionen | F87: 0 | G87: =G$23 -> 0.1718213058 | I87: 0 | K87: =$K$23 -> Eingabe: Anzahl Sitzungen pro Jahr, Faktor: 1.5 h pro Sitzung
A88: G6 | B88: G6 | C88: =C$24 -> Arbeitsgruppen | F88: 0 | G88: =G$24 -> 0.1718213058 | I88: 0 | K88: =$K$24 -> Eingabe: Anzahl Sitzungen pro Jahr, Faktor: 1.5 h pro Sitzung
A89: G7 | B89: G7 | C89: =C$25 -> Schwerpunktleitung | F89: 0 | G89: =G$25 -> 0 | I89: 0 | K89: =$K$25 -> 0
A90: G8 | B90: G8 | C90: =C$26 -> … | F90: 0 | G90: =G$26 -> 0 | I90: 0 | K90: =$K$29 -> 0
A91: G9 | B91: G9 | C91: =C$27 -> … | F91: =D91+E91 -> 0 | G91: =G$27 -> 0 | I91: 0 | K91: =$K$29 -> 0
A92: G10 | B92: G10 | C92: =C$28 -> … | F92: 0 | G92: =G$28 -> 0 | I92: 0 | K92: =$K$30 -> 0
A93: G11 | B93: G11 | C93: =C$29 -> … | F93: 0 | G93: =G$29 -> 0 | I93: 0 | K93: =$K$29 -> 0
A94: G12 | B94: G12 | C94: =C$30 -> … | F94: 0 | G94: =G$30 -> 0 | I94: 0 | K94: =$K$30 -> 0
K95: =K79 -> 0
C96: Pfarrperson
A97: =CONCATENATE($D$96,B97) -> G0 | B97: =B81 -> G0 | C97: =$C$17 -> Arbeitsbereich Gemeindeleitung | D97: =$D$17 -> Anzahl Sitzungen | G97: =$G$17 -> Zeitbedarf in AT pro zugeteilte Grösse | I97: =$I$17 -> Summe Zeitbedarf in AT | J97: =$J$17 -> Bemerkung (Hauptverantwortung, Planung, konzeptioneller Ansatz) | K97: =$K$17 -> Erklärungen zu den Berechnung / Kalkulations-Faktoren
A98: 0 | B98: 0 | C98: =$C$18 -> 0 | D98: =$D$18 -> Ist | E98: =$E$18 -> Änderung | F98: =$F$18 -> Soll | G98: =$G$18 -> Ausgangs- wert | H98: =$H$18 -> eigener Faktor | J98: =$J$18 -> 0 | K98: =$K$18 -> 0
A99: G1 | B99: G1 | C99: =C$19 -> Sitzungen Pfarrkonvent | F99: =D99+E99 -> 0 | G99: =G$19 -> 0.2290950745 | I99: =F99*IF(ISBLANK(H99),G99,H99) -> 0 | K99: =$K$19 -> Eingabe: Anzahl Sitzungen pro Jahr, Faktor: 2 h pro Sitzung
A100: G2 | B100: G2 | C100: =C$20 -> Leitung Pfarrkonvent (in AT) | F100: 0 | G100: =G$20 -> 1 | I100: 0 | K100: =$K$20 -> Geschätzter Aufwand in Tagen pro Jahr
A101: G3 | B101: G3 | C101: =C$21 -> Vertretung des Pfarrkonvents in der KP | F101: 0 | G101: =G$21 -> 0.3436426117 | I101: 0 | K101: =$K$21 -> Eingabe: Anzahl Sitzungen pro Jahr, Faktor: 3 h pro Sitzung
A102: G4 | B102: G4 | C102: =C$22 -> Sitzungen Gemeindekonvent | F102: 0 | G102: =G$22 -> 0.4581901489 | I102: 0 | K102: =$K$22 -> Eingabe: Anzahl Sitzungen pro Jahr, Faktor: 4 h pro Sitzung
A103: G5 | B103: G5 | C103: =C$23 -> Kommissionen | F103: 0 | G103: =G$23 -> 0.1718213058 | I103: 0 | K103: =$K$23 -> Eingabe: Anzahl Sitzungen pro Jahr, Faktor: 1.5 h pro Sitzung
A104: G6 | B104: G6 | C104: =C$24 -> Arbeitsgruppen | F104: 0 | G104: =G$24 -> 0.1718213058 | I104: 0 | K104: =$K$24 -> Eingabe: Anzahl Sitzungen pro Jahr, Faktor: 1.5 h pro Sitzung
A105: G7 | B105: G7 | C105: =C$25 -> Schwerpunktleitung | F105: 0 | G105: =G$25 -> 0 | I105: 0 | K105: =$K$25 -> 0
A106: G8 | B106: G8 | C106: =C$26 -> … | F106: 0 | G106: =G$26 -> 0 | I106: 0 | K106: =$K$29 -> 0
A107: G9 | B107: G9 | C107: =C$27 -> … | F107: =D107+E107 -> 0 | G107: =G$27 -> 0 | I107: 0 | K107: =$K$29 -> 0
A108: G10 | B108: G10 | C108: =C$28 -> … | F108: 0 | G108: =G$28 -> 0 | I108: 0 | K108: =$K$30 -> 0
A109: G11 | B109: G11 | C109: =C$29 -> … | F109: 0 | G109: =G$29 -> 0 | I109: 0 | K109: =$K$29 -> 0
A110: G12 | B110: G12 | C110: =C$30 -> … | F110: 0 | G110: =G$30 -> 0 | I110: 0 | K110: =$K$30 -> 0
K111: =K95 -> 0
C112: Pfarrperson
A113: =CONCATENATE($D$112,B113) -> G0 | B113: =B97 -> G0 | C113: =$C$17 -> Arbeitsbereich Gemeindeleitung | D113: =$D$17 -> Anzahl Sitzungen | G113: =$G$17 -> Zeitbedarf in AT pro zugeteilte Grösse | I113: =$I$17 -> Summe Zeitbedarf in AT | J113: =$J$17 -> Bemerkung (Hauptverantwortung, Planung, konzeptioneller Ansatz) | K113: =$K$17 -> Erklärungen zu den Berechnung / Kalkulations-Faktoren
A114: 0 | B114: 0 | C114: =$C$18 -> 0 | D114: =$D$18 -> Ist | E114: =$E$18 -> Änderung | F114: =$F$18 -> Soll | G114: =$G$18 -> Ausgangs- wert | H114: =$H$18 -> eigener Faktor | J114: =$J$18 -> 0 | K114: =$K$18 -> 0
A115: G1 | B115: G1 | C115: =C$19 -> Sitzungen Pfarrkonvent | F115: =D115+E115 -> 0 | G115: =G$19 -> 0.2290950745 | I115: =F115*IF(ISBLANK(H115),G115,H115) -> 0 | K115: =$K$19 -> Eingabe: Anzahl Sitzungen pro Jahr, Faktor: 2 h pro Sitzung
A116: G2 | B116: G2 | C116: =C$20 -> Leitung Pfarrkonvent (in AT) | F116: 0 | G116: =G$20 -> 1 | I116: 0 | K116: =$K$20 -> Geschätzter Aufwand in Tagen pro Jahr
A117: G3 | B117: G3 | C117: =C$21 -> Vertretung des Pfarrkonvents in der KP | F117: 0 | G117: =G$21 -> 0.3436426117 | I117: 0 | K117: =$K$21 -> Eingabe: Anzahl Sitzungen pro Jahr, Faktor: 3 h pro Sitzung
A118: G4 | B118: G4 | C118: =C$22 -> Sitzungen Gemeindekonvent | F118: 0 | G118: =G$22 -> 0.4581901489 | I118: 0 | K118: =$K$22 -> Eingabe: Anzahl Sitzungen pro Jahr, Faktor: 4 h pro Sitzung
A119: G5 | B119: G5 | C119: =C$23 -> Kommissionen | F119: 0 | G119: =G$23 -> 0.1718213058 | I119: 0 | K119: =$K$23 -> Eingabe: Anzahl Sitzungen pro Jahr, Faktor: 1.5 h pro Sitzung
A120: G6 | B120: G6 | C120: =C$24 -> Arbeitsgruppen | F120: 0 | G120: =G$24 -> 0.1718213058 | I120: 0 | K120: =$K$24 -> Eingabe: Anzahl Sitzungen pro Jahr, Faktor: 1.5 h pro Sitzung
A121: G7 | B121: G7 | C121: =C$25 -> Schwerpunktleitung | F121: 0 | G121: =G$25 -> 0 | I121: 0 | K121: =$K$25 -> 0
A122: G8 | B122: G8 | C122: =C$26 -> … | F122: 0 | G122: =G$26 -> 0 | I122: 0 | K122: =$K$29 -> 0
A123: G9 | B123: G9 | C123: =C$27 -> … | F123: =D123+E123 -> 0 | G123: =G$27 -> 0 | I123: 0 | K123: =$K$29 -> 0
A124: G10 | B124: G10 | C124: =C$28 -> … | F124: 0 | G124: =G$28 -> 0 | I124: 0 | K124: =$K$30 -> 0
A125: G11 | B125: G11 | C125: =C$29 -> … | F125: 0 | G125: =G$29 -> 0 | I125: 0 | K125: =$K$29 -> 0
A126: G12 | B126: G12 | C126: =C$30 -> … | F126: 0 | G126: =G$30 -> 0 | I126: 0 | K126: =$K$30 -> 0
K127: =K111 -> 0
C128: Pfarrperson
A129: =CONCATENATE($D$128,B129) -> G0 | B129: =B113 -> G0 | C129: =$C$17 -> Arbeitsbereich Gemeindeleitung | D129: =$D$17 -> Anzahl Sitzungen | G129: =$G$17 -> Zeitbedarf in AT pro zugeteilte Grösse | I129: =$I$17 -> Summe Zeitbedarf in AT | J129: =$J$17 -> Bemerkung (Hauptverantwortung, Planung, konzeptioneller Ansatz) | K129: =$K$17 -> Erklärungen zu den Berechnung / Kalkulations-Faktoren
A130: 0 | B130: 0 | C130: =$C$18 -> 0 | D130: =$D$18 -> Ist | E130: =$E$18 -> Änderung | F130: =$F$18 -> Soll | G130: =$G$18 -> Ausgangs- wert | H130: =$H$18 -> eigener Faktor | J130: =$J$18 -> 0 | K130: =$K$18 -> 0
A131: G1 | B131: G1 | C131: =C$19 -> Sitzungen Pfarrkonvent | F131: =D131+E131 -> 0 | G131: =G$19 -> 0.2290950745 | I131: =F131*IF(ISBLANK(H131),G131,H131) -> 0 | K131: =$K$19 -> Eingabe: Anzahl Sitzungen pro Jahr, Faktor: 2 h pro Sitzung
A132: G2 | B132: G2 | C132: =C$20 -> Leitung Pfarrkonvent (in AT) | F132: 0 | G132: =G$20 -> 1 | I132: 0 | K132: =$K$20 -> Geschätzter Aufwand in Tagen pro Jahr
A133: G3 | B133: G3 | C133: =C$21 -> Vertretung des Pfarrkonvents in der KP | F133: 0 | G133: =G$21 -> 0.3436426117 | I133: 0 | K133: =$K$21 -> Eingabe: Anzahl Sitzungen pro Jahr, Faktor: 3 h pro Sitzung
A134: G4 | B134: G4 | C134: =C$22 -> Sitzungen Gemeindekonvent | F134: 0 | G134: =G$22 -> 0.4581901489 | I134: 0 | K134: =$K$22 -> Eingabe: Anzahl Sitzungen pro Jahr, Faktor: 4 h pro Sitzung
A135: G5 | B135: G5 | C135: =C$23 -> Kommissionen | F135: 0 | G135: =G$23 -> 0.1718213058 | I135: 0 | K135: =$K$23 -> Eingabe: Anzahl Sitzungen pro Jahr, Faktor: 1.5 h pro Sitzung
A136: G6 | B136: G6 | C136: =C$24 -> Arbeitsgruppen | F136: 0 | G136: =G$24 -> 0.1718213058 | I136: 0 | K136: =$K$24 -> Eingabe: Anzahl Sitzungen pro Jahr, Faktor: 1.5 h pro Sitzung
A137: G7 | B137: G7 | C137: =C$25 -> Schwerpunktleitung | F137: 0 | G137: =G$25 -> 0 | I137: 0 | K137: =$K$25 -> 0
A138: G8 | B138: G8 | C138: =C$26 -> … | F138: 0 | G138: =G$26 -> 0 | I138: 0 | K138: =$K$29 -> 0
A139: G9 | B139: G9 | C139: =C$27 -> … | F139: =D139+E139 -> 0 | G139: =G$27 -> 0 | I139: 0 | K139: =$K$29 -> 0
A140: G10 | B140: G10 | C140: =C$28 -> … | F140: 0 | G140: =G$28 -> 0 | I140: 0 | K140: =$K$30 -> 0
A141: G11 | B141: G11 | C141: =C$29 -> … | F141: 0 | G141: =G$29 -> 0 | I141: 0 | K141: =$K$29 -> 0
A142: G12 | B142: G12 | C142: =C$30 -> … | F142: 0 | G142: =G$30 -> 0 | I142: 0 | K142: =$K$30 -> 0
K143: =K127 -> 0
C144: Pfarrperson
A145: =CONCATENATE($D$144,B145) -> G0 | B145: =B129 -> G0 | C145: =$C$17 -> Arbeitsbereich Gemeindeleitung | D145: =$D$17 -> Anzahl Sitzungen | G145: =$G$17 -> Zeitbedarf in AT pro zugeteilte Grösse | I145: =$I$17 -> Summe Zeitbedarf in AT | J145: =$J$17 -> Bemerkung (Hauptverantwortung, Planung, konzeptioneller Ansatz) | K145: =$K$17 -> Erklärungen zu den Berechnung / Kalkulations-Faktoren
A146: 0 | B146: 0 | C146: =$C$18 -> 0 | D146: =$D$18 -> Ist | E146: =$E$18 -> Änderung | F146: =$F$18 -> Soll | G146: =$G$18 -> Ausgangs- wert | H146: =$H$18 -> eigener Faktor | J146: =$J$18 -> 0 | K146: =$K$18 -> 0
A147: G1 | B147: G1 | C147: =C$19 -> Sitzungen Pfarrkonvent | F147: =D147+E147 -> 0 | G147: =G$19 -> 0.2290950745 | I147: =F147*IF(ISBLANK(H147),G147,H147) -> 0 | K147: =$K$19 -> Eingabe: Anzahl Sitzungen pro Jahr, Faktor: 2 h pro Sitzung
A148: G2 | B148: G2 | C148: =C$20 -> Leitung Pfarrkonvent (in AT) | F148: 0 | G148: =G$20 -> 1 | I148: 0 | K148: =$K$20 -> Geschätzter Aufwand in Tagen pro Jahr
A149: G3 | B149: G3 | C149: =C$21 -> Vertretung des Pfarrkonvents in der KP | F149: 0 | G149: =G$21 -> 0.3436426117 | I149: 0 | K149: =$K$21 -> Eingabe: Anzahl Sitzungen pro Jahr, Faktor: 3 h pro Sitzung
A150: G4 | B150: G4 | C150: =C$22 -> Sitzungen Gemeindekonvent | F150: 0 | G150: =G$22 -> 0.4581901489 | I150: 0 | K150: =$K$22 -> Eingabe: Anzahl Sitzungen pro Jahr, Faktor: 4 h pro Sitzung
A151: G5 | B151: G5 | C151: =C$23 -> Kommissionen | F151: 0 | G151: =G$23 -> 0.1718213058 | I151: 0 | K151: =$K$23 -> Eingabe: Anzahl Sitzungen pro Jahr, Faktor: 1.5 h pro Sitzung
A152: G6 | B152: G6 | C152: =C$24 -> Arbeitsgruppen | F152: 0 | G152: =G$24 -> 0.1718213058 | I152: 0 | K152: =$K$24 -> Eingabe: Anzahl Sitzungen pro Jahr, Faktor: 1.5 h pro Sitzung
A153: G7 | B153: G7 | C153: =C$25 -> Schwerpunktleitung | F153: 0 | G153: =G$25 -> 0 | I153: 0 | K153: =$K$25 -> 0
A154: G9 | B154: =B139 -> G9 | C154: =C$26 -> … | F154: =D154+E154 -> 0 | G154: =G$26 -> 0 | I154: 0 | K154: =$K$29 -> 0
A155: G9 | B155: =B139 -> G9 | C155: =C$27 -> … | F155: =D155+E155 -> 0 | G155: =G$27 -> 0 | I155: 0 | K155: =$K$30 -> 0
A156: G10 | B156: =B140 -> G10 | C156: =C$28 -> … | F156: 0 | G156: =G$28 -> 0 | I156: 0 | K156: =$K$30 -> 0
A157: G11 | B157: =B141 -> G11 | C157: =C$29 -> … | F157: 0 | G157: =G$29 -> 0 | I157: 0 | K157: =$K$29 -> 0
A158: G12 | B158: =B142 -> G12 | C158: =C$30 -> … | F158: 0 | G158: =G$30 -> 0 | I158: 0 | K158: =$K$30 -> 0
K159: =K143 -> 0
C160: Pfarrperson
A161: =CONCATENATE($D$160,B161) -> G0 | B161: =B145 -> G0 | C161: =$C$17 -> Arbeitsbereich Gemeindeleitung | D161: =$D$17 -> Anzahl Sitzungen | G161: =$G$17 -> Zeitbedarf in AT pro zugeteilte Grösse | I161: =$I$17 -> Summe Zeitbedarf in AT | J161: =$J$17 -> Bemerkung (Hauptverantwortung, Planung, konzeptioneller Ansatz) | K161: =$K$17 -> Erklärungen zu den Berechnung / Kalkulations-Faktoren
A162: 0 | B162: 0 | C162: =$C$18 -> 0 | D162: =$D$18 -> Ist | E162: =$E$18 -> Änderung | F162: =$F$18 -> Soll | G162: =$G$18 -> Ausgangs- wert | H162: =$H$18 -> eigener Faktor | J162: =$J$18 -> 0 | K162: =$K$18 -> 0
A163: G1 | B163: G1 | C163: =C$19 -> Sitzungen Pfarrkonvent | F163: =D163+E163 -> 0 | G163: =G$19 -> 0.2290950745 | I163: =F163*IF(ISBLANK(H163),G163,H163) -> 0 | K163: =$K$19 -> Eingabe: Anzahl Sitzungen pro Jahr, Faktor: 2 h pro Sitzung
A164: G2 | B164: G2 | C164: =C$20 -> Leitung Pfarrkonvent (in AT) | F164: 0 | G164: =G$20 -> 1 | I164: 0 | K164: =$K$20 -> Geschätzter Aufwand in Tagen pro Jahr
A165: G3 | B165: G3 | C165: =C$21 -> Vertretung des Pfarrkonvents in der KP | F165: 0 | G165: =G$21 -> 0.3436426117 | I165: 0 | K165: =$K$21 -> Eingabe: Anzahl Sitzungen pro Jahr, Faktor: 3 h pro Sitzung
A166: G4 | B166: G4 | C166: =C$22 -> Sitzungen Gemeindekonvent | F166: 0 | G166: =G$22 -> 0.4581901489 | I166: 0 | K166: =$K$22 -> Eingabe: Anzahl Sitzungen pro Jahr, Faktor: 4 h pro Sitzung
A167: G5 | B167: G5 | C167: =C$23 -> Kommissionen | F167: 0 | G167: =G$23 -> 0.1718213058 | I167: 0 | K167: =$K$23 -> Eingabe: Anzahl Sitzungen pro Jahr, Faktor: 1.5 h pro Sitzung
A168: G6 | B168: G6 | C168: =C$24 -> Arbeitsgruppen | F168: 0 | G168: =G$24 -> 0.1718213058 | I168: 0 | K168: =$K$24 -> Eingabe: Anzahl Sitzungen pro Jahr, Faktor: 1.5 h pro Sitzung
A169: G7 | B169: G7 | C169: =C$25 -> Schwerpunktleitung | F169: 0 | G169: =G$25 -> 0 | I169: 0 | K169: =$K$25 -> 0
A170: G9 | B170: =B155 -> G9 | C170: =C$26 -> … | F170: =D170+E170 -> 0 | G170: =G$26 -> 0 | I170: 0 | K170: =$K$29 -> 0
A171: G9 | B171: =B155 -> G9 | C171: =C$27 -> … | F171: =D171+E171 -> 0 | G171: =G$27 -> 0 | I171: 0 | K171: =$K$30 -> 0
A172: G10 | B172: =B156 -> G10 | C172: =C$28 -> … | F172: 0 | G172: =G$28 -> 0 | I172: 0 | K172: =$K$30 -> 0
A173: G11 | B173: =B157 -> G11 | C173: =C$29 -> … | F173: 0 | G173: =G$29 -> 0 | I173: 0 | K173: =$K$29 -> 0
A174: G12 | B174: =B158 -> G12 | C174: =C$30 -> … | F174: 0 | G174: =G$30 -> 0 | I174: 0 | K174: =$K$30 -> 0
K175: =K159 -> 0
C176: Gemeindeaufbau
C177: Pfarrpersonen | D177: =Pfarrpersonen!A8 -> Gesamtpensum
A178: =CONCATENATE($D$177,B178) -> GesamtpensumG0 | B178: G0 | C178: Arbeitsbereich Gemeindeaufbau | D178: =$D$17 -> Anzahl Sitzungen | G178: Zeitbedarf in AT pro zugeteilte Grösse | I178: Summe Zeitbedarf in AT | J178: Bemerkung (Hauptverantwortung, Planung, konzeptioneller Ansatz) | K178: Erklärungen zu den Berechnung / Kalkulations-Faktoren
A179: =CONCATENATE($D$177,B179) -> Gesamtpensum | D179: =$D$18 -> Ist | E179: =$E$18 -> Änderung | F179: =$F$18 -> Soll | G179: Ausgangs- wert | H179: eigener Faktor | I179: =SUM(I180:I189) -> 0
A180: GesamtpensumGe1 | B180: Ge1 | F180: =D180+E180 -> 0 | I180: =F180*IF(ISBLANK(H180),G180,H180) -> 0
A181: GesamtpensumGe2 | B181: Ge2 | F181: 0 | I181: 0
A182: GesamtpensumGe3 | B182: Ge3 | F182: 0 | I182: 0
A183: GesamtpensumGe4 | B183: Ge4 | F183: 0 | I183: 0
A184: GesamtpensumGe5 | B184: Ge5 | F184: 0 | I184: 0
A185: GesamtpensumGe6 | B185: Ge6 | F185: 0 | I185: 0
A186: GesamtpensumGe7 | B186: Ge7 | F186: 0 | I186: 0
A187: GesamtpensumGe8 | B187: Ge8 | F187: 0 | I187: 0
A188: GesamtpensumGe9 | B188: Ge9 | F188: 0 | I188: 0
A189: GesamtpensumGe10 | B189: Ge10 | F189: 0 | I189: 0
C191: =Pfarrpersonen!A8 -> Gesamtpensum | D191: =Pfarrpersonen!A9 -> Delta
A192: =CONCATENATE($D$191,B192) -> DeltaG0 | B192: =B178 -> G0 | C192: =$C$178 -> Arbeitsbereich Gemeindeaufbau | D192: =$D$17 -> Anzahl Sitzungen | G192: =$G$178 -> Zeitbedarf in AT pro zugeteilte Grösse | I192: =$I$178 -> Summe Zeitbedarf in AT | J192: =$J$178 -> Bemerkung (Hauptverantwortung, Planung, konzeptioneller Ansatz) | K192: =$K$17 -> Erklärungen zu den Berechnung / Kalkulations-Faktoren
A193: =CONCATENATE($D$191,B193) -> Delta0 | B193: 0 | C193: =$C$18 -> 0 | D193: =$D$18 -> Ist | E193: =$E$18 -> Änderung | F193: =$F$18 -> Soll | G193: =$G$179 -> Ausgangs- wert | H193: =$H$179 -> eigener Faktor | J193: =$J$18 -> 0 | K193: =$K$18 -> 0
A194: DeltaGe1 | B194: Ge1 | C194: =C$180 -> 0 | F194: =D194+E194 -> 0 | G194: =G$180 -> 0 | H194: 0 | I194: =+I180-I208-I222-I236-I250-I264-I278-I292-I306 -> 0 | K194: =$K$180 -> 0
A195: DeltaGe2 | B195: Ge2 | C195: =C$181 -> 0 | F195: 0 | G195: =G$181 -> 0 | H195: 0 | I195: =+I181-I209-I223-I237-I251-I265-I279-I293-I307 -> 0 | K195: =$K$181 -> 0
A196: DeltaGe3 | B196: Ge3 | C196: =C$182 -> 0 | F196: 0 | G196: =G$182 -> 0 | H196: 0 | I196: 0 | K196: =$K$182 -> 0
A197: DeltaGe4 | B197: Ge4 | C197: =C$183 -> 0 | F197: 0 | G197: =G$183 -> 0 | H197: 0 | I197: 0 | K197: =$K$183 -> 0
A198: DeltaGe5 | B198: Ge5 | C198: =C$184 -> 0 | F198: 0 | G198: =G$184 -> 0 | H198: 0 | I198: 0 | K198: =$K$184 -> 0
A199: DeltaGe6 | B199: Ge6 | C199: =C$185 -> 0 | F199: 0 | G199: =G$185 -> 0 | H199: 0 | I199: 0 | K199: =$K$185 -> 0
A200: DeltaGe7 | B200: Ge7 | C200: =C$186 -> 0 | F200: 0 | G200: =G$186 -> 0 | H200: 0 | I200: 0 | K200: =$K$186 -> 0
A201: DeltaGe8 | B201: Ge8 | C201: =C$187 -> 0 | F201: 0 | G201: =G$187 -> 0 | H201: 0 | I201: 0 | K201: =$K$187 -> 0
A202: DeltaGe9 | B202: Ge9 | C202: =C$188 -> 0 | F202: 0 | G202: =G$188 -> 0 | H202: 0 | I202: 0 | K202: =$K$188 -> 0
A203: DeltaGe10 | B203: Ge10 | C203: =C$189 -> 0 | F203: 0 | G203: =G$189 -> 0 | H203: 0 | I203: 0 | K203: =$K$188 -> 0
K204: =K190 -> 0
C205: Pfarrperson
A206: =CONCATENATE($D$205,B206) -> G0 | B206: =B192 -> G0 | C206: =$C$178 -> Arbeitsbereich Gemeindeaufbau | D206: =$D$17 -> Anzahl Sitzungen | G206: =$G$178 -> Zeitbedarf in AT pro zugeteilte Grösse | I206: =$I$178 -> Summe Zeitbedarf in AT | J206: =$J$178 -> Bemerkung (Hauptverantwortung, Planung, konzeptioneller Ansatz) | K206: =$K$17 -> Erklärungen zu den Berechnung / Kalkulations-Faktoren
A207: =CONCATENATE($D$205,B207) -> 0 | B207: 0 | C207: =$C$18 -> 0 | D207: =$D$18 -> Ist | E207: =$E$18 -> Änderung | F207: =$F$18 -> Soll | G207: =$G$18 -> Ausgangs- wert | H207: =$H$18 -> eigener Faktor | J207: =$J$18 -> 0 | K207: =$K$18 -> 0
A208: Ge1 | B208: Ge1 | C208: =C$181 -> 0 | F208: =D208+E208 -> 0 | G208: =G$180 -> 0 | I208: =F208*IF(ISBLANK(H208),G208,H208) -> 0 | K208: =$K$180 -> 0
A209: Ge2 | B209: Ge2 | C209: =C$181 -> 0 | F209: 0 | G209: =G$181 -> 0 | I209: 0 | K209: =$K$181 -> 0
A210: Ge3 | B210: Ge3 | C210: =C$182 -> 0 | F210: 0 | G210: =G$182 -> 0 | I210: 0 | K210: =$K$182 -> 0
A211: Ge4 | B211: Ge4 | C211: =C$183 -> 0 | F211: 0 | G211: =G$183 -> 0 | I211: 0 | K211: =$K$183 -> 0
A212: Ge5 | B212: Ge5 | C212: =C$184 -> 0 | F212: 0 | G212: =G$184 -> 0 | I212: 0 | K212: =$K$184 -> 0
A213: Ge6 | B213: Ge6 | C213: =C$185 -> 0 | F213: 0 | G213: =G$185 -> 0 | I213: 0 | K213: =$K$185 -> 0
A214: Ge7 | B214: Ge7 | C214: =C$186 -> 0 | F214: 0 | G214: =G$186 -> 0 | I214: 0 | K214: =$K$186 -> 0
A215: Ge8 | B215: Ge8 | C215: =C$187 -> 0 | F215: 0 | G215: =G$187 -> 0 | I215: 0 | K215: =$K$187 -> 0
... 116 more rows

Sheet A&V_W.Dienste
C1: Pfarramtliche Aufgaben- und Verantwortungsbereiche im Zusammenhang mit weiteren Diensten
C16: Pfarrpersonen | D16: =Pfarrpersonen!A8 -> Gesamtpensum
A17: =CONCATENATE($D$16,B17) -> GesamtpensumWD0 | B17: WD0 | C17: Arbeitsbereich Weitere Dienste | D17: Anzahl | G17: Zeitbedarf in AT pro zugeteilte Grösse | I17: Summe Zeitbedarf in AT | J17: Bemerkung (Hauptverantwortung, Planung, konzeptioneller Ansatz) | K17: Erklärungen zu den Berechnung / Kalkulations-Faktoren
D18: Ist | E18: Änderung | F18: Soll | G18: Ausgangs- wert | H18: eigener Faktor | I18: =SUM(I19:I28) -> 0
A19: =CONCATENATE($D$16,B19) -> GesamtpensumWD1 | B19: WD1 | C19: Armeeseelsorge | F19: =D19+E19 -> 0 | I19: =F19*IF(ISBLANK(H19),G19,H19) -> 0 | K19: Anzahl Tage pro Jahr
A20: GesamtpensumWD2 | B20: WD2 | C20: Militär- / Bevölkerungsschutzdienst | F20: =D20+E20 -> 0 | I20: 0 | K20: Anzahl Tage pro Jahr
A21: GesamtpensumWD3 | B21: WD3 | C21: WEA | F21: 0 | I21: 0 | K21: für die Amtsperiode xx geplant
A22: GesamtpensumWD4 | B22: WD4 | C22: Langzeitweiterbildung | F22: 0 | I22: 0
A23: GesamtpensumWD5 | B23: WD5 | C23: Öffentliche Ämter, Nebenbesch. | F23: =D23+E23 -> 0 | I23: =F23*IF(ISBLANK(H23),G23,H23) -> 0
A24: GesamtpensumWD6 | B24: WD6 | C24: Besondere und übrige Aufgaben | F24: 0 | I24: 0
A25: GesamtpensumWD7 | B25: WD7 | C25: … | F25: =D25+E25 -> 0 | I25: =F25*IF(ISBLANK(H25),G25,H25) -> 0
A26: GesamtpensumWD8 | B26: WD8 | C26: … | F26: 0 | I26: 0
A27: GesamtpensumWD9 | B27: WD9 | C27: … | F27: 0 | I27: 0
A28: GesamtpensumWD10 | B28: WD10 | C28: … | F28: 0 | I28: 0
C30: =Pfarrpersonen!A8 -> Gesamtpensum | D30: =Pfarrpersonen!A9 -> Delta
A31: =CONCATENATE($D$30,B31) -> DeltaWD0 | B31: =B17 -> WD0 | C31: =$C$17 -> Arbeitsbereich Weitere Dienste | D31: =$D$17 -> Anzahl | F31: =$D$17 -> Anzahl | G31: =$G$17 -> Zeitbedarf in AT pro zugeteilte Grösse | I31: =$I$17 -> Summe Zeitbedarf in AT | J31: =$J$17 -> Bemerkung (Hauptverantwortung, Planung, konzeptioneller Ansatz) | K31: =$K$17 -> Erklärungen zu den Berechnung / Kalkulations-Faktoren
A32: =CONCATENATE($D$30,B32) -> Delta | D32: =$D$18 -> Ist | E32: =$E$18 -> Änderung | F32: =$F$18 -> Soll | G32: =$G$18 -> Ausgangs- wert | H32: =$H$18 -> eigener Faktor
A33: DeltaWD1 | B33: =B19 -> WD1 | C33: =$C$19 -> Armeeseelsorge | F33: =D33+E33 -> 0 | I33: =+I19-I47-I61-I75-I89-I103-I117-I131-I145 -> 0 | K33: =$K$19 -> Anzahl Tage pro Jahr
A34: DeltaWD2 | B34: =B20 -> WD2 | C34: =$C$20 -> Militär- / Bevölkerungsschutzdienst | F34: =D34+E34 -> 0 | G34: =G20 -> 0 | I34: =+I20-I48-I62-I76-I90-I104-I118-I132-I146 -> 0 | K34: =$K$20 -> Anzahl Tage pro Jahr
A35: DeltaWD3 | B35: WD3 | C35: =$C$21 -> WEA | F35: 0 | G35: =G21 -> 0 | I35: 0 | K35: =$K$21 -> für die Amtsperiode xx geplant
A36: DeltaWD4 | B36: WD4 | C36: =$C$22 -> Langzeitweiterbildung | F36: 0 | I36: 0
A37: DeltaWD5 | B37: WD5 | C37: =$C$23 -> Öffentliche Ämter, Nebenbesch. | F37: 0 | I37: 0
A38: DeltaWD6 | B38: WD6 | C38: =$C$24 -> Besondere und übrige Aufgaben | F38: 0 | I38: 0
A39: DeltaWD7 | B39: WD7 | C39: =$C$25 -> … | F39: 0 | I39: 0
A40: DeltaWD8 | B40: WD8 | C40: =$C$26 -> … | F40: 0 | I40: 0
A41: DeltaWD9 | B41: WD9 | C41: =$C$27 -> … | F41: 0 | I41: 0
A42: DeltaWD10 | B42: WD10 | C42: =$C$28 -> … | F42: 0 | I42: 0 | K42: =$K$22 -> 0
C44: Pfarrperson
A45: =CONCATENATE($D$44,B45) -> WD0 | B45: =B31 -> WD0 | C45: =$C$17 -> Arbeitsbereich Weitere Dienste | D45: =$D$17 -> Anzahl | F45: =$D$17 -> Anzahl | G45: =$G$17 -> Zeitbedarf in AT pro zugeteilte Grösse | I45: =$I$17 -> Summe Zeitbedarf in AT | J45: =$J$17 -> Bemerkung (Hauptverantwortung, Planung, konzeptioneller Ansatz) | K45: =$K$17 -> Erklärungen zu den Berechnung / Kalkulations-Faktoren
A46: =CONCATENATE($D$44,B46) ->  | D46: =$D$18 -> Ist | E46: =$E$18 -> Änderung | F46: =$F$18 -> Soll | G46: =$G$18 -> Ausgangs- wert | H46: =$H$18 -> eigener Faktor
A47: =CONCATENATE($D$44,B47) -> WD1 | B47: =B33 -> WD1 | C47: =$C$19 -> Armeeseelsorge | F47: =D47+E47 -> 0 | G47: =$G$19 -> 0 | I47: =F47*IF(ISBLANK(H47),G47,H47) -> 0 | K47: =$K$19 -> Anzahl Tage pro Jahr
A48: WD2 | B48: =B34 -> WD2 | C48: =$C$20 -> Militär- / Bevölkerungsschutzdienst | F48: =D48+E48 -> 0 | G48: =$G$20 -> 0 | I48: 0 | K48: =$K$20 -> Anzahl Tage pro Jahr
A49: WD3 | B49: WD3 | C49: =$C$21 -> WEA | F49: 0 | G49: =$G$21 -> 0 | I49: 0 | K49: =$K$21 -> für die Amtsperiode xx geplant
A50: WD4 | B50: WD4 | C50: =$C$22 -> Langzeitweiterbildung | F50: 0 | G50: =$G$22 -> 0 | I50: 0
A51: WD5 | B51: WD5 | C51: =$C$23 -> Öffentliche Ämter, Nebenbesch. | F51: 0 | G51: =$G$23 -> 0 | I51: 0
A52: WD6 | B52: WD6 | C52: =$C$24 -> Besondere und übrige Aufgaben | F52: 0 | G52: =$G$24 -> 0 | I52: 0
A53: WD7 | B53: WD7 | C53: =$C$25 -> … | F53: 0 | G53: =$G$25 -> 0 | I53: 0
A54: WD8 | B54: WD8 | C54: =$C$26 -> … | F54: 0 | G54: =$G$26 -> 0 | I54: 0
A55: WD9 | B55: WD9 | C55: =$C$27 -> … | F55: 0 | G55: =$G$27 -> 0 | I55: 0
A56: WD10 | B56: WD10 | C56: =$C$28 -> … | F56: 0 | G56: =$G$28 -> 0 | I56: 0 | K56: =$K$22 -> 0
C58: Pfarrperson
A59: =CONCATENATE($D$58,B59) -> WD0 | B59: =B45 -> WD0 | C59: =$C$17 -> Arbeitsbereich Weitere Dienste | D59: =$D$17 -> Anzahl | F59: =$D$17 -> Anzahl | G59: =$G$17 -> Zeitbedarf in AT pro zugeteilte Grösse | I59: =$I$17 -> Summe Zeitbedarf in AT | J59: =$J$17 -> Bemerkung (Hauptverantwortung, Planung, konzeptioneller Ansatz) | K59: =$K$17 -> Erklärungen zu den Berechnung / Kalkulations-Faktoren
A60: =CONCATENATE($D$58,B60) ->  | D60: =$D$18 -> Ist | E60: =$E$18 -> Änderung | F60: =$F$18 -> Soll | G60: =$G$18 -> Ausgangs- wert | H60: =$H$18 -> eigener Faktor
A61: =CONCATENATE($D$58,B61) -> WD1 | B61: =B47 -> WD1 | C61: =$C$19 -> Armeeseelsorge | F61: =D61+E61 -> 0 | G61: =$G$19 -> 0 | I61: =F61*IF(ISBLANK(H61),G61,H61) -> 0 | K61: =$K$19 -> Anzahl Tage pro Jahr
A62: WD2 | B62: =B48 -> WD2 | C62: =$C$20 -> Militär- / Bevölkerungsschutzdienst | F62: =D62+E62 -> 0 | G62: =$G$20 -> 0 | I62: 0 | K62: =$K$20 -> Anzahl Tage pro Jahr
A63: WD3 | B63: WD3 | C63: =$C$21 -> WEA | F63: 0 | G63: =$G$21 -> 0 | I63: 0 | K63: =$K$21 -> für die Amtsperiode xx geplant
A64: WD4 | B64: WD4 | C64: =$C$22 -> Langzeitweiterbildung | F64: 0 | G64: =$G$22 -> 0 | I64: 0
A65: WD5 | B65: WD5 | C65: =$C$23 -> Öffentliche Ämter, Nebenbesch. | F65: 0 | G65: =$G$23 -> 0 | I65: 0
A66: WD6 | B66: WD6 | C66: =$C$24 -> Besondere und übrige Aufgaben | F66: 0 | G66: =$G$24 -> 0 | I66: 0
A67: WD7 | B67: WD7 | C67: =$C$25 -> … | F67: 0 | G67: =$G$25 -> 0 | I67: 0
A68: WD8 | B68: WD8 | C68: =$C$26 -> … | F68: =D68+E68 -> 0 | G68: =$G$26 -> 0 | I68: 0
A69: WD9 | B69: WD9 | C69: =$C$27 -> … | F69: 0 | G69: =$G$27 -> 0 | I69: 0
A70: WD10 | B70: WD10 | C70: =$C$28 -> … | F70: 0 | G70: =$G$28 -> 0 | I70: 0
C72: Pfarrperson
A73: =CONCATENATE($D$72,B73) -> WD0 | B73: =B59 -> WD0 | C73: =$C$17 -> Arbeitsbereich Weitere Dienste | D73: =$D$17 -> Anzahl | F73: =$D$17 -> Anzahl | G73: =$G$17 -> Zeitbedarf in AT pro zugeteilte Grösse | I73: =$I$17 -> Summe Zeitbedarf in AT | J73: =$J$17 -> Bemerkung (Hauptverantwortung, Planung, konzeptioneller Ansatz) | K73: =$K$17 -> Erklärungen zu den Berechnung / Kalkulations-Faktoren
A74: =CONCATENATE($D$72,B74) ->  | D74: =$D$18 -> Ist | E74: =$E$18 -> Änderung | F74: =$F$18 -> Soll | G74: =$G$18 -> Ausgangs- wert | H74: =$H$18 -> eigener Faktor
A75: =CONCATENATE($D$72,B75) -> WD1 | B75: =B61 -> WD1 | C75: =$C$19 -> Armeeseelsorge | F75: =D75+E75 -> 0 | G75: =$G$19 -> 0 | I75: =F75*IF(ISBLANK(H75),G75,H75) -> 0 | K75: =$K$19 -> Anzahl Tage pro Jahr
A76: WD2 | B76: =B62 -> WD2 | C76: =$C$20 -> Militär- / Bevölkerungsschutzdienst | F76: =D76+E76 -> 0 | G76: =$G$20 -> 0 | I76: 0 | K76: =$K$20 -> Anzahl Tage pro Jahr
A77: WD3 | B77: WD3 | C77: =$C$21 -> WEA | F77: 0 | G77: =$G$21 -> 0 | I77: 0 | K77: =$K$21 -> für die Amtsperiode xx geplant
A78: WD4 | B78: WD4 | C78: =$C$22 -> Langzeitweiterbildung | F78: 0 | G78: =$G$22 -> 0 | I78: 0
A79: WD5 | B79: WD5 | C79: =$C$23 -> Öffentliche Ämter, Nebenbesch. | F79: 0 | G79: =$G$23 -> 0 | I79: 0
A80: WD6 | B80: WD6 | C80: =$C$24 -> Besondere und übrige Aufgaben | F80: 0 | G80: =$G$24 -> 0 | I80: 0
A81: WD7 | B81: WD7 | C81: =$C$25 -> … | F81: =D81+E81 -> 0 | G81: =$G$25 -> 0 | I81: 0
A82: WD8 | B82: WD8 | C82: =$C$26 -> … | F82: 0 | G82: =$G$26 -> 0 | I82: 0
A83: WD9 | B83: WD9 | C83: =$C$27 -> … | F83: 0 | G83: =$G$27 -> 0 | I83: 0
A84: WD10 | B84: WD10 | C84: =$C$28 -> … | F84: 0 | G84: =$G$28 -> 0 | I84: 0 | K84: =$K$28 -> 0
C85: =$C$29 -> 0
C86: Pfarrperson
A87: =CONCATENATE($D$86,B87) -> WD0 | B87: =B73 -> WD0 | C87: =$C$17 -> Arbeitsbereich Weitere Dienste | D87: =$D$17 -> Anzahl | F87: =$D$17 -> Anzahl | G87: =$G$17 -> Zeitbedarf in AT pro zugeteilte Grösse | I87: =$I$17 -> Summe Zeitbedarf in AT | J87: =$J$17 -> Bemerkung (Hauptverantwortung, Planung, konzeptioneller Ansatz) | K87: =$K$17 -> Erklärungen zu den Berechnung / Kalkulations-Faktoren
A88: =CONCATENATE($D$86,B88) ->  | D88: =$D$18 -> Ist | E88: =$E$18 -> Änderung | F88: =$F$18 -> Soll | G88: =$G$18 -> Ausgangs- wert | H88: =$H$18 -> eigener Faktor
A89: =CONCATENATE($D$86,B89) -> WD1 | B89: =B75 -> WD1 | C89: =$C$19 -> Armeeseelsorge | F89: =D89+E89 -> 0 | G89: =$G$19 -> 0 | I89: =F89*IF(ISBLANK(H89),G89,H89) -> 0 | K89: =$K$19 -> Anzahl Tage pro Jahr
A90: WD2 | B90: =B76 -> WD2 | C90: =$C$20 -> Militär- / Bevölkerungsschutzdienst | F90: =D90+E90 -> 0 | G90: =$G$20 -> 0 | I90: 0 | K90: =$K$20 -> Anzahl Tage pro Jahr
A91: WD3 | B91: WD3 | C91: =$C$21 -> WEA | F91: 0 | G91: =$G$21 -> 0 | I91: 0 | K91: =$K$21 -> für die Amtsperiode xx geplant
A92: WD4 | B92: WD4 | C92: =$C$22 -> Langzeitweiterbildung | F92: 0 | G92: =$G$22 -> 0 | I92: 0
A93: WD5 | B93: WD5 | C93: =$C$23 -> Öffentliche Ämter, Nebenbesch. | F93: 0 | G93: =$G$23 -> 0 | I93: 0
A94: WD6 | B94: WD6 | C94: =$C$24 -> Besondere und übrige Aufgaben | F94: 0 | G94: =$G$24 -> 0 | I94: 0
A95: WD7 | B95: WD7 | C95: =$C$25 -> … | F95: =D95+E95 -> 0 | G95: =$G$25 -> 0 | I95: 0
A96: WD8 | B96: WD8 | C96: =$C$26 -> … | F96: 0 | G96: =$G$26 -> 0 | I96: 0
A97: WD9 | B97: WD9 | C97: =$C$27 -> … | F97: 0 | G97: =$G$27 -> 0 | I97: 0
A98: WD10 | B98: WD10 | C98: =$C$28 -> … | F98: 0 | G98: =$G$28 -> 0 | I98: 0 | K98: =$K$28 -> 0
C99: =$C$29 -> 0
C100: Pfarrperson
A101: =CONCATENATE($D$100,B101) -> WD0 | B101: =B87 -> WD0 | C101: =$C$17 -> Arbeitsbereich Weitere Dienste | D101: =$D$17 -> Anzahl | F101: =$D$17 -> Anzahl | G101: =$G$17 -> Zeitbedarf in AT pro zugeteilte Grösse | I101: =$I$17 -> Summe Zeitbedarf in AT | J101: =$J$17 -> Bemerkung (Hauptverantwortung, Planung, konzeptioneller Ansatz) | K101: =$K$17 -> Erklärungen zu den Berechnung / Kalkulations-Faktoren
A102: =CONCATENATE($D$100,B102) ->  | D102: =$D$18 -> Ist | E102: =$E$18 -> Änderung | F102: =$F$18 -> Soll | G102: =$G$18 -> Ausgangs- wert | H102: =$H$18 -> eigener Faktor
A103: =CONCATENATE($D$100,B103) -> WD1 | B103: =B89 -> WD1 | C103: =$C$19 -> Armeeseelsorge | F103: =D103+E103 -> 0 | G103: =$G$19 -> 0 | I103: =F103*IF(ISBLANK(H103),G103,H103) -> 0 | K103: =$K$19 -> Anzahl Tage pro Jahr
A104: WD2 | B104: WD2 | C104: =$C$20 -> Militär- / Bevölkerungsschutzdienst | F104: =D104+E104 -> 0 | G104: =$G$20 -> 0 | I104: 0 | K104: =$K$20 -> Anzahl Tage pro Jahr
A105: WD3 | B105: WD3 | C105: =$C$21 -> WEA | F105: 0 | G105: =$G$21 -> 0 | I105: 0 | K105: =$K$21 -> für die Amtsperiode xx geplant
A106: WD4 | B106: WD4 | C106: =$C$22 -> Langzeitweiterbildung | F106: 0 | G106: =$G$22 -> 0 | I106: 0
A107: WD5 | B107: WD5 | C107: =$C$23 -> Öffentliche Ämter, Nebenbesch. | F107: 0 | G107: =$G$23 -> 0 | I107: 0
A108: WD6 | B108: WD6 | C108: =$C$24 -> Besondere und übrige Aufgaben | F108: 0 | G108: =$G$24 -> 0 | I108: 0
A109: WD7 | B109: WD7 | C109: =$C$25 -> … | F109: 0 | G109: =$G$25 -> 0 | I109: 0
A110: WD8 | B110: WD8 | C110: =$C$26 -> … | F110: 0 | G110: =$G$26 -> 0 | I110: 0
A111: WD9 | B111: WD9 | C111: =$C$27 -> … | F111: 0 | G111: =$G$27 -> 0 | I111: 0
A112: WD10 | B112: WD10 | C112: =$C$28 -> … | F112: 0 | G112: =$G$28 -> 0 | I112: 0 | K112: =$K$28 -> 0
C113: =$C$29 -> 0
C114: Pfarrperson
A115: =CONCATENATE($D$114,B115) -> WD0 | B115: =B101 -> WD0 | C115: =$C$17 -> Arbeitsbereich Weitere Dienste | D115: =$D$17 -> Anzahl | F115: =$D$17 -> Anzahl | G115: =$G$17 -> Zeitbedarf in AT pro zugeteilte Grösse | I115: =$I$17 -> Summe Zeitbedarf in AT | J115: =$J$17 -> Bemerkung (Hauptverantwortung, Planung, konzeptioneller Ansatz) | K115: =$K$17 -> Erklärungen zu den Berechnung / Kalkulations-Faktoren
A116: =CONCATENATE($D$114,B116) ->  | D116: =$D$18 -> Ist | E116: =$E$18 -> Änderung | F116: =$F$18 -> Soll | G116: =$G$18 -> Ausgangs- wert | H116: =$H$18 -> eigener Faktor
A117: =CONCATENATE($D$114,B117) -> WD1 | B117: =B103 -> WD1 | C117: =$C$19 -> Armeeseelsorge | F117: =D117+E117 -> 0 | G117: =$G$19 -> 0 | I117: =F117*IF(ISBLANK(H117),G117,H117) -> 0 | K117: =$K$19 -> Anzahl Tage pro Jahr
A118: WD2 | B118: =B104 -> WD2 | C118: =$C$20 -> Militär- / Bevölkerungsschutzdienst | F118: =D118+E118 -> 0 | G118: =$G$20 -> 0 | I118: 0 | K118: =$K$20 -> Anzahl Tage pro Jahr
A119: WD3 | B119: WD3 | C119: =$C$21 -> WEA | F119: 0 | G119: =$G$21 -> 0 | I119: 0 | K119: =$K$21 -> für die Amtsperiode xx geplant
A120: WD4 | B120: WD4 | C120: =$C$22 -> Langzeitweiterbildung | F120: 0 | G120: =$G$22 -> 0 | I120: 0
A121: WD5 | B121: WD5 | C121: =$C$23 -> Öffentliche Ämter, Nebenbesch. | F121: 0 | G121: =$G$23 -> 0 | I121: 0
A122: WD6 | B122: WD6 | C122: =$C$24 -> Besondere und übrige Aufgaben | F122: 0 | G122: =$G$24 -> 0 | I122: 0
A123: WD7 | B123: WD7 | C123: =$C$25 -> … | F123: =D123+E123 -> 0 | G123: =$G$25 -> 0 | I123: 0
A124: WD8 | B124: WD8 | C124: =$C$26 -> … | F124: 0 | G124: =$G$26 -> 0 | I124: 0
A125: WD9 | B125: WD9 | C125: =$C$27 -> … | F125: 0 | G125: =$G$27 -> 0 | I125: 0
A126: WD10 | B126: WD10 | C126: =$C$28 -> … | F126: 0 | G126: =$G$28 -> 0 | I126: 0
C127: =$C$29 -> 0
C128: Pfarrperson
A129: =CONCATENATE($D$128,B129) -> WD0 | B129: WD0 | C129: =$C$17 -> Arbeitsbereich Weitere Dienste | D129: =$D$17 -> Anzahl | F129: =$D$17 -> Anzahl | G129: =$G$17 -> Zeitbedarf in AT pro zugeteilte Grösse | I129: =$I$17 -> Summe Zeitbedarf in AT | J129: =$J$17 -> Bemerkung (Hauptverantwortung, Planung, konzeptioneller Ansatz) | K129: =$K$17 -> Erklärungen zu den Berechnung / Kalkulations-Faktoren
A130: =CONCATENATE($D$128,B130) ->  | D130: =$D$18 -> Ist | E130: =$E$18 -> Änderung | F130: =$F$18 -> Soll | G130: =$G$18 -> Ausgangs- wert | H130: =$H$18 -> eigener Faktor
A131: =CONCATENATE($D$128,B131) -> WD1 | B131: =B117 -> WD1 | C131: =$C$19 -> Armeeseelsorge | F131: =D131+E131 -> 0 | G131: =$G$19 -> 0 | I131: =F131*IF(ISBLANK(H131),G131,H131) -> 0 | K131: =$K$19 -> Anzahl Tage pro Jahr
A132: WD2 | B132: =B118 -> WD2 | C132: =$C$20 -> Militär- / Bevölkerungsschutzdienst | F132: =D132+E132 -> 0 | G132: =$G$20 -> 0 | I132: 0 | K132: =$K$20 -> Anzahl Tage pro Jahr
A133: WD3 | B133: WD3 | C133: =$C$21 -> WEA | F133: 0 | G133: =$G$21 -> 0 | I133: 0 | K133: =$K$21 -> für die Amtsperiode xx geplant
A134: WD4 | B134: WD4 | C134: =$C$22 -> Langzeitweiterbildung | F134: 0 | G134: =$G$22 -> 0 | I134: 0
A135: WD5 | B135: WD5 | C135: =$C$23 -> Öffentliche Ämter, Nebenbesch. | F135: 0 | G135: =$G$23 -> 0 | I135: 0
A136: WD6 | B136: WD6 | C136: =$C$24 -> Besondere und übrige Aufgaben | F136: 0 | G136: =$G$24 -> 0 | I136: 0
A137: WD7 | B137: WD7 | C137: =$C$25 -> … | F137: =D137+E137 -> 0 | G137: =$G$25 -> 0 | I137: 0
A138: WD8 | B138: WD8 | C138: =$C$26 -> … | F138: 0 | G138: =$G$26 -> 0 | I138: 0
A139: WD9 | B139: WD9 | C139: =$C$27 -> … | F139: 0 | G139: =$G$27 -> 0 | I139: 0 | K139: =$K$22 -> 0
A140: WD10 | B140: WD10 | C140: =$C$28 -> … | F140: 0 | G140: =$G$28 -> 0 | I140: 0 | K140: =$K$28 -> 0
C141: =$C$29 -> 0
C142: Pfarrperson
A143: =CONCATENATE($D$142,B143) -> WD0 | B143: WD0 | C143: =$C$17 -> Arbeitsbereich Weitere Dienste | D143: =$D$17 -> Anzahl | F143: =$D$17 -> Anzahl | G143: =$G$17 -> Zeitbedarf in AT pro zugeteilte Grösse | I143: =$I$17 -> Summe Zeitbedarf in AT | J143: =$J$17 -> Bemerkung (Hauptverantwortung, Planung, konzeptioneller Ansatz) | K143: =$K$17 -> Erklärungen zu den Berechnung / Kalkulations-Faktoren
A144: =CONCATENATE($D$142,B144) ->  | D144: =$D$18 -> Ist | E144: =$E$18 -> Änderung | F144: =$F$18 -> Soll | G144: =$G$18 -> Ausgangs- wert | H144: =$H$18 -> eigener Faktor
A145: =CONCATENATE($D$142,B145) -> WD1 | B145: =B131 -> WD1 | C145: =$C$19 -> Armeeseelsorge | F145: =D145+E145 -> 0 | G145: =$G$19 -> 0 | I145: =F145*IF(ISBLANK(H145),G145,H145) -> 0 | K145: =$K$19 -> Anzahl Tage pro Jahr
A146: WD2 | B146: =B132 -> WD2 | C146: =$C$20 -> Militär- / Bevölkerungsschutzdienst | F146: 0 | G146: =$G$20 -> 0 | I146: 0 | K146: =$K$20 -> Anzahl Tage pro Jahr
A147: WD3 | B147: WD3 | C147: =$C$21 -> WEA | F147: 0 | G147: =$G$21 -> 0 | I147: 0 | K147: =$K$21 -> für die Amtsperiode xx geplant
A148: WD4 | B148: WD4 | C148: =$C$22 -> Langzeitweiterbildung | F148: 0 | G148: =$G$22 -> 0 | I148: 0
A149: WD5 | B149: WD5 | C149: =$C$23 -> Öffentliche Ämter, Nebenbesch. | F149: 0 | G149: =$G$23 -> 0 | I149: 0
A150: WD6 | B150: WD6 | C150: =$C$24 -> Besondere und übrige Aufgaben | F150: =D150+E150 -> 0 | G150: =$G$24 -> 0 | I150: =F150*IF(ISBLANK(H150),G150,H150) -> 0
A151: WD7 | B151: WD7 | C151: =$C$25 -> … | F151: =D151+E151 -> 0 | G151: =$G$25 -> 0 | I151: 0
A152: WD8 | B152: WD8 | C152: =$C$26 -> … | F152: 0 | G152: =$G$26 -> 0 | I152: 0
A153: WD9 | B153: WD9 | C153: =$C$27 -> … | F153: 0 | G153: =$G$27 -> 0 | I153: 0
A154: WD10 | B154: WD10 | C154: =$C$28 -> … | F154: 0 | G154: =$G$28 -> 0 | I154: 0

Sheet Stellenbeschrieb Einzelperson
C1: a
C2: a
C3: a
B4: Pfarramtlicher Aufgaben- und Verantwortungsbereichsbericht
C5: a
B6: Pfarrperson: | F6: =IF(ISERROR(VLOOKUP(#REF!,Pfarrpersonen!$A$7:$H$22,4,FALSE)),"",VLOOKUP(#REF!,Pfarrpersonen!$A$7:$H$22,4,FALSE)) ->  | G6: =IF(ISERROR(VLOOKUP(C6,Pfarrpersonen!$A$7:$H$22,2,FALSE)),"",VLOOKUP(C6,Pfarrpersonen!$A$7:$H$22,2,FALSE)) -> 
B7: Pensum: | C7: a | F7: =IF(ISERROR(VLOOKUP(C6,Pfarrpersonen!$A$7:$H$22,7,FALSE)),"",VLOOKUP(C6,Pfarrpersonen!$A$7:$H$22,7,FALSE)) -> 
B8: Zur Verfügung stehende Arbeitszeit: | C8: a | F8: =IF(ISERROR(VLOOKUP(C6,Pfarrpersonen!$A$7:$H$22,8,FALSE)),"",VLOOKUP(C6,Pfarrpersonen!$A$7:$H$22,8,FALSE)) ->  | G8: Arbeitstage
B9: Verplante Arbeitszeit: | C9: a | F9: =SUM(F14:F135) -> 0 | G9: Arbeitstage
B10: Verplantes Pensum: | F10: =F9/Pfarrpersonen!B33 -> 0
C11: a
A12: =CONCATENATE($C$6,'A&V_Verk.&GD'!B17) -> GD0 | B12: ='A&V_Verk.&GD'!C17 -> Arbeitsbereich Gottesdienst / Kasualien | C12: ='A&V_Verk.&GD'!D17 -> Anzahl Anlässe pro Jahr | D12: Zeitbedarf in AT pro zugeteilte Grösse | F12: ='A&V_Verk.&GD'!I17 -> Summe Zeitbedarf in AT | G12: ='A&V_Verk.&GD'!J17 -> Bemerkung (Hauptverantwortung, Planung, konzeptioneller Ansatz)
C13: a | D13: Ausgangs- wert | E13: eigener Faktor
A14: =CONCATENATE($C$6,'A&V_Verk.&GD'!B19) -> GD1 | B14: =IF(ISERROR(VLOOKUP($A14,'A&V_Verk.&GD'!$A:$J,3,FALSE)),"",(VLOOKUP($A14,'A&V_Verk.&GD'!$A:$J,3,FALSE))) -> Predigtgottesdienste | C14: =IF(ISERROR(VLOOKUP($A14,'A&V_Verk.&GD'!$A:$J,6,FALSE)),"",(VLOOKUP($A14,'A&V_Verk.&GD'!$A:$J,6,FALSE))) -> 0 | D14: =IF(ISERROR(VLOOKUP($A14,'A&V_Verk.&GD'!$A:$J,7,FALSE)),"",(VLOOKUP($A14,'A&V_Verk.&GD'!$A:$J,7,FALSE))) -> 1.2 | E14: =IF(ISERROR(VLOOKUP($A14,'A&V_Verk.&GD'!$A:$J,8,FALSE)),"",(VLOOKUP($A14,'A&V_Verk.&GD'!$A:$J,8,FALSE))) -> 0 | F14: =IF(ISERROR(VLOOKUP($A14,'A&V_Verk.&GD'!$A:$J,9,FALSE)),"",(VLOOKUP($A14,'A&V_Verk.&GD'!$A:$J,9,FALSE))) -> 0 | G14: =IF(ISERROR(VLOOKUP($A14,'A&V_Verk.&GD'!$A:$J,10,FALSE)),"",(VLOOKUP($A14,'A&V_Verk.&GD'!$A:$J,10,FALSE))) -> 0
A15: =CONCATENATE($C$6,'A&V_Verk.&GD'!B20) -> GD2 | B15: =IF(ISERROR(VLOOKUP($A15,'A&V_Verk.&GD'!$A:$J,3,FALSE)),"",(VLOOKUP($A15,'A&V_Verk.&GD'!$A:$J,3,FALSE))) -> Festtagsgottesdienste | C15: =IF(ISERROR(VLOOKUP($A15,'A&V_Verk.&GD'!$A:$J,6,FALSE)),"",(VLOOKUP($A15,'A&V_Verk.&GD'!$A:$J,6,FALSE))) -> 0 | D15: =IF(ISERROR(VLOOKUP($A15,'A&V_Verk.&GD'!$A:$J,7,FALSE)),"",(VLOOKUP($A15,'A&V_Verk.&GD'!$A:$J,7,FALSE))) -> 1.5 | E15: =IF(ISERROR(VLOOKUP($A15,'A&V_Verk.&GD'!$A:$J,8,FALSE)),"",(VLOOKUP($A15,'A&V_Verk.&GD'!$A:$J,8,FALSE))) -> 0 | F15: =IF(ISERROR(VLOOKUP($A15,'A&V_Verk.&GD'!$A:$J,9,FALSE)),"",(VLOOKUP($A15,'A&V_Verk.&GD'!$A:$J,9,FALSE))) -> 0 | G15: =IF(ISERROR(VLOOKUP($A15,'A&V_Verk.&GD'!$A:$J,10,FALSE)),"",(VLOOKUP($A15,'A&V_Verk.&GD'!$A:$J,10,FALSE))) -> 0
A16: =CONCATENATE($C$6,'A&V_Verk.&GD'!B21) -> GD3 | B16: =IF(ISERROR(VLOOKUP($A16,'A&V_Verk.&GD'!$A:$J,3,FALSE)),"",(VLOOKUP($A16,'A&V_Verk.&GD'!$A:$J,3,FALSE))) -> Liturgische Feiern | C16: =IF(ISERROR(VLOOKUP($A16,'A&V_Verk.&GD'!$A:$J,6,FALSE)),"",(VLOOKUP($A16,'A&V_Verk.&GD'!$A:$J,6,FALSE))) -> 0 | D16: =IF(ISERROR(VLOOKUP($A16,'A&V_Verk.&GD'!$A:$J,7,FALSE)),"",(VLOOKUP($A16,'A&V_Verk.&GD'!$A:$J,7,FALSE))) -> 0.5 | E16: =IF(ISERROR(VLOOKUP($A16,'A&V_Verk.&GD'!$A:$J,8,FALSE)),"",(VLOOKUP($A16,'A&V_Verk.&GD'!$A:$J,8,FALSE))) -> 0 | F16: =IF(ISERROR(VLOOKUP($A16,'A&V_Verk.&GD'!$A:$J,9,FALSE)),"",(VLOOKUP($A16,'A&V_Verk.&GD'!$A:$J,9,FALSE))) -> 0 | G16: =IF(ISERROR(VLOOKUP($A16,'A&V_Verk.&GD'!$A:$J,10,FALSE)),"",(VLOOKUP($A16,'A&V_Verk.&GD'!$A:$J,10,FALSE))) -> 0
A17: =CONCATENATE($C$6,'A&V_Verk.&GD'!B22) -> GD4 | B17: =IF(ISERROR(VLOOKUP($A17,'A&V_Verk.&GD'!$A:$J,3,FALSE)),"",(VLOOKUP($A17,'A&V_Verk.&GD'!$A:$J,3,FALSE))) -> Abdankungen | C17: =IF(ISERROR(VLOOKUP($A17,'A&V_Verk.&GD'!$A:$J,6,FALSE)),"",(VLOOKUP($A17,'A&V_Verk.&GD'!$A:$J,6,FALSE))) -> 0 | D17: =IF(ISERROR(VLOOKUP($A17,'A&V_Verk.&GD'!$A:$J,7,FALSE)),"",(VLOOKUP($A17,'A&V_Verk.&GD'!$A:$J,7,FALSE))) -> 1.5 | E17: =IF(ISERROR(VLOOKUP($A17,'A&V_Verk.&GD'!$A:$J,8,FALSE)),"",(VLOOKUP($A17,'A&V_Verk.&GD'!$A:$J,8,FALSE))) -> 0 | F17: =IF(ISERROR(VLOOKUP($A17,'A&V_Verk.&GD'!$A:$J,9,FALSE)),"",(VLOOKUP($A17,'A&V_Verk.&GD'!$A:$J,9,FALSE))) -> 0 | G17: =IF(ISERROR(VLOOKUP($A17,'A&V_Verk.&GD'!$A:$J,10,FALSE)),"",(VLOOKUP($A17,'A&V_Verk.&GD'!$A:$J,10,FALSE))) -> 0
A18: =CONCATENATE($C$6,'A&V_Verk.&GD'!B23) -> GD5 | B18: =IF(ISERROR(VLOOKUP($A18,'A&V_Verk.&GD'!$A:$J,3,FALSE)),"",(VLOOKUP($A18,'A&V_Verk.&GD'!$A:$J,3,FALSE))) -> Beisetzung am Grab | C18: =IF(ISERROR(VLOOKUP($A18,'A&V_Verk.&GD'!$A:$J,6,FALSE)),"",(VLOOKUP($A18,'A&V_Verk.&GD'!$A:$J,6,FALSE))) -> 0 | D18: =IF(ISERROR(VLOOKUP($A18,'A&V_Verk.&GD'!$A:$J,7,FALSE)),"",(VLOOKUP($A18,'A&V_Verk.&GD'!$A:$J,7,FALSE))) -> 0.8 | E18: =IF(ISERROR(VLOOKUP($A18,'A&V_Verk.&GD'!$A:$J,8,FALSE)),"",(VLOOKUP($A18,'A&V_Verk.&GD'!$A:$J,8,FALSE))) -> 0 | F18: =IF(ISERROR(VLOOKUP($A18,'A&V_Verk.&GD'!$A:$J,9,FALSE)),"",(VLOOKUP($A18,'A&V_Verk.&GD'!$A:$J,9,FALSE))) -> 0 | G18: =IF(ISERROR(VLOOKUP($A18,'A&V_Verk.&GD'!$A:$J,10,FALSE)),"",(VLOOKUP($A18,'A&V_Verk.&GD'!$A:$J,10,FALSE))) -> 0
A19: =CONCATENATE($C$6,'A&V_Verk.&GD'!B24) -> GD6 | B19: =IF(ISERROR(VLOOKUP($A19,'A&V_Verk.&GD'!$A:$J,3,FALSE)),"",(VLOOKUP($A19,'A&V_Verk.&GD'!$A:$J,3,FALSE))) -> Taufen (im Gemeindegottesdienst) | C19: =IF(ISERROR(VLOOKUP($A19,'A&V_Verk.&GD'!$A:$J,6,FALSE)),"",(VLOOKUP($A19,'A&V_Verk.&GD'!$A:$J,6,FALSE))) -> 0 | D19: =IF(ISERROR(VLOOKUP($A19,'A&V_Verk.&GD'!$A:$J,7,FALSE)),"",(VLOOKUP($A19,'A&V_Verk.&GD'!$A:$J,7,FALSE))) -> 0.5 | E19: =IF(ISERROR(VLOOKUP($A19,'A&V_Verk.&GD'!$A:$J,8,FALSE)),"",(VLOOKUP($A19,'A&V_Verk.&GD'!$A:$J,8,FALSE))) -> 0 | F19: =IF(ISERROR(VLOOKUP($A19,'A&V_Verk.&GD'!$A:$J,9,FALSE)),"",(VLOOKUP($A19,'A&V_Verk.&GD'!$A:$J,9,FALSE))) -> 0 | G19: =IF(ISERROR(VLOOKUP($A19,'A&V_Verk.&GD'!$A:$J,10,FALSE)),"",(VLOOKUP($A19,'A&V_Verk.&GD'!$A:$J,10,FALSE))) -> 0
A20: =CONCATENATE($C$6,'A&V_Verk.&GD'!B25) -> GD7 | B20: =IF(ISERROR(VLOOKUP($A20,'A&V_Verk.&GD'!$A:$J,3,FALSE)),"",(VLOOKUP($A20,'A&V_Verk.&GD'!$A:$J,3,FALSE))) -> Trauungen als eigene gottesdienstliche Feier | C20: =IF(ISERROR(VLOOKUP($A20,'A&V_Verk.&GD'!$A:$J,6,FALSE)),"",(VLOOKUP($A20,'A&V_Verk.&GD'!$A:$J,6,FALSE))) -> 0 | D20: =IF(ISERROR(VLOOKUP($A20,'A&V_Verk.&GD'!$A:$J,7,FALSE)),"",(VLOOKUP($A20,'A&V_Verk.&GD'!$A:$J,7,FALSE))) -> 1.5 | E20: =IF(ISERROR(VLOOKUP($A20,'A&V_Verk.&GD'!$A:$J,8,FALSE)),"",(VLOOKUP($A20,'A&V_Verk.&GD'!$A:$J,8,FALSE))) -> 0 | F20: =IF(ISERROR(VLOOKUP($A20,'A&V_Verk.&GD'!$A:$J,9,FALSE)),"",(VLOOKUP($A20,'A&V_Verk.&GD'!$A:$J,9,FALSE))) -> 0 | G20: =IF(ISERROR(VLOOKUP($A20,'A&V_Verk.&GD'!$A:$J,10,FALSE)),"",(VLOOKUP($A20,'A&V_Verk.&GD'!$A:$J,10,FALSE))) -> 0
A21: =CONCATENATE($C$6,'A&V_Verk.&GD'!B26) -> GD8 | B21: =IF(ISERROR(VLOOKUP($A21,'A&V_Verk.&GD'!$A:$J,3,FALSE)),"",(VLOOKUP($A21,'A&V_Verk.&GD'!$A:$J,3,FALSE))) -> Taufen als eigene gottesdienstliche Feier | C21: =IF(ISERROR(VLOOKUP($A21,'A&V_Verk.&GD'!$A:$J,6,FALSE)),"",(VLOOKUP($A21,'A&V_Verk.&GD'!$A:$J,6,FALSE))) -> 0 | D21: =IF(ISERROR(VLOOKUP($A21,'A&V_Verk.&GD'!$A:$J,7,FALSE)),"",(VLOOKUP($A21,'A&V_Verk.&GD'!$A:$J,7,FALSE))) -> 1 | E21: =IF(ISERROR(VLOOKUP($A21,'A&V_Verk.&GD'!$A:$J,8,FALSE)),"",(VLOOKUP($A21,'A&V_Verk.&GD'!$A:$J,8,FALSE))) -> 0 | F21: =IF(ISERROR(VLOOKUP($A21,'A&V_Verk.&GD'!$A:$J,9,FALSE)),"",(VLOOKUP($A21,'A&V_Verk.&GD'!$A:$J,9,FALSE))) -> 0 | G21: =IF(ISERROR(VLOOKUP($A21,'A&V_Verk.&GD'!$A:$J,10,FALSE)),"",(VLOOKUP($A21,'A&V_Verk.&GD'!$A:$J,10,FALSE))) -> 0
A22: =CONCATENATE($C$6,'A&V_Verk.&GD'!B27) -> GD9 | B22: =IF(ISERROR(VLOOKUP($A22,'A&V_Verk.&GD'!$A:$J,3,FALSE)),"",(VLOOKUP($A22,'A&V_Verk.&GD'!$A:$J,3,FALSE))) -> Heim-Gottesdienste | C22: =IF(ISERROR(VLOOKUP($A22,'A&V_Verk.&GD'!$A:$J,6,FALSE)),"",(VLOOKUP($A22,'A&V_Verk.&GD'!$A:$J,6,FALSE))) -> 0 | D22: =IF(ISERROR(VLOOKUP($A22,'A&V_Verk.&GD'!$A:$J,7,FALSE)),"",(VLOOKUP($A22,'A&V_Verk.&GD'!$A:$J,7,FALSE))) -> 0 | E22: =IF(ISERROR(VLOOKUP($A22,'A&V_Verk.&GD'!$A:$J,8,FALSE)),"",(VLOOKUP($A22,'A&V_Verk.&GD'!$A:$J,8,FALSE))) -> 0 | F22: =IF(ISERROR(VLOOKUP($A22,'A&V_Verk.&GD'!$A:$J,9,FALSE)),"",(VLOOKUP($A22,'A&V_Verk.&GD'!$A:$J,9,FALSE))) -> 0 | G22: =IF(ISERROR(VLOOKUP($A22,'A&V_Verk.&GD'!$A:$J,10,FALSE)),"",(VLOOKUP($A22,'A&V_Verk.&GD'!$A:$J,10,FALSE))) -> 0
A23: =CONCATENATE($C$6,'A&V_Verk.&GD'!B28) -> GD10 | B23: =IF(ISERROR(VLOOKUP($A23,'A&V_Verk.&GD'!$A:$J,3,FALSE)),"",(VLOOKUP($A23,'A&V_Verk.&GD'!$A:$J,3,FALSE))) -> Besondere und übrige Aufgaben | C23: =IF(ISERROR(VLOOKUP($A23,'A&V_Verk.&GD'!$A:$J,6,FALSE)),"",(VLOOKUP($A23,'A&V_Verk.&GD'!$A:$J,6,FALSE))) -> 0 | D23: =IF(ISERROR(VLOOKUP($A23,'A&V_Verk.&GD'!$A:$J,7,FALSE)),"",(VLOOKUP($A23,'A&V_Verk.&GD'!$A:$J,7,FALSE))) -> 0 | E23: =IF(ISERROR(VLOOKUP($A23,'A&V_Verk.&GD'!$A:$J,8,FALSE)),"",(VLOOKUP($A23,'A&V_Verk.&GD'!$A:$J,8,FALSE))) -> 0 | F23: =IF(ISERROR(VLOOKUP($A23,'A&V_Verk.&GD'!$A:$J,9,FALSE)),"",(VLOOKUP($A23,'A&V_Verk.&GD'!$A:$J,9,FALSE))) -> 0 | G23: =IF(ISERROR(VLOOKUP($A23,'A&V_Verk.&GD'!$A:$J,10,FALSE)),"",(VLOOKUP($A23,'A&V_Verk.&GD'!$A:$J,10,FALSE))) -> 0
A24: =CONCATENATE($C$6,'A&V_Verk.&GD'!B29) -> GD11 | B24: =IF(ISERROR(VLOOKUP($A24,'A&V_Verk.&GD'!$A:$J,3,FALSE)),"",(VLOOKUP($A24,'A&V_Verk.&GD'!$A:$J,3,FALSE))) -> … | C24: =IF(ISERROR(VLOOKUP($A24,'A&V_Verk.&GD'!$A:$J,6,FALSE)),"",(VLOOKUP($A24,'A&V_Verk.&GD'!$A:$J,6,FALSE))) -> 0 | D24: =IF(ISERROR(VLOOKUP($A24,'A&V_Verk.&GD'!$A:$J,7,FALSE)),"",(VLOOKUP($A24,'A&V_Verk.&GD'!$A:$J,7,FALSE))) -> 0 | E24: =IF(ISERROR(VLOOKUP($A24,'A&V_Verk.&GD'!$A:$J,8,FALSE)),"",(VLOOKUP($A24,'A&V_Verk.&GD'!$A:$J,8,FALSE))) -> 0 | F24: =IF(ISERROR(VLOOKUP($A24,'A&V_Verk.&GD'!$A:$J,9,FALSE)),"",(VLOOKUP($A24,'A&V_Verk.&GD'!$A:$J,9,FALSE))) -> 0 | G24: =IF(ISERROR(VLOOKUP($A24,'A&V_Verk.&GD'!$A:$J,10,FALSE)),"",(VLOOKUP($A24,'A&V_Verk.&GD'!$A:$J,10,FALSE))) -> 0
A25: =CONCATENATE($C$6,'A&V_Verk.&GD'!B30) -> GD12 | B25: =IF(ISERROR(VLOOKUP($A25,'A&V_Verk.&GD'!$A:$J,3,FALSE)),"",(VLOOKUP($A25,'A&V_Verk.&GD'!$A:$J,3,FALSE))) -> … | C25: =IF(ISERROR(VLOOKUP($A25,'A&V_Verk.&GD'!$A:$J,6,FALSE)),"",(VLOOKUP($A25,'A&V_Verk.&GD'!$A:$J,6,FALSE))) -> 0 | D25: =IF(ISERROR(VLOOKUP($A25,'A&V_Verk.&GD'!$A:$J,7,FALSE)),"",(VLOOKUP($A25,'A&V_Verk.&GD'!$A:$J,7,FALSE))) -> 0 | E25: =IF(ISERROR(VLOOKUP($A25,'A&V_Verk.&GD'!$A:$J,8,FALSE)),"",(VLOOKUP($A25,'A&V_Verk.&GD'!$A:$J,8,FALSE))) -> 0 | F25: =IF(ISERROR(VLOOKUP($A25,'A&V_Verk.&GD'!$A:$J,9,FALSE)),"",(VLOOKUP($A25,'A&V_Verk.&GD'!$A:$J,9,FALSE))) -> 0 | G25: =IF(ISERROR(VLOOKUP($A25,'A&V_Verk.&GD'!$A:$J,10,FALSE)),"",(VLOOKUP($A25,'A&V_Verk.&GD'!$A:$J,10,FALSE))) -> 0
A26: =CONCATENATE($C$6,'A&V_Verk.&GD'!B31) -> GD13 | B26: =IF(ISERROR(VLOOKUP($A26,'A&V_Verk.&GD'!$A:$J,3,FALSE)),"",(VLOOKUP($A26,'A&V_Verk.&GD'!$A:$J,3,FALSE))) -> … | C26: =IF(ISERROR(VLOOKUP($A26,'A&V_Verk.&GD'!$A:$J,6,FALSE)),"",(VLOOKUP($A26,'A&V_Verk.&GD'!$A:$J,6,FALSE))) -> 0 | D26: =IF(ISERROR(VLOOKUP($A26,'A&V_Verk.&GD'!$A:$J,7,FALSE)),"",(VLOOKUP($A26,'A&V_Verk.&GD'!$A:$J,7,FALSE))) -> 0 | E26: =IF(ISERROR(VLOOKUP($A26,'A&V_Verk.&GD'!$A:$J,8,FALSE)),"",(VLOOKUP($A26,'A&V_Verk.&GD'!$A:$J,8,FALSE))) -> 0 | F26: =IF(ISERROR(VLOOKUP($A26,'A&V_Verk.&GD'!$A:$J,9,FALSE)),"",(VLOOKUP($A26,'A&V_Verk.&GD'!$A:$J,9,FALSE))) -> 0 | G26: =IF(ISERROR(VLOOKUP($A26,'A&V_Verk.&GD'!$A:$J,10,FALSE)),"",(VLOOKUP($A26,'A&V_Verk.&GD'!$A:$J,10,FALSE))) -> 0
A27: =CONCATENATE($C$6,'A&V_Verk.&GD'!B32) -> GD14 | B27: =IF(ISERROR(VLOOKUP($A27,'A&V_Verk.&GD'!$A:$J,3,FALSE)),"",(VLOOKUP($A27,'A&V_Verk.&GD'!$A:$J,3,FALSE))) -> … | C27: =IF(ISERROR(VLOOKUP($A27,'A&V_Verk.&GD'!$A:$J,6,FALSE)),"",(VLOOKUP($A27,'A&V_Verk.&GD'!$A:$J,6,FALSE))) -> 0 | D27: =IF(ISERROR(VLOOKUP($A27,'A&V_Verk.&GD'!$A:$J,7,FALSE)),"",(VLOOKUP($A27,'A&V_Verk.&GD'!$A:$J,7,FALSE))) -> 0 | E27: =IF(ISERROR(VLOOKUP($A27,'A&V_Verk.&GD'!$A:$J,8,FALSE)),"",(VLOOKUP($A27,'A&V_Verk.&GD'!$A:$J,8,FALSE))) -> 0 | F27: =IF(ISERROR(VLOOKUP($A27,'A&V_Verk.&GD'!$A:$J,9,FALSE)),"",(VLOOKUP($A27,'A&V_Verk.&GD'!$A:$J,9,FALSE))) -> 0 | G27: =IF(ISERROR(VLOOKUP($A27,'A&V_Verk.&GD'!$A:$J,10,FALSE)),"",(VLOOKUP($A27,'A&V_Verk.&GD'!$A:$J,10,FALSE))) -> 0
C28: a
A29: =CONCATENATE($C$6,'A&V_Diak.&Seels.'!B17) -> SEE0 | B29: ='A&V_Diak.&Seels.'!C17 -> Arbeitsbereich Seelsorge | C29: ='A&V_Diak.&Seels.'!D17 -> Anzahl Anlässe pro Jahr | D29: Zeitbedarf in AT pro zugeteilte Grösse | F29: ='A&V_Diak.&Seels.'!I17 -> Summe Zeitbedarf in AT | G29: ='A&V_Diak.&Seels.'!J17 -> Bemerkung (Hauptverantwortung, Planung, konzeptioneller Ansatz)
C30: a | D30: Ausgangs- wert | E30: eigener Faktor
A31: =CONCATENATE($C$6,'A&V_Diak.&Seels.'!B19) -> SEE1 | B31: =IF(ISERROR(VLOOKUP($A31,'A&V_Diak.&Seels.'!$A:$J,3,FALSE)),"",(VLOOKUP($A31,'A&V_Diak.&Seels.'!$A:$J,3,FALSE))) -> Seelsorge in der Gemeinde (Anzahl zugewandte Mitglieder) | C31: =IF(ISERROR(VLOOKUP($A31,'A&V_Diak.&Seels.'!$A:$J,6,FALSE)),"",(VLOOKUP($A31,'A&V_Diak.&Seels.'!$A:$J,6,FALSE))) -> 0 | D31: =IF(ISERROR(VLOOKUP($A31,'A&V_Diak.&Seels.'!$A:$J,7,FALSE)),"",(VLOOKUP($A31,'A&V_Diak.&Seels.'!$A:$J,7,FALSE))) -> 0.01145475372 | E31: =IF(ISERROR(VLOOKUP($A31,'A&V_Diak.&Seels.'!$A:$J,8,FALSE)),"",(VLOOKUP($A31,'A&V_Diak.&Seels.'!$A:$J,8,FALSE))) -> 0 | F31: =IF(ISERROR(VLOOKUP($A31,'A&V_Diak.&Seels.'!$A:$J,9,FALSE)),"",(VLOOKUP($A31,'A&V_Diak.&Seels.'!$A:$J,9,FALSE))) -> 0
A32: =CONCATENATE($C$6,'A&V_Diak.&Seels.'!B20) -> SEE2 | B32: =IF(ISERROR(VLOOKUP($A32,'A&V_Diak.&Seels.'!$A:$J,3,FALSE)),"",(VLOOKUP($A32,'A&V_Diak.&Seels.'!$A:$J,3,FALSE))) -> Betreuung von Gruppen (AZ Gruppen) | C32: =IF(ISERROR(VLOOKUP($A32,'A&V_Diak.&Seels.'!$A:$J,6,FALSE)),"",(VLOOKUP($A32,'A&V_Diak.&Seels.'!$A:$J,6,FALSE))) -> 0 | D32: =IF(ISERROR(VLOOKUP($A32,'A&V_Diak.&Seels.'!$A:$J,7,FALSE)),"",(VLOOKUP($A32,'A&V_Diak.&Seels.'!$A:$J,7,FALSE))) -> 1 | E32: =IF(ISERROR(VLOOKUP($A32,'A&V_Diak.&Seels.'!$A:$J,8,FALSE)),"",(VLOOKUP($A32,'A&V_Diak.&Seels.'!$A:$J,8,FALSE))) -> 0 | F32: =IF(ISERROR(VLOOKUP($A32,'A&V_Diak.&Seels.'!$A:$J,9,FALSE)),"",(VLOOKUP($A32,'A&V_Diak.&Seels.'!$A:$J,9,FALSE))) -> 0 | G32: =IF(ISERROR(VLOOKUP($A32,'A&V_Diak.&Seels.'!$A:$J,10,FALSE)),"",(VLOOKUP($A32,'A&V_Diak.&Seels.'!$A:$J,10,FALSE))) -> 0
A33: =CONCATENATE($C$6,'A&V_Diak.&Seels.'!B21) -> SEE3 | B33: =IF(ISERROR(VLOOKUP($A33,'A&V_Diak.&Seels.'!$A:$J,3,FALSE)),"",(VLOOKUP($A33,'A&V_Diak.&Seels.'!$A:$J,3,FALSE))) -> Besuche an Institutionen | C33: =IF(ISERROR(VLOOKUP($A33,'A&V_Diak.&Seels.'!$A:$J,6,FALSE)),"",(VLOOKUP($A33,'A&V_Diak.&Seels.'!$A:$J,6,FALSE))) -> 0 | D33: =IF(ISERROR(VLOOKUP($A33,'A&V_Diak.&Seels.'!$A:$J,7,FALSE)),"",(VLOOKUP($A33,'A&V_Diak.&Seels.'!$A:$J,7,FALSE))) -> 0.1145475372 | E33: =IF(ISERROR(VLOOKUP($A33,'A&V_Diak.&Seels.'!$A:$J,8,FALSE)),"",(VLOOKUP($A33,'A&V_Diak.&Seels.'!$A:$J,8,FALSE))) -> 0 | F33: =IF(ISERROR(VLOOKUP($A33,'A&V_Diak.&Seels.'!$A:$J,9,FALSE)),"",(VLOOKUP($A33,'A&V_Diak.&Seels.'!$A:$J,9,FALSE))) -> 0 | G33: =IF(ISERROR(VLOOKUP($A33,'A&V_Diak.&Seels.'!$A:$J,10,FALSE)),"",(VLOOKUP($A33,'A&V_Diak.&Seels.'!$A:$J,10,FALSE))) -> 0
A34: =CONCATENATE($C$6,'A&V_Diak.&Seels.'!B22) -> SEE4 | B34: =IF(ISERROR(VLOOKUP($A34,'A&V_Diak.&Seels.'!$A:$J,3,FALSE)),"",(VLOOKUP($A34,'A&V_Diak.&Seels.'!$A:$J,3,FALSE))) -> Notfallseelsorge | C34: =IF(ISERROR(VLOOKUP($A34,'A&V_Diak.&Seels.'!$A:$J,6,FALSE)),"",(VLOOKUP($A34,'A&V_Diak.&Seels.'!$A:$J,6,FALSE))) -> 0 | D34: =IF(ISERROR(VLOOKUP($A34,'A&V_Diak.&Seels.'!$A:$J,7,FALSE)),"",(VLOOKUP($A34,'A&V_Diak.&Seels.'!$A:$J,7,FALSE))) -> 0 | E34: =IF(ISERROR(VLOOKUP($A34,'A&V_Diak.&Seels.'!$A:$J,8,FALSE)),"",(VLOOKUP($A34,'A&V_Diak.&Seels.'!$A:$J,8,FALSE))) -> 0 | F34: =IF(ISERROR(VLOOKUP($A34,'A&V_Diak.&Seels.'!$A:$J,9,FALSE)),"",(VLOOKUP($A34,'A&V_Diak.&Seels.'!$A:$J,9,FALSE))) -> 0 | G34: =IF(ISERROR(VLOOKUP($A34,'A&V_Diak.&Seels.'!$A:$J,10,FALSE)),"",(VLOOKUP($A34,'A&V_Diak.&Seels.'!$A:$J,10,FALSE))) -> 0
A35: =CONCATENATE($C$6,'A&V_Diak.&Seels.'!B23) -> SEE5 | B35: =IF(ISERROR(VLOOKUP($A35,'A&V_Diak.&Seels.'!$A:$J,3,FALSE)),"",(VLOOKUP($A35,'A&V_Diak.&Seels.'!$A:$J,3,FALSE))) -> Besondere und übrige Aufgaben | C35: =IF(ISERROR(VLOOKUP($A35,'A&V_Diak.&Seels.'!$A:$J,6,FALSE)),"",(VLOOKUP($A35,'A&V_Diak.&Seels.'!$A:$J,6,FALSE))) -> 0 | D35: =IF(ISERROR(VLOOKUP($A35,'A&V_Diak.&Seels.'!$A:$J,7,FALSE)),"",(VLOOKUP($A35,'A&V_Diak.&Seels.'!$A:$J,7,FALSE))) -> 0 | E35: =IF(ISERROR(VLOOKUP($A35,'A&V_Diak.&Seels.'!$A:$J,8,FALSE)),"",(VLOOKUP($A35,'A&V_Diak.&Seels.'!$A:$J,8,FALSE))) -> 0 | F35: =IF(ISERROR(VLOOKUP($A35,'A&V_Diak.&Seels.'!$A:$J,9,FALSE)),"",(VLOOKUP($A35,'A&V_Diak.&Seels.'!$A:$J,9,FALSE))) -> 0 | G35: =IF(ISERROR(VLOOKUP($A35,'A&V_Diak.&Seels.'!$A:$J,10,FALSE)),"",(VLOOKUP($A35,'A&V_Diak.&Seels.'!$A:$J,10,FALSE))) -> 0
A36: =CONCATENATE($C$6,'A&V_Diak.&Seels.'!B24) -> SEE6 | B36: =IF(ISERROR(VLOOKUP($A36,'A&V_Diak.&Seels.'!$A:$J,3,FALSE)),"",(VLOOKUP($A36,'A&V_Diak.&Seels.'!$A:$J,3,FALSE))) -> … | C36: =IF(ISERROR(VLOOKUP($A36,'A&V_Diak.&Seels.'!$A:$J,6,FALSE)),"",(VLOOKUP($A36,'A&V_Diak.&Seels.'!$A:$J,6,FALSE))) -> 0 | D36: =IF(ISERROR(VLOOKUP($A36,'A&V_Diak.&Seels.'!$A:$J,7,FALSE)),"",(VLOOKUP($A36,'A&V_Diak.&Seels.'!$A:$J,7,FALSE))) -> 0 | E36: =IF(ISERROR(VLOOKUP($A36,'A&V_Diak.&Seels.'!$A:$J,8,FALSE)),"",(VLOOKUP($A36,'A&V_Diak.&Seels.'!$A:$J,8,FALSE))) -> 0 | F36: =IF(ISERROR(VLOOKUP($A36,'A&V_Diak.&Seels.'!$A:$J,9,FALSE)),"",(VLOOKUP($A36,'A&V_Diak.&Seels.'!$A:$J,9,FALSE))) -> 0 | G36: =IF(ISERROR(VLOOKUP($A36,'A&V_Diak.&Seels.'!$A:$J,10,FALSE)),"",(VLOOKUP($A36,'A&V_Diak.&Seels.'!$A:$J,10,FALSE))) -> 0
A37: =CONCATENATE($C$6,'A&V_Diak.&Seels.'!B25) -> SEE7 | B37: =IF(ISERROR(VLOOKUP($A37,'A&V_Diak.&Seels.'!$A:$J,3,FALSE)),"",(VLOOKUP($A37,'A&V_Diak.&Seels.'!$A:$J,3,FALSE))) -> … | C37: =IF(ISERROR(VLOOKUP($A37,'A&V_Diak.&Seels.'!$A:$J,6,FALSE)),"",(VLOOKUP($A37,'A&V_Diak.&Seels.'!$A:$J,6,FALSE))) -> 0 | D37: =IF(ISERROR(VLOOKUP($A37,'A&V_Diak.&Seels.'!$A:$J,7,FALSE)),"",(VLOOKUP($A37,'A&V_Diak.&Seels.'!$A:$J,7,FALSE))) -> 0 | E37: =IF(ISERROR(VLOOKUP($A37,'A&V_Diak.&Seels.'!$A:$J,8,FALSE)),"",(VLOOKUP($A37,'A&V_Diak.&Seels.'!$A:$J,8,FALSE))) -> 0 | F37: =IF(ISERROR(VLOOKUP($A37,'A&V_Diak.&Seels.'!$A:$J,9,FALSE)),"",(VLOOKUP($A37,'A&V_Diak.&Seels.'!$A:$J,9,FALSE))) -> 0 | G37: =IF(ISERROR(VLOOKUP($A37,'A&V_Diak.&Seels.'!$A:$J,10,FALSE)),"",(VLOOKUP($A37,'A&V_Diak.&Seels.'!$A:$J,10,FALSE))) -> 0
A38: =CONCATENATE($C$6,'A&V_Diak.&Seels.'!B26) -> SEE8 | B38: =IF(ISERROR(VLOOKUP($A38,'A&V_Diak.&Seels.'!$A:$J,3,FALSE)),"",(VLOOKUP($A38,'A&V_Diak.&Seels.'!$A:$J,3,FALSE))) -> … | C38: =IF(ISERROR(VLOOKUP($A38,'A&V_Diak.&Seels.'!$A:$J,6,FALSE)),"",(VLOOKUP($A38,'A&V_Diak.&Seels.'!$A:$J,6,FALSE))) -> 0 | D38: =IF(ISERROR(VLOOKUP($A38,'A&V_Diak.&Seels.'!$A:$J,7,FALSE)),"",(VLOOKUP($A38,'A&V_Diak.&Seels.'!$A:$J,7,FALSE))) -> 0 | E38: =IF(ISERROR(VLOOKUP($A38,'A&V_Diak.&Seels.'!$A:$J,8,FALSE)),"",(VLOOKUP($A38,'A&V_Diak.&Seels.'!$A:$J,8,FALSE))) -> 0 | F38: =IF(ISERROR(VLOOKUP($A38,'A&V_Diak.&Seels.'!$A:$J,9,FALSE)),"",(VLOOKUP($A38,'A&V_Diak.&Seels.'!$A:$J,9,FALSE))) -> 0 | G38: =IF(ISERROR(VLOOKUP($A38,'A&V_Diak.&Seels.'!$A:$J,10,FALSE)),"",(VLOOKUP($A38,'A&V_Diak.&Seels.'!$A:$J,10,FALSE))) -> 0
A39: =CONCATENATE($C$6,'A&V_Diak.&Seels.'!B27) -> SEE9 | B39: =IF(ISERROR(VLOOKUP($A39,'A&V_Diak.&Seels.'!$A:$J,3,FALSE)),"",(VLOOKUP($A39,'A&V_Diak.&Seels.'!$A:$J,3,FALSE))) -> … | C39: =IF(ISERROR(VLOOKUP($A39,'A&V_Diak.&Seels.'!$A:$J,6,FALSE)),"",(VLOOKUP($A39,'A&V_Diak.&Seels.'!$A:$J,6,FALSE))) -> 0 | D39: =IF(ISERROR(VLOOKUP($A39,'A&V_Diak.&Seels.'!$A:$J,7,FALSE)),"",(VLOOKUP($A39,'A&V_Diak.&Seels.'!$A:$J,7,FALSE))) -> 0 | E39: =IF(ISERROR(VLOOKUP($A39,'A&V_Diak.&Seels.'!$A:$J,8,FALSE)),"",(VLOOKUP($A39,'A&V_Diak.&Seels.'!$A:$J,8,FALSE))) -> 0 | F39: =IF(ISERROR(VLOOKUP($A39,'A&V_Diak.&Seels.'!$A:$J,9,FALSE)),"",(VLOOKUP($A39,'A&V_Diak.&Seels.'!$A:$J,9,FALSE))) -> 0 | G39: =IF(ISERROR(VLOOKUP($A39,'A&V_Diak.&Seels.'!$A:$J,10,FALSE)),"",(VLOOKUP($A39,'A&V_Diak.&Seels.'!$A:$J,10,FALSE))) -> 0
A40: =CONCATENATE($C$6,'A&V_Diak.&Seels.'!B28) -> SEE10 | B40: =IF(ISERROR(VLOOKUP($A40,'A&V_Diak.&Seels.'!$A:$J,3,FALSE)),"",(VLOOKUP($A40,'A&V_Diak.&Seels.'!$A:$J,3,FALSE))) -> … | C40: =IF(ISERROR(VLOOKUP($A40,'A&V_Diak.&Seels.'!$A:$J,6,FALSE)),"",(VLOOKUP($A40,'A&V_Diak.&Seels.'!$A:$J,6,FALSE))) -> 0 | D40: =IF(ISERROR(VLOOKUP($A40,'A&V_Diak.&Seels.'!$A:$J,7,FALSE)),"",(VLOOKUP($A40,'A&V_Diak.&Seels.'!$A:$J,7,FALSE))) -> 0 | E40: =IF(ISERROR(VLOOKUP($A40,'A&V_Diak.&Seels.'!$A:$J,8,FALSE)),"",(VLOOKUP($A40,'A&V_Diak.&Seels.'!$A:$J,8,FALSE))) -> 0 | F40: =IF(ISERROR(VLOOKUP($A40,'A&V_Diak.&Seels.'!$A:$J,9,FALSE)),"",(VLOOKUP($A40,'A&V_Diak.&Seels.'!$A:$J,9,FALSE))) -> 0 | G40: =IF(ISERROR(VLOOKUP($A40,'A&V_Diak.&Seels.'!$A:$J,10,FALSE)),"",(VLOOKUP($A40,'A&V_Diak.&Seels.'!$A:$J,10,FALSE))) -> 0
C41: a
A42: =CONCATENATE($C$6,'A&V_Diak.&Seels.'!B159) -> D0 | B42: ='A&V_Diak.&Seels.'!C159 -> Arbeitsbereich Diakonie | C42: ='A&V_Diak.&Seels.'!D159 -> Anzahl Stunden | D42: Zeitbedarf in AT pro zugeteilte Grösse | F42: ='A&V_Diak.&Seels.'!I159 -> Summe Zeitbedarf in AT | G42: ='A&V_Diak.&Seels.'!J159 -> Bemerkung (Hauptverantwortung, Planung, konzeptioneller Ansatz)
C43: a | D43: Ausgangs- wert | E43: eigener Faktor
A44: =CONCATENATE($C$6,'A&V_Diak.&Seels.'!B161) -> D1 | B44: =IF(ISERROR(VLOOKUP($A44,'A&V_Diak.&Seels.'!$A:$J,3,FALSE)),"",(VLOOKUP($A44,'A&V_Diak.&Seels.'!$A:$J,3,FALSE))) -> Veranstaltungen (AZ Stunden der Anlässe-> +AZ Std. * AZ Anlässe) | C44: =IF(ISERROR(VLOOKUP($A44,'A&V_Diak.&Seels.'!$A:$J,6,FALSE)),"",(VLOOKUP($A44,'A&V_Diak.&Seels.'!$A:$J,6,FALSE))) -> 0 | D44: =IF(ISERROR(VLOOKUP($A44,'A&V_Diak.&Seels.'!$A:$J,7,FALSE)),"",(VLOOKUP($A44,'A&V_Diak.&Seels.'!$A:$J,7,FALSE))) -> 0.1718213058 | E44: =IF(ISERROR(VLOOKUP($A44,'A&V_Diak.&Seels.'!$A:$J,8,FALSE)),"",(VLOOKUP($A44,'A&V_Diak.&Seels.'!$A:$J,8,FALSE))) -> 0 | F44: =IF(ISERROR(VLOOKUP($A44,'A&V_Diak.&Seels.'!$A:$J,9,FALSE)),"",(VLOOKUP($A44,'A&V_Diak.&Seels.'!$A:$J,9,FALSE))) -> 0 | G44: =IF(ISERROR(VLOOKUP($A44,'A&V_Diak.&Seels.'!$A:$J,10,FALSE)),"",(VLOOKUP($A44,'A&V_Diak.&Seels.'!$A:$J,10,FALSE))) -> 0
A45: =CONCATENATE($C$6,'A&V_Diak.&Seels.'!B162) -> D2 | B45: =IF(ISERROR(VLOOKUP($A45,'A&V_Diak.&Seels.'!$A:$J,3,FALSE)),"",(VLOOKUP($A45,'A&V_Diak.&Seels.'!$A:$J,3,FALSE))) -> Projekte (va Bene, letzte Hilfe etc.) | C45: =IF(ISERROR(VLOOKUP($A45,'A&V_Diak.&Seels.'!$A:$J,6,FALSE)),"",(VLOOKUP($A45,'A&V_Diak.&Seels.'!$A:$J,6,FALSE))) -> 0 | D45: =IF(ISERROR(VLOOKUP($A45,'A&V_Diak.&Seels.'!$A:$J,7,FALSE)),"",(VLOOKUP($A45,'A&V_Diak.&Seels.'!$A:$J,7,FALSE))) -> 0.1145475372 | E45: =IF(ISERROR(VLOOKUP($A45,'A&V_Diak.&Seels.'!$A:$J,8,FALSE)),"",(VLOOKUP($A45,'A&V_Diak.&Seels.'!$A:$J,8,FALSE))) -> 0 | F45: =IF(ISERROR(VLOOKUP($A45,'A&V_Diak.&Seels.'!$A:$J,9,FALSE)),"",(VLOOKUP($A45,'A&V_Diak.&Seels.'!$A:$J,9,FALSE))) -> 0 | G45: =IF(ISERROR(VLOOKUP($A45,'A&V_Diak.&Seels.'!$A:$J,10,FALSE)),"",(VLOOKUP($A45,'A&V_Diak.&Seels.'!$A:$J,10,FALSE))) -> 0
A46: =CONCATENATE($C$6,'A&V_Diak.&Seels.'!B163) -> D3 | B46: =IF(ISERROR(VLOOKUP($A46,'A&V_Diak.&Seels.'!$A:$J,3,FALSE)),"",(VLOOKUP($A46,'A&V_Diak.&Seels.'!$A:$J,3,FALSE))) -> Gruppen/Freiwillige | C46: =IF(ISERROR(VLOOKUP($A46,'A&V_Diak.&Seels.'!$A:$J,6,FALSE)),"",(VLOOKUP($A46,'A&V_Diak.&Seels.'!$A:$J,6,FALSE))) -> 0 | D46: =IF(ISERROR(VLOOKUP($A46,'A&V_Diak.&Seels.'!$A:$J,7,FALSE)),"",(VLOOKUP($A46,'A&V_Diak.&Seels.'!$A:$J,7,FALSE))) -> 0.1145475372 | E46: =IF(ISERROR(VLOOKUP($A46,'A&V_Diak.&Seels.'!$A:$J,8,FALSE)),"",(VLOOKUP($A46,'A&V_Diak.&Seels.'!$A:$J,8,FALSE))) -> 0 | F46: =IF(ISERROR(VLOOKUP($A46,'A&V_Diak.&Seels.'!$A:$J,9,FALSE)),"",(VLOOKUP($A46,'A&V_Diak.&Seels.'!$A:$J,9,FALSE))) -> 0 | G46: =IF(ISERROR(VLOOKUP($A46,'A&V_Diak.&Seels.'!$A:$J,10,FALSE)),"",(VLOOKUP($A46,'A&V_Diak.&Seels.'!$A:$J,10,FALSE))) -> 0
A47: =CONCATENATE($C$6,'A&V_Diak.&Seels.'!B164) -> D4 | B47: =IF(ISERROR(VLOOKUP($A47,'A&V_Diak.&Seels.'!$A:$J,3,FALSE)),"",(VLOOKUP($A47,'A&V_Diak.&Seels.'!$A:$J,3,FALSE))) -> Besondere und übrige Aufgaben | C47: =IF(ISERROR(VLOOKUP($A47,'A&V_Diak.&Seels.'!$A:$J,6,FALSE)),"",(VLOOKUP($A47,'A&V_Diak.&Seels.'!$A:$J,6,FALSE))) -> 0 | D47: =IF(ISERROR(VLOOKUP($A47,'A&V_Diak.&Seels.'!$A:$J,7,FALSE)),"",(VLOOKUP($A47,'A&V_Diak.&Seels.'!$A:$J,7,FALSE))) -> 0 | E47: =IF(ISERROR(VLOOKUP($A47,'A&V_Diak.&Seels.'!$A:$J,8,FALSE)),"",(VLOOKUP($A47,'A&V_Diak.&Seels.'!$A:$J,8,FALSE))) -> 0 | F47: =IF(ISERROR(VLOOKUP($A47,'A&V_Diak.&Seels.'!$A:$J,9,FALSE)),"",(VLOOKUP($A47,'A&V_Diak.&Seels.'!$A:$J,9,FALSE))) -> 0 | G47: =IF(ISERROR(VLOOKUP($A47,'A&V_Diak.&Seels.'!$A:$J,10,FALSE)),"",(VLOOKUP($A47,'A&V_Diak.&Seels.'!$A:$J,10,FALSE))) -> 0
A48: =CONCATENATE($C$6,'A&V_Diak.&Seels.'!B165) -> D5 | B48: =IF(ISERROR(VLOOKUP($A48,'A&V_Diak.&Seels.'!$A:$J,3,FALSE)),"",(VLOOKUP($A48,'A&V_Diak.&Seels.'!$A:$J,3,FALSE))) -> … | C48: =IF(ISERROR(VLOOKUP($A48,'A&V_Diak.&Seels.'!$A:$J,6,FALSE)),"",(VLOOKUP($A48,'A&V_Diak.&Seels.'!$A:$J,6,FALSE))) -> 0 | D48: =IF(ISERROR(VLOOKUP($A48,'A&V_Diak.&Seels.'!$A:$J,7,FALSE)),"",(VLOOKUP($A48,'A&V_Diak.&Seels.'!$A:$J,7,FALSE))) -> 0 | E48: =IF(ISERROR(VLOOKUP($A48,'A&V_Diak.&Seels.'!$A:$J,8,FALSE)),"",(VLOOKUP($A48,'A&V_Diak.&Seels.'!$A:$J,8,FALSE))) -> 0 | F48: =IF(ISERROR(VLOOKUP($A48,'A&V_Diak.&Seels.'!$A:$J,9,FALSE)),"",(VLOOKUP($A48,'A&V_Diak.&Seels.'!$A:$J,9,FALSE))) -> 0 | G48: =IF(ISERROR(VLOOKUP($A48,'A&V_Diak.&Seels.'!$A:$J,10,FALSE)),"",(VLOOKUP($A48,'A&V_Diak.&Seels.'!$A:$J,10,FALSE))) -> 0
A49: =CONCATENATE($C$6,'A&V_Diak.&Seels.'!B166) -> D6 | B49: =IF(ISERROR(VLOOKUP($A49,'A&V_Diak.&Seels.'!$A:$J,3,FALSE)),"",(VLOOKUP($A49,'A&V_Diak.&Seels.'!$A:$J,3,FALSE))) -> … | C49: =IF(ISERROR(VLOOKUP($A49,'A&V_Diak.&Seels.'!$A:$J,6,FALSE)),"",(VLOOKUP($A49,'A&V_Diak.&Seels.'!$A:$J,6,FALSE))) -> 0 | D49: =IF(ISERROR(VLOOKUP($A49,'A&V_Diak.&Seels.'!$A:$J,7,FALSE)),"",(VLOOKUP($A49,'A&V_Diak.&Seels.'!$A:$J,7,FALSE))) -> 0 | E49: =IF(ISERROR(VLOOKUP($A49,'A&V_Diak.&Seels.'!$A:$J,8,FALSE)),"",(VLOOKUP($A49,'A&V_Diak.&Seels.'!$A:$J,8,FALSE))) -> 0 | F49: =IF(ISERROR(VLOOKUP($A49,'A&V_Diak.&Seels.'!$A:$J,9,FALSE)),"",(VLOOKUP($A49,'A&V_Diak.&Seels.'!$A:$J,9,FALSE))) -> 0 | G49: =IF(ISERROR(VLOOKUP($A49,'A&V_Diak.&Seels.'!$A:$J,10,FALSE)),"",(VLOOKUP($A49,'A&V_Diak.&Seels.'!$A:$J,10,FALSE))) -> 0
A50: =CONCATENATE($C$6,'A&V_Diak.&Seels.'!B167) -> D7 | B50: =IF(ISERROR(VLOOKUP($A50,'A&V_Diak.&Seels.'!$A:$J,3,FALSE)),"",(VLOOKUP($A50,'A&V_Diak.&Seels.'!$A:$J,3,FALSE))) -> … | C50: =IF(ISERROR(VLOOKUP($A50,'A&V_Diak.&Seels.'!$A:$J,6,FALSE)),"",(VLOOKUP($A50,'A&V_Diak.&Seels.'!$A:$J,6,FALSE))) -> 0 | D50: =IF(ISERROR(VLOOKUP($A50,'A&V_Diak.&Seels.'!$A:$J,7,FALSE)),"",(VLOOKUP($A50,'A&V_Diak.&Seels.'!$A:$J,7,FALSE))) -> 0 | E50: =IF(ISERROR(VLOOKUP($A50,'A&V_Diak.&Seels.'!$A:$J,8,FALSE)),"",(VLOOKUP($A50,'A&V_Diak.&Seels.'!$A:$J,8,FALSE))) -> 0 | F50: =IF(ISERROR(VLOOKUP($A50,'A&V_Diak.&Seels.'!$A:$J,9,FALSE)),"",(VLOOKUP($A50,'A&V_Diak.&Seels.'!$A:$J,9,FALSE))) -> 0 | G50: =IF(ISERROR(VLOOKUP($A50,'A&V_Diak.&Seels.'!$A:$J,10,FALSE)),"",(VLOOKUP($A50,'A&V_Diak.&Seels.'!$A:$J,10,FALSE))) -> 0
A51: =CONCATENATE($C$6,'A&V_Diak.&Seels.'!B168) -> D8 | B51: =IF(ISERROR(VLOOKUP($A51,'A&V_Diak.&Seels.'!$A:$J,3,FALSE)),"",(VLOOKUP($A51,'A&V_Diak.&Seels.'!$A:$J,3,FALSE))) -> … | C51: =IF(ISERROR(VLOOKUP($A51,'A&V_Diak.&Seels.'!$A:$J,6,FALSE)),"",(VLOOKUP($A51,'A&V_Diak.&Seels.'!$A:$J,6,FALSE))) -> 0 | D51: =IF(ISERROR(VLOOKUP($A51,'A&V_Diak.&Seels.'!$A:$J,7,FALSE)),"",(VLOOKUP($A51,'A&V_Diak.&Seels.'!$A:$J,7,FALSE))) -> 0 | E51: =IF(ISERROR(VLOOKUP($A51,'A&V_Diak.&Seels.'!$A:$J,8,FALSE)),"",(VLOOKUP($A51,'A&V_Diak.&Seels.'!$A:$J,8,FALSE))) -> 0 | F51: =IF(ISERROR(VLOOKUP($A51,'A&V_Diak.&Seels.'!$A:$J,9,FALSE)),"",(VLOOKUP($A51,'A&V_Diak.&Seels.'!$A:$J,9,FALSE))) -> 0 | G51: =IF(ISERROR(VLOOKUP($A51,'A&V_Diak.&Seels.'!$A:$J,10,FALSE)),"",(VLOOKUP($A51,'A&V_Diak.&Seels.'!$A:$J,10,FALSE))) -> 0
A52: =CONCATENATE($C$6,'A&V_Diak.&Seels.'!B169) -> D9 | B52: =IF(ISERROR(VLOOKUP($A52,'A&V_Diak.&Seels.'!$A:$J,3,FALSE)),"",(VLOOKUP($A52,'A&V_Diak.&Seels.'!$A:$J,3,FALSE))) -> … | C52: =IF(ISERROR(VLOOKUP($A52,'A&V_Diak.&Seels.'!$A:$J,6,FALSE)),"",(VLOOKUP($A52,'A&V_Diak.&Seels.'!$A:$J,6,FALSE))) -> 0 | D52: =IF(ISERROR(VLOOKUP($A52,'A&V_Diak.&Seels.'!$A:$J,7,FALSE)),"",(VLOOKUP($A52,'A&V_Diak.&Seels.'!$A:$J,7,FALSE))) -> 0 | E52: =IF(ISERROR(VLOOKUP($A52,'A&V_Diak.&Seels.'!$A:$J,8,FALSE)),"",(VLOOKUP($A52,'A&V_Diak.&Seels.'!$A:$J,8,FALSE))) -> 0 | F52: =IF(ISERROR(VLOOKUP($A52,'A&V_Diak.&Seels.'!$A:$J,9,FALSE)),"",(VLOOKUP($A52,'A&V_Diak.&Seels.'!$A:$J,9,FALSE))) -> 0 | G52: =IF(ISERROR(VLOOKUP($A52,'A&V_Diak.&Seels.'!$A:$J,10,FALSE)),"",(VLOOKUP($A52,'A&V_Diak.&Seels.'!$A:$J,10,FALSE))) -> 0
C53: a
A54: =CONCATENATE($C$6,'A&V_Diak.&Seels.'!B290) -> SEN0 | B54: ='A&V_Diak.&Seels.'!C290 -> Arbeitsbereich Seniorenarbeit | C54: ='A&V_Diak.&Seels.'!D290 -> Anzahl | D54: Zeitbedarf in AT pro zugeteilte Grösse | F54: ='A&V_Diak.&Seels.'!I290 -> Summe Zeitbedarf in AT | G54: ='A&V_Diak.&Seels.'!J290 -> Bemerkung (Hauptverantwortung, Planung, konzeptioneller Ansatz)
C55: a | D55: Ausgangs- wert | E55: eigener Faktor
A56: =CONCATENATE($C$6,'A&V_Diak.&Seels.'!B292) -> SEN1 | B56: =IF(ISERROR(VLOOKUP($A56,'A&V_Diak.&Seels.'!$A:$J,3,FALSE)),"",(VLOOKUP($A56,'A&V_Diak.&Seels.'!$A:$J,3,FALSE))) -> Veranstaltungen (Seniorennachmittage, Ausflüge, Pilgern, AZ Stunden der Anlässe) | C56: =IF(ISERROR(VLOOKUP($A56,'A&V_Diak.&Seels.'!$A:$J,6,FALSE)),"",(VLOOKUP($A56,'A&V_Diak.&Seels.'!$A:$J,6,FALSE))) -> 0 | D56: =IF(ISERROR(VLOOKUP($A56,'A&V_Diak.&Seels.'!$A:$J,7,FALSE)),"",(VLOOKUP($A56,'A&V_Diak.&Seels.'!$A:$J,7,FALSE))) -> 0.1718213058 | E56: =IF(ISERROR(VLOOKUP($A56,'A&V_Diak.&Seels.'!$A:$J,8,FALSE)),"",(VLOOKUP($A56,'A&V_Diak.&Seels.'!$A:$J,8,FALSE))) -> 0 | F56: =IF(ISERROR(VLOOKUP($A56,'A&V_Diak.&Seels.'!$A:$J,9,FALSE)),"",(VLOOKUP($A56,'A&V_Diak.&Seels.'!$A:$J,9,FALSE))) -> 0 | G56: =IF(ISERROR(VLOOKUP($A56,'A&V_Diak.&Seels.'!$A:$J,10,FALSE)),"",(VLOOKUP($A56,'A&V_Diak.&Seels.'!$A:$J,10,FALSE))) -> 0
A57: =CONCATENATE($C$6,'A&V_Diak.&Seels.'!B293) -> SEN2 | B57: =IF(ISERROR(VLOOKUP($A57,'A&V_Diak.&Seels.'!$A:$J,3,FALSE)),"",(VLOOKUP($A57,'A&V_Diak.&Seels.'!$A:$J,3,FALSE))) -> Seniorenreisen (Tagesausflüge, Tagesreisen, AZ Reisetage) | C57: =IF(ISERROR(VLOOKUP($A57,'A&V_Diak.&Seels.'!$A:$J,6,FALSE)),"",(VLOOKUP($A57,'A&V_Diak.&Seels.'!$A:$J,6,FALSE))) -> 0 | D57: =IF(ISERROR(VLOOKUP($A57,'A&V_Diak.&Seels.'!$A:$J,7,FALSE)),"",(VLOOKUP($A57,'A&V_Diak.&Seels.'!$A:$J,7,FALSE))) -> 1.5 | E57: =IF(ISERROR(VLOOKUP($A57,'A&V_Diak.&Seels.'!$A:$J,8,FALSE)),"",(VLOOKUP($A57,'A&V_Diak.&Seels.'!$A:$J,8,FALSE))) -> 0 | F57: =IF(ISERROR(VLOOKUP($A57,'A&V_Diak.&Seels.'!$A:$J,9,FALSE)),"",(VLOOKUP($A57,'A&V_Diak.&Seels.'!$A:$J,9,FALSE))) -> 0 | G57: =IF(ISERROR(VLOOKUP($A57,'A&V_Diak.&Seels.'!$A:$J,10,FALSE)),"",(VLOOKUP($A57,'A&V_Diak.&Seels.'!$A:$J,10,FALSE))) -> 0
A58: =CONCATENATE($C$6,'A&V_Diak.&Seels.'!B294) -> SEN3 | B58: =IF(ISERROR(VLOOKUP($A58,'A&V_Diak.&Seels.'!$A:$J,3,FALSE)),"",(VLOOKUP($A58,'A&V_Diak.&Seels.'!$A:$J,3,FALSE))) -> Seniorenferien (Mehrtägige Reisen, AZ Reisetage) | C58: =IF(ISERROR(VLOOKUP($A58,'A&V_Diak.&Seels.'!$A:$J,6,FALSE)),"",(VLOOKUP($A58,'A&V_Diak.&Seels.'!$A:$J,6,FALSE))) -> 0 | D58: =IF(ISERROR(VLOOKUP($A58,'A&V_Diak.&Seels.'!$A:$J,7,FALSE)),"",(VLOOKUP($A58,'A&V_Diak.&Seels.'!$A:$J,7,FALSE))) -> 1.5 | E58: =IF(ISERROR(VLOOKUP($A58,'A&V_Diak.&Seels.'!$A:$J,8,FALSE)),"",(VLOOKUP($A58,'A&V_Diak.&Seels.'!$A:$J,8,FALSE))) -> 0 | F58: =IF(ISERROR(VLOOKUP($A58,'A&V_Diak.&Seels.'!$A:$J,9,FALSE)),"",(VLOOKUP($A58,'A&V_Diak.&Seels.'!$A:$J,9,FALSE))) -> 0 | G58: =IF(ISERROR(VLOOKUP($A58,'A&V_Diak.&Seels.'!$A:$J,10,FALSE)),"",(VLOOKUP($A58,'A&V_Diak.&Seels.'!$A:$J,10,FALSE))) -> 0
A59: =CONCATENATE($C$6,'A&V_Diak.&Seels.'!B295) -> SEN4 | B59: =IF(ISERROR(VLOOKUP($A59,'A&V_Diak.&Seels.'!$A:$J,3,FALSE)),"",(VLOOKUP($A59,'A&V_Diak.&Seels.'!$A:$J,3,FALSE))) -> Seniorengruppen/Freiwillige (AZ Stunden) | C59: =IF(ISERROR(VLOOKUP($A59,'A&V_Diak.&Seels.'!$A:$J,6,FALSE)),"",(VLOOKUP($A59,'A&V_Diak.&Seels.'!$A:$J,6,FALSE))) -> 0 | D59: =IF(ISERROR(VLOOKUP($A59,'A&V_Diak.&Seels.'!$A:$J,7,FALSE)),"",(VLOOKUP($A59,'A&V_Diak.&Seels.'!$A:$J,7,FALSE))) -> 0.1145475372 | E59: =IF(ISERROR(VLOOKUP($A59,'A&V_Diak.&Seels.'!$A:$J,8,FALSE)),"",(VLOOKUP($A59,'A&V_Diak.&Seels.'!$A:$J,8,FALSE))) -> 0 | F59: =IF(ISERROR(VLOOKUP($A59,'A&V_Diak.&Seels.'!$A:$J,9,FALSE)),"",(VLOOKUP($A59,'A&V_Diak.&Seels.'!$A:$J,9,FALSE))) -> 0 | G59: =IF(ISERROR(VLOOKUP($A59,'A&V_Diak.&Seels.'!$A:$J,10,FALSE)),"",(VLOOKUP($A59,'A&V_Diak.&Seels.'!$A:$J,10,FALSE))) -> 0
A60: =CONCATENATE($C$6,'A&V_Diak.&Seels.'!B296) -> SEN5 | B60: =IF(ISERROR(VLOOKUP($A60,'A&V_Diak.&Seels.'!$A:$J,3,FALSE)),"",(VLOOKUP($A60,'A&V_Diak.&Seels.'!$A:$J,3,FALSE))) -> Geburtstagsbesuche | C60: =IF(ISERROR(VLOOKUP($A60,'A&V_Diak.&Seels.'!$A:$J,6,FALSE)),"",(VLOOKUP($A60,'A&V_Diak.&Seels.'!$A:$J,6,FALSE))) -> 0 | D60: =IF(ISERROR(VLOOKUP($A60,'A&V_Diak.&Seels.'!$A:$J,7,FALSE)),"",(VLOOKUP($A60,'A&V_Diak.&Seels.'!$A:$J,7,FALSE))) -> 0.1145475372 | E60: =IF(ISERROR(VLOOKUP($A60,'A&V_Diak.&Seels.'!$A:$J,8,FALSE)),"",(VLOOKUP($A60,'A&V_Diak.&Seels.'!$A:$J,8,FALSE))) -> 0 | F60: =IF(ISERROR(VLOOKUP($A60,'A&V_Diak.&Seels.'!$A:$J,9,FALSE)),"",(VLOOKUP($A60,'A&V_Diak.&Seels.'!$A:$J,9,FALSE))) -> 0 | G60: =IF(ISERROR(VLOOKUP($A60,'A&V_Diak.&Seels.'!$A:$J,10,FALSE)),"",(VLOOKUP($A60,'A&V_Diak.&Seels.'!$A:$J,10,FALSE))) -> 0
A61: =CONCATENATE($C$6,'A&V_Diak.&Seels.'!B297) -> SEN6 | B61: =IF(ISERROR(VLOOKUP($A61,'A&V_Diak.&Seels.'!$A:$J,3,FALSE)),"",(VLOOKUP($A61,'A&V_Diak.&Seels.'!$A:$J,3,FALSE))) -> Besondere und übrige Aufgaben | C61: =IF(ISERROR(VLOOKUP($A61,'A&V_Diak.&Seels.'!$A:$J,6,FALSE)),"",(VLOOKUP($A61,'A&V_Diak.&Seels.'!$A:$J,6,FALSE))) -> 0 | D61: =IF(ISERROR(VLOOKUP($A61,'A&V_Diak.&Seels.'!$A:$J,7,FALSE)),"",(VLOOKUP($A61,'A&V_Diak.&Seels.'!$A:$J,7,FALSE))) -> 0 | E61: =IF(ISERROR(VLOOKUP($A61,'A&V_Diak.&Seels.'!$A:$J,8,FALSE)),"",(VLOOKUP($A61,'A&V_Diak.&Seels.'!$A:$J,8,FALSE))) -> 0 | F61: =IF(ISERROR(VLOOKUP($A61,'A&V_Diak.&Seels.'!$A:$J,9,FALSE)),"",(VLOOKUP($A61,'A&V_Diak.&Seels.'!$A:$J,9,FALSE))) -> 0 | G61: =IF(ISERROR(VLOOKUP($A61,'A&V_Diak.&Seels.'!$A:$J,10,FALSE)),"",(VLOOKUP($A61,'A&V_Diak.&Seels.'!$A:$J,10,FALSE))) -> 0
A62: =CONCATENATE($C$6,'A&V_Diak.&Seels.'!B298) -> SEN7 | B62: =IF(ISERROR(VLOOKUP($A62,'A&V_Diak.&Seels.'!$A:$J,3,FALSE)),"",(VLOOKUP($A62,'A&V_Diak.&Seels.'!$A:$J,3,FALSE))) -> … | C62: =IF(ISERROR(VLOOKUP($A62,'A&V_Diak.&Seels.'!$A:$J,6,FALSE)),"",(VLOOKUP($A62,'A&V_Diak.&Seels.'!$A:$J,6,FALSE))) -> 0 | D62: =IF(ISERROR(VLOOKUP($A62,'A&V_Diak.&Seels.'!$A:$J,7,FALSE)),"",(VLOOKUP($A62,'A&V_Diak.&Seels.'!$A:$J,7,FALSE))) -> 0 | E62: =IF(ISERROR(VLOOKUP($A62,'A&V_Diak.&Seels.'!$A:$J,8,FALSE)),"",(VLOOKUP($A62,'A&V_Diak.&Seels.'!$A:$J,8,FALSE))) -> 0 | F62: =IF(ISERROR(VLOOKUP($A62,'A&V_Diak.&Seels.'!$A:$J,9,FALSE)),"",(VLOOKUP($A62,'A&V_Diak.&Seels.'!$A:$J,9,FALSE))) -> 0 | G62: =IF(ISERROR(VLOOKUP($A62,'A&V_Diak.&Seels.'!$A:$J,10,FALSE)),"",(VLOOKUP($A62,'A&V_Diak.&Seels.'!$A:$J,10,FALSE))) -> 0
A63: =CONCATENATE($C$6,'A&V_Diak.&Seels.'!B299) -> SEN8 | B63: =IF(ISERROR(VLOOKUP($A63,'A&V_Diak.&Seels.'!$A:$J,3,FALSE)),"",(VLOOKUP($A63,'A&V_Diak.&Seels.'!$A:$J,3,FALSE))) -> … | C63: =IF(ISERROR(VLOOKUP($A63,'A&V_Diak.&Seels.'!$A:$J,6,FALSE)),"",(VLOOKUP($A63,'A&V_Diak.&Seels.'!$A:$J,6,FALSE))) -> 0 | D63: =IF(ISERROR(VLOOKUP($A63,'A&V_Diak.&Seels.'!$A:$J,7,FALSE)),"",(VLOOKUP($A63,'A&V_Diak.&Seels.'!$A:$J,7,FALSE))) -> 0 | E63: =IF(ISERROR(VLOOKUP($A63,'A&V_Diak.&Seels.'!$A:$J,8,FALSE)),"",(VLOOKUP($A63,'A&V_Diak.&Seels.'!$A:$J,8,FALSE))) -> 0 | F63: =IF(ISERROR(VLOOKUP($A63,'A&V_Diak.&Seels.'!$A:$J,9,FALSE)),"",(VLOOKUP($A63,'A&V_Diak.&Seels.'!$A:$J,9,FALSE))) -> 0 | G63: =IF(ISERROR(VLOOKUP($A63,'A&V_Diak.&Seels.'!$A:$J,10,FALSE)),"",(VLOOKUP($A63,'A&V_Diak.&Seels.'!$A:$J,10,FALSE))) -> 0
A64: =CONCATENATE($C$6,'A&V_Diak.&Seels.'!B300) -> SEN9 | B64: =IF(ISERROR(VLOOKUP($A64,'A&V_Diak.&Seels.'!$A:$J,3,FALSE)),"",(VLOOKUP($A64,'A&V_Diak.&Seels.'!$A:$J,3,FALSE))) -> … | C64: =IF(ISERROR(VLOOKUP($A64,'A&V_Diak.&Seels.'!$A:$J,6,FALSE)),"",(VLOOKUP($A64,'A&V_Diak.&Seels.'!$A:$J,6,FALSE))) -> 0 | D64: =IF(ISERROR(VLOOKUP($A64,'A&V_Diak.&Seels.'!$A:$J,7,FALSE)),"",(VLOOKUP($A64,'A&V_Diak.&Seels.'!$A:$J,7,FALSE))) -> 0 | E64: =IF(ISERROR(VLOOKUP($A64,'A&V_Diak.&Seels.'!$A:$J,8,FALSE)),"",(VLOOKUP($A64,'A&V_Diak.&Seels.'!$A:$J,8,FALSE))) -> 0 | F64: =IF(ISERROR(VLOOKUP($A64,'A&V_Diak.&Seels.'!$A:$J,9,FALSE)),"",(VLOOKUP($A64,'A&V_Diak.&Seels.'!$A:$J,9,FALSE))) -> 0 | G64: =IF(ISERROR(VLOOKUP($A64,'A&V_Diak.&Seels.'!$A:$J,10,FALSE)),"",(VLOOKUP($A64,'A&V_Diak.&Seels.'!$A:$J,10,FALSE))) -> 0
A65: =CONCATENATE($C$6,'A&V_Diak.&Seels.'!B301) -> SEN10 | B65: =IF(ISERROR(VLOOKUP($A65,'A&V_Diak.&Seels.'!$A:$J,3,FALSE)),"",(VLOOKUP($A65,'A&V_Diak.&Seels.'!$A:$J,3,FALSE))) -> … | C65: =IF(ISERROR(VLOOKUP($A65,'A&V_Diak.&Seels.'!$A:$J,6,FALSE)),"",(VLOOKUP($A65,'A&V_Diak.&Seels.'!$A:$J,6,FALSE))) -> 0 | D65: =IF(ISERROR(VLOOKUP($A65,'A&V_Diak.&Seels.'!$A:$J,7,FALSE)),"",(VLOOKUP($A65,'A&V_Diak.&Seels.'!$A:$J,7,FALSE))) -> 0 | E65: =IF(ISERROR(VLOOKUP($A65,'A&V_Diak.&Seels.'!$A:$J,8,FALSE)),"",(VLOOKUP($A65,'A&V_Diak.&Seels.'!$A:$J,8,FALSE))) -> 0 | F65: =IF(ISERROR(VLOOKUP($A65,'A&V_Diak.&Seels.'!$A:$J,9,FALSE)),"",(VLOOKUP($A65,'A&V_Diak.&Seels.'!$A:$J,9,FALSE))) -> 0 | G65: =IF(ISERROR(VLOOKUP($A65,'A&V_Diak.&Seels.'!$A:$J,10,FALSE)),"",(VLOOKUP($A65,'A&V_Diak.&Seels.'!$A:$J,10,FALSE))) -> 0
A66: =CONCATENATE($C$6,'A&V_Diak.&Seels.'!B302) -> SEN11 | B66: =IF(ISERROR(VLOOKUP($A66,'A&V_Diak.&Seels.'!$A:$J,3,FALSE)),"",(VLOOKUP($A66,'A&V_Diak.&Seels.'!$A:$J,3,FALSE))) -> … | C66: =IF(ISERROR(VLOOKUP($A66,'A&V_Diak.&Seels.'!$A:$J,6,FALSE)),"",(VLOOKUP($A66,'A&V_Diak.&Seels.'!$A:$J,6,FALSE))) -> 0 | D66: =IF(ISERROR(VLOOKUP($A66,'A&V_Diak.&Seels.'!$A:$J,7,FALSE)),"",(VLOOKUP($A66,'A&V_Diak.&Seels.'!$A:$J,7,FALSE))) -> 0 | E66: =IF(ISERROR(VLOOKUP($A66,'A&V_Diak.&Seels.'!$A:$J,8,FALSE)),"",(VLOOKUP($A66,'A&V_Diak.&Seels.'!$A:$J,8,FALSE))) -> 0 | F66: =IF(ISERROR(VLOOKUP($A66,'A&V_Diak.&Seels.'!$A:$J,9,FALSE)),"",(VLOOKUP($A66,'A&V_Diak.&Seels.'!$A:$J,9,FALSE))) -> 0 | G66: =IF(ISERROR(VLOOKUP($A66,'A&V_Diak.&Seels.'!$A:$J,10,FALSE)),"",(VLOOKUP($A66,'A&V_Diak.&Seels.'!$A:$J,10,FALSE))) -> 0
C67: a
A68: =CONCATENATE($C$6,'A&V_Bild.&Spirit.'!B17) -> K0 | B68: ='A&V_Bild.&Spirit.'!C17 -> Arbeitsbereich Konfirmandenarbeit und rpg | C68: ='A&V_Bild.&Spirit.'!D17 -> Anzahl | D68: Zeitbedarf in AT pro zugeteilte Grösse | F68: ='A&V_Bild.&Spirit.'!I17 -> Summe Zeitbedarf in AT | G68: ='A&V_Bild.&Spirit.'!J17 -> Bemerkung (Hauptverantwortung, Planung, konzeptioneller Ansatz)
C69: a | D69: Ausgangs- wert | E69: eigener Faktor
A70: =CONCATENATE($C$6,'A&V_Bild.&Spirit.'!B19) -> K1 | B70: =IF(ISERROR(VLOOKUP($A70,'A&V_Bild.&Spirit.'!$A:$J,3,FALSE)),"",(VLOOKUP($A70,'A&V_Bild.&Spirit.'!$A:$J,3,FALSE))) -> Konfirmandenunterricht (AZ Lektionen) | C70: =IF(ISERROR(VLOOKUP($A70,'A&V_Bild.&Spirit.'!$A:$J,6,FALSE)),"",(VLOOKUP($A70,'A&V_Bild.&Spirit.'!$A:$J,6,FALSE))) -> 0 | D70: =IF(ISERROR(VLOOKUP($A70,'A&V_Bild.&Spirit.'!$A:$J,7,FALSE)),"",(VLOOKUP($A70,'A&V_Bild.&Spirit.'!$A:$J,7,FALSE))) -> 0.2290950745 | E70: =IF(ISERROR(VLOOKUP($A70,'A&V_Bild.&Spirit.'!$A:$J,8,FALSE)),"",(VLOOKUP($A70,'A&V_Bild.&Spirit.'!$A:$J,8,FALSE))) -> 0 | F70: =IF(ISERROR(VLOOKUP($A70,'A&V_Bild.&Spirit.'!$A:$J,9,FALSE)),"",(VLOOKUP($A70,'A&V_Bild.&Spirit.'!$A:$J,9,FALSE))) -> 0 | G70: =IF(ISERROR(VLOOKUP($A70,'A&V_Bild.&Spirit.'!$A:$J,10,FALSE)),"",(VLOOKUP($A70,'A&V_Bild.&Spirit.'!$A:$J,10,FALSE))) -> 0
A71: =CONCATENATE($C$6,'A&V_Bild.&Spirit.'!B20) -> K2 | B71: =IF(ISERROR(VLOOKUP($A71,'A&V_Bild.&Spirit.'!$A:$J,3,FALSE)),"",(VLOOKUP($A71,'A&V_Bild.&Spirit.'!$A:$J,3,FALSE))) -> Juki-Lektionen | C71: =IF(ISERROR(VLOOKUP($A71,'A&V_Bild.&Spirit.'!$A:$J,6,FALSE)),"",(VLOOKUP($A71,'A&V_Bild.&Spirit.'!$A:$J,6,FALSE))) -> 0 | D71: =IF(ISERROR(VLOOKUP($A71,'A&V_Bild.&Spirit.'!$A:$J,7,FALSE)),"",(VLOOKUP($A71,'A&V_Bild.&Spirit.'!$A:$J,7,FALSE))) -> 0.2290950745 | E71: =IF(ISERROR(VLOOKUP($A71,'A&V_Bild.&Spirit.'!$A:$J,8,FALSE)),"",(VLOOKUP($A71,'A&V_Bild.&Spirit.'!$A:$J,8,FALSE))) -> 0 | F71: =IF(ISERROR(VLOOKUP($A71,'A&V_Bild.&Spirit.'!$A:$J,9,FALSE)),"",(VLOOKUP($A71,'A&V_Bild.&Spirit.'!$A:$J,9,FALSE))) -> 0 | G71: =IF(ISERROR(VLOOKUP($A71,'A&V_Bild.&Spirit.'!$A:$J,10,FALSE)),"",(VLOOKUP($A71,'A&V_Bild.&Spirit.'!$A:$J,10,FALSE))) -> 0
A72: =CONCATENATE($C$6,'A&V_Bild.&Spirit.'!B21) -> K3 | B72: =IF(ISERROR(VLOOKUP($A72,'A&V_Bild.&Spirit.'!$A:$J,3,FALSE)),"",(VLOOKUP($A72,'A&V_Bild.&Spirit.'!$A:$J,3,FALSE))) -> Sonstige Angebote rpg (AZ Lektionen) | C72: =IF(ISERROR(VLOOKUP($A72,'A&V_Bild.&Spirit.'!$A:$J,6,FALSE)),"",(VLOOKUP($A72,'A&V_Bild.&Spirit.'!$A:$J,6,FALSE))) -> 0 | D72: =IF(ISERROR(VLOOKUP($A72,'A&V_Bild.&Spirit.'!$A:$J,7,FALSE)),"",(VLOOKUP($A72,'A&V_Bild.&Spirit.'!$A:$J,7,FALSE))) -> 0.2290950745 | E72: =IF(ISERROR(VLOOKUP($A72,'A&V_Bild.&Spirit.'!$A:$J,8,FALSE)),"",(VLOOKUP($A72,'A&V_Bild.&Spirit.'!$A:$J,8,FALSE))) -> 0 | F72: =IF(ISERROR(VLOOKUP($A72,'A&V_Bild.&Spirit.'!$A:$J,9,FALSE)),"",(VLOOKUP($A72,'A&V_Bild.&Spirit.'!$A:$J,9,FALSE))) -> 0 | G72: =IF(ISERROR(VLOOKUP($A72,'A&V_Bild.&Spirit.'!$A:$J,10,FALSE)),"",(VLOOKUP($A72,'A&V_Bild.&Spirit.'!$A:$J,10,FALSE))) -> 0
A73: =CONCATENATE($C$6,'A&V_Bild.&Spirit.'!B22) -> K4 | B73: =IF(ISERROR(VLOOKUP($A73,'A&V_Bild.&Spirit.'!$A:$J,3,FALSE)),"",(VLOOKUP($A73,'A&V_Bild.&Spirit.'!$A:$J,3,FALSE))) -> Projekttage | C73: =IF(ISERROR(VLOOKUP($A73,'A&V_Bild.&Spirit.'!$A:$J,6,FALSE)),"",(VLOOKUP($A73,'A&V_Bild.&Spirit.'!$A:$J,6,FALSE))) -> 0 | D73: =IF(ISERROR(VLOOKUP($A73,'A&V_Bild.&Spirit.'!$A:$J,7,FALSE)),"",(VLOOKUP($A73,'A&V_Bild.&Spirit.'!$A:$J,7,FALSE))) -> 1.5 | E73: =IF(ISERROR(VLOOKUP($A73,'A&V_Bild.&Spirit.'!$A:$J,8,FALSE)),"",(VLOOKUP($A73,'A&V_Bild.&Spirit.'!$A:$J,8,FALSE))) -> 0 | F73: =IF(ISERROR(VLOOKUP($A73,'A&V_Bild.&Spirit.'!$A:$J,9,FALSE)),"",(VLOOKUP($A73,'A&V_Bild.&Spirit.'!$A:$J,9,FALSE))) -> 0 | G73: =IF(ISERROR(VLOOKUP($A73,'A&V_Bild.&Spirit.'!$A:$J,10,FALSE)),"",(VLOOKUP($A73,'A&V_Bild.&Spirit.'!$A:$J,10,FALSE))) -> 0
A74: =CONCATENATE($C$6,'A&V_Bild.&Spirit.'!B23) -> K5 | B74: =IF(ISERROR(VLOOKUP($A74,'A&V_Bild.&Spirit.'!$A:$J,3,FALSE)),"",(VLOOKUP($A74,'A&V_Bild.&Spirit.'!$A:$J,3,FALSE))) -> Lager (AZ Tage) | C74: =IF(ISERROR(VLOOKUP($A74,'A&V_Bild.&Spirit.'!$A:$J,6,FALSE)),"",(VLOOKUP($A74,'A&V_Bild.&Spirit.'!$A:$J,6,FALSE))) -> 0 | D74: =IF(ISERROR(VLOOKUP($A74,'A&V_Bild.&Spirit.'!$A:$J,7,FALSE)),"",(VLOOKUP($A74,'A&V_Bild.&Spirit.'!$A:$J,7,FALSE))) -> 1.5 | E74: =IF(ISERROR(VLOOKUP($A74,'A&V_Bild.&Spirit.'!$A:$J,8,FALSE)),"",(VLOOKUP($A74,'A&V_Bild.&Spirit.'!$A:$J,8,FALSE))) -> 0 | F74: =IF(ISERROR(VLOOKUP($A74,'A&V_Bild.&Spirit.'!$A:$J,9,FALSE)),"",(VLOOKUP($A74,'A&V_Bild.&Spirit.'!$A:$J,9,FALSE))) -> 0 | G74: =IF(ISERROR(VLOOKUP($A74,'A&V_Bild.&Spirit.'!$A:$J,10,FALSE)),"",(VLOOKUP($A74,'A&V_Bild.&Spirit.'!$A:$J,10,FALSE))) -> 0
A75: =CONCATENATE($C$6,'A&V_Bild.&Spirit.'!B24) -> K6 | B75: =IF(ISERROR(VLOOKUP($A75,'A&V_Bild.&Spirit.'!$A:$J,3,FALSE)),"",(VLOOKUP($A75,'A&V_Bild.&Spirit.'!$A:$J,3,FALSE))) -> Gemeindeferien (AZ Ferientage) | C75: =IF(ISERROR(VLOOKUP($A75,'A&V_Bild.&Spirit.'!$A:$J,6,FALSE)),"",(VLOOKUP($A75,'A&V_Bild.&Spirit.'!$A:$J,6,FALSE))) -> 0 | D75: =IF(ISERROR(VLOOKUP($A75,'A&V_Bild.&Spirit.'!$A:$J,7,FALSE)),"",(VLOOKUP($A75,'A&V_Bild.&Spirit.'!$A:$J,7,FALSE))) -> 1.5 | E75: =IF(ISERROR(VLOOKUP($A75,'A&V_Bild.&Spirit.'!$A:$J,8,FALSE)),"",(VLOOKUP($A75,'A&V_Bild.&Spirit.'!$A:$J,8,FALSE))) -> 0 | F75: =IF(ISERROR(VLOOKUP($A75,'A&V_Bild.&Spirit.'!$A:$J,9,FALSE)),"",(VLOOKUP($A75,'A&V_Bild.&Spirit.'!$A:$J,9,FALSE))) -> 0 | G75: =IF(ISERROR(VLOOKUP($A75,'A&V_Bild.&Spirit.'!$A:$J,10,FALSE)),"",(VLOOKUP($A75,'A&V_Bild.&Spirit.'!$A:$J,10,FALSE))) -> 0
A76: =CONCATENATE($C$6,'A&V_Bild.&Spirit.'!B25) -> K7 | B76: =IF(ISERROR(VLOOKUP($A76,'A&V_Bild.&Spirit.'!$A:$J,3,FALSE)),"",(VLOOKUP($A76,'A&V_Bild.&Spirit.'!$A:$J,3,FALSE))) -> Besondere und übrige Aufgaben | C76: =IF(ISERROR(VLOOKUP($A76,'A&V_Bild.&Spirit.'!$A:$J,6,FALSE)),"",(VLOOKUP($A76,'A&V_Bild.&Spirit.'!$A:$J,6,FALSE))) -> 0 | D76: =IF(ISERROR(VLOOKUP($A76,'A&V_Bild.&Spirit.'!$A:$J,7,FALSE)),"",(VLOOKUP($A76,'A&V_Bild.&Spirit.'!$A:$J,7,FALSE))) -> 0 | E76: =IF(ISERROR(VLOOKUP($A76,'A&V_Bild.&Spirit.'!$A:$J,8,FALSE)),"",(VLOOKUP($A76,'A&V_Bild.&Spirit.'!$A:$J,8,FALSE))) -> 0 | F76: =IF(ISERROR(VLOOKUP($A76,'A&V_Bild.&Spirit.'!$A:$J,9,FALSE)),"",(VLOOKUP($A76,'A&V_Bild.&Spirit.'!$A:$J,9,FALSE))) -> 0 | G76: =IF(ISERROR(VLOOKUP($A76,'A&V_Bild.&Spirit.'!$A:$J,10,FALSE)),"",(VLOOKUP($A76,'A&V_Bild.&Spirit.'!$A:$J,10,FALSE))) -> 0
A77: =CONCATENATE($C$6,'A&V_Bild.&Spirit.'!B26) -> K8 | B77: =IF(ISERROR(VLOOKUP($A77,'A&V_Bild.&Spirit.'!$A:$J,3,FALSE)),"",(VLOOKUP($A77,'A&V_Bild.&Spirit.'!$A:$J,3,FALSE))) -> … | C77: =IF(ISERROR(VLOOKUP($A77,'A&V_Bild.&Spirit.'!$A:$J,6,FALSE)),"",(VLOOKUP($A77,'A&V_Bild.&Spirit.'!$A:$J,6,FALSE))) -> 0 | D77: =IF(ISERROR(VLOOKUP($A77,'A&V_Bild.&Spirit.'!$A:$J,7,FALSE)),"",(VLOOKUP($A77,'A&V_Bild.&Spirit.'!$A:$J,7,FALSE))) -> 0 | E77: =IF(ISERROR(VLOOKUP($A77,'A&V_Bild.&Spirit.'!$A:$J,8,FALSE)),"",(VLOOKUP($A77,'A&V_Bild.&Spirit.'!$A:$J,8,FALSE))) -> 0 | F77: =IF(ISERROR(VLOOKUP($A77,'A&V_Bild.&Spirit.'!$A:$J,9,FALSE)),"",(VLOOKUP($A77,'A&V_Bild.&Spirit.'!$A:$J,9,FALSE))) -> 0 | G77: =IF(ISERROR(VLOOKUP($A77,'A&V_Bild.&Spirit.'!$A:$J,10,FALSE)),"",(VLOOKUP($A77,'A&V_Bild.&Spirit.'!$A:$J,10,FALSE))) -> 0
A78: =CONCATENATE($C$6,'A&V_Bild.&Spirit.'!B27) -> K9 | B78: =IF(ISERROR(VLOOKUP($A78,'A&V_Bild.&Spirit.'!$A:$J,3,FALSE)),"",(VLOOKUP($A78,'A&V_Bild.&Spirit.'!$A:$J,3,FALSE))) -> … | C78: =IF(ISERROR(VLOOKUP($A78,'A&V_Bild.&Spirit.'!$A:$J,6,FALSE)),"",(VLOOKUP($A78,'A&V_Bild.&Spirit.'!$A:$J,6,FALSE))) -> 0 | D78: =IF(ISERROR(VLOOKUP($A78,'A&V_Bild.&Spirit.'!$A:$J,7,FALSE)),"",(VLOOKUP($A78,'A&V_Bild.&Spirit.'!$A:$J,7,FALSE))) -> 0 | E78: =IF(ISERROR(VLOOKUP($A78,'A&V_Bild.&Spirit.'!$A:$J,8,FALSE)),"",(VLOOKUP($A78,'A&V_Bild.&Spirit.'!$A:$J,8,FALSE))) -> 0 | F78: =IF(ISERROR(VLOOKUP($A78,'A&V_Bild.&Spirit.'!$A:$J,9,FALSE)),"",(VLOOKUP($A78,'A&V_Bild.&Spirit.'!$A:$J,9,FALSE))) -> 0 | G78: =IF(ISERROR(VLOOKUP($A78,'A&V_Bild.&Spirit.'!$A:$J,10,FALSE)),"",(VLOOKUP($A78,'A&V_Bild.&Spirit.'!$A:$J,10,FALSE))) -> 0
A79: =CONCATENATE($C$6,'A&V_Bild.&Spirit.'!B28) -> K10 | B79: =IF(ISERROR(VLOOKUP($A79,'A&V_Bild.&Spirit.'!$A:$J,3,FALSE)),"",(VLOOKUP($A79,'A&V_Bild.&Spirit.'!$A:$J,3,FALSE))) -> … | C79: =IF(ISERROR(VLOOKUP($A79,'A&V_Bild.&Spirit.'!$A:$J,6,FALSE)),"",(VLOOKUP($A79,'A&V_Bild.&Spirit.'!$A:$J,6,FALSE))) -> 0 | D79: =IF(ISERROR(VLOOKUP($A79,'A&V_Bild.&Spirit.'!$A:$J,7,FALSE)),"",(VLOOKUP($A79,'A&V_Bild.&Spirit.'!$A:$J,7,FALSE))) -> 0 | E79: =IF(ISERROR(VLOOKUP($A79,'A&V_Bild.&Spirit.'!$A:$J,8,FALSE)),"",(VLOOKUP($A79,'A&V_Bild.&Spirit.'!$A:$J,8,FALSE))) -> 0 | F79: =IF(ISERROR(VLOOKUP($A79,'A&V_Bild.&Spirit.'!$A:$J,9,FALSE)),"",(VLOOKUP($A79,'A&V_Bild.&Spirit.'!$A:$J,9,FALSE))) -> 0 | G79: =IF(ISERROR(VLOOKUP($A79,'A&V_Bild.&Spirit.'!$A:$J,10,FALSE)),"",(VLOOKUP($A79,'A&V_Bild.&Spirit.'!$A:$J,10,FALSE))) -> 0
A80: =CONCATENATE($C$6,'A&V_Bild.&Spirit.'!B29) -> K11 | B80: =IF(ISERROR(VLOOKUP($A80,'A&V_Bild.&Spirit.'!$A:$J,3,FALSE)),"",(VLOOKUP($A80,'A&V_Bild.&Spirit.'!$A:$J,3,FALSE))) -> … | C80: =IF(ISERROR(VLOOKUP($A80,'A&V_Bild.&Spirit.'!$A:$J,6,FALSE)),"",(VLOOKUP($A80,'A&V_Bild.&Spirit.'!$A:$J,6,FALSE))) -> 0 | D80: =IF(ISERROR(VLOOKUP($A80,'A&V_Bild.&Spirit.'!$A:$J,7,FALSE)),"",(VLOOKUP($A80,'A&V_Bild.&Spirit.'!$A:$J,7,FALSE))) -> 0 | E80: =IF(ISERROR(VLOOKUP($A80,'A&V_Bild.&Spirit.'!$A:$J,8,FALSE)),"",(VLOOKUP($A80,'A&V_Bild.&Spirit.'!$A:$J,8,FALSE))) -> 0 | F80: =IF(ISERROR(VLOOKUP($A80,'A&V_Bild.&Spirit.'!$A:$J,9,FALSE)),"",(VLOOKUP($A80,'A&V_Bild.&Spirit.'!$A:$J,9,FALSE))) -> 0 | G80: =IF(ISERROR(VLOOKUP($A80,'A&V_Bild.&Spirit.'!$A:$J,10,FALSE)),"",(VLOOKUP($A80,'A&V_Bild.&Spirit.'!$A:$J,10,FALSE))) -> 0
A81: =CONCATENATE($C$6,'A&V_Bild.&Spirit.'!B30) -> K12 | B81: =IF(ISERROR(VLOOKUP($A81,'A&V_Bild.&Spirit.'!$A:$J,3,FALSE)),"",(VLOOKUP($A81,'A&V_Bild.&Spirit.'!$A:$J,3,FALSE))) -> … | C81: =IF(ISERROR(VLOOKUP($A81,'A&V_Bild.&Spirit.'!$A:$J,6,FALSE)),"",(VLOOKUP($A81,'A&V_Bild.&Spirit.'!$A:$J,6,FALSE))) -> 0 | D81: =IF(ISERROR(VLOOKUP($A81,'A&V_Bild.&Spirit.'!$A:$J,7,FALSE)),"",(VLOOKUP($A81,'A&V_Bild.&Spirit.'!$A:$J,7,FALSE))) -> 0 | E81: =IF(ISERROR(VLOOKUP($A81,'A&V_Bild.&Spirit.'!$A:$J,8,FALSE)),"",(VLOOKUP($A81,'A&V_Bild.&Spirit.'!$A:$J,8,FALSE))) -> 0 | F81: =IF(ISERROR(VLOOKUP($A81,'A&V_Bild.&Spirit.'!$A:$J,9,FALSE)),"",(VLOOKUP($A81,'A&V_Bild.&Spirit.'!$A:$J,9,FALSE))) -> 0 | G81: =IF(ISERROR(VLOOKUP($A81,'A&V_Bild.&Spirit.'!$A:$J,10,FALSE)),"",(VLOOKUP($A81,'A&V_Bild.&Spirit.'!$A:$J,10,FALSE))) -> 0
C82: a
A83: =CONCATENATE($C$6,'A&V_Bild.&Spirit.'!B183) -> E0 | B83: ='A&V_Bild.&Spirit.'!C183 -> Arbeitsbereich Erwachsenenbildung | C83: ='A&V_Bild.&Spirit.'!D183 -> Anzahl | D83: Zeitbedarf in AT pro zugeteilte Grösse | F83: ='A&V_Bild.&Spirit.'!I183 -> Summe Zeitbedarf in AT | G83: ='A&V_Bild.&Spirit.'!J183 -> Bemerkung (Hauptverantwortung, Planung, konzeptioneller Ansatz)
C84: a | D84: Ausgangs- wert | E84: eigener Faktor
A85: =CONCATENATE($C$6,'A&V_Bild.&Spirit.'!B185) -> E1 | B85: =IF(ISERROR(VLOOKUP($A85,'A&V_Bild.&Spirit.'!$A:$J,3,FALSE)),"",(VLOOKUP($A85,'A&V_Bild.&Spirit.'!$A:$J,3,FALSE))) -> Veranstaltungen (Bildungsveranstaltungen, Ausflüge, Pilgern, AZ Stunden der Anlässe) | C85: =IF(ISERROR(VLOOKUP($A85,'A&V_Bild.&Spirit.'!$A:$J,6,FALSE)),"",(VLOOKUP($A85,'A&V_Bild.&Spirit.'!$A:$J,6,FALSE))) -> 0 | D85: =IF(ISERROR(VLOOKUP($A85,'A&V_Bild.&Spirit.'!$A:$J,7,FALSE)),"",(VLOOKUP($A85,'A&V_Bild.&Spirit.'!$A:$J,7,FALSE))) -> 0.1718213058 | E85: =IF(ISERROR(VLOOKUP($A85,'A&V_Bild.&Spirit.'!$A:$J,8,FALSE)),"",(VLOOKUP($A85,'A&V_Bild.&Spirit.'!$A:$J,8,FALSE))) -> 0 | F85: =IF(ISERROR(VLOOKUP($A85,'A&V_Bild.&Spirit.'!$A:$J,9,FALSE)),"",(VLOOKUP($A85,'A&V_Bild.&Spirit.'!$A:$J,9,FALSE))) -> 0 | G85: =IF(ISERROR(VLOOKUP($A85,'A&V_Bild.&Spirit.'!$A:$J,10,FALSE)),"",(VLOOKUP($A85,'A&V_Bild.&Spirit.'!$A:$J,10,FALSE))) -> 0
A86: =CONCATENATE($C$6,'A&V_Bild.&Spirit.'!B186) -> E2 | B86: =IF(ISERROR(VLOOKUP($A86,'A&V_Bild.&Spirit.'!$A:$J,3,FALSE)),"",(VLOOKUP($A86,'A&V_Bild.&Spirit.'!$A:$J,3,FALSE))) -> Gemeindereisen (Tagesausflüge, Tagesreisen, AZ Reisetage) | C86: =IF(ISERROR(VLOOKUP($A86,'A&V_Bild.&Spirit.'!$A:$J,6,FALSE)),"",(VLOOKUP($A86,'A&V_Bild.&Spirit.'!$A:$J,6,FALSE))) -> 0 | D86: =IF(ISERROR(VLOOKUP($A86,'A&V_Bild.&Spirit.'!$A:$J,7,FALSE)),"",(VLOOKUP($A86,'A&V_Bild.&Spirit.'!$A:$J,7,FALSE))) -> 1.5 | E86: =IF(ISERROR(VLOOKUP($A86,'A&V_Bild.&Spirit.'!$A:$J,8,FALSE)),"",(VLOOKUP($A86,'A&V_Bild.&Spirit.'!$A:$J,8,FALSE))) -> 0 | F86: =IF(ISERROR(VLOOKUP($A86,'A&V_Bild.&Spirit.'!$A:$J,9,FALSE)),"",(VLOOKUP($A86,'A&V_Bild.&Spirit.'!$A:$J,9,FALSE))) -> 0 | G86: =IF(ISERROR(VLOOKUP($A86,'A&V_Bild.&Spirit.'!$A:$J,10,FALSE)),"",(VLOOKUP($A86,'A&V_Bild.&Spirit.'!$A:$J,10,FALSE))) -> 0
A87: =CONCATENATE($C$6,'A&V_Bild.&Spirit.'!B187) -> E3 | B87: =IF(ISERROR(VLOOKUP($A87,'A&V_Bild.&Spirit.'!$A:$J,3,FALSE)),"",(VLOOKUP($A87,'A&V_Bild.&Spirit.'!$A:$J,3,FALSE))) -> Gemeindeferien (Mehrtägige Reisen, AZ Reisetage) | C87: =IF(ISERROR(VLOOKUP($A87,'A&V_Bild.&Spirit.'!$A:$J,6,FALSE)),"",(VLOOKUP($A87,'A&V_Bild.&Spirit.'!$A:$J,6,FALSE))) -> 0 | D87: =IF(ISERROR(VLOOKUP($A87,'A&V_Bild.&Spirit.'!$A:$J,7,FALSE)),"",(VLOOKUP($A87,'A&V_Bild.&Spirit.'!$A:$J,7,FALSE))) -> 1.5 | E87: =IF(ISERROR(VLOOKUP($A87,'A&V_Bild.&Spirit.'!$A:$J,8,FALSE)),"",(VLOOKUP($A87,'A&V_Bild.&Spirit.'!$A:$J,8,FALSE))) -> 0 | F87: =IF(ISERROR(VLOOKUP($A87,'A&V_Bild.&Spirit.'!$A:$J,9,FALSE)),"",(VLOOKUP($A87,'A&V_Bild.&Spirit.'!$A:$J,9,FALSE))) -> 0 | G87: =IF(ISERROR(VLOOKUP($A87,'A&V_Bild.&Spirit.'!$A:$J,10,FALSE)),"",(VLOOKUP($A87,'A&V_Bild.&Spirit.'!$A:$J,10,FALSE))) -> 0
A88: =CONCATENATE($C$6,'A&V_Bild.&Spirit.'!B188) -> E4 | B88: =IF(ISERROR(VLOOKUP($A88,'A&V_Bild.&Spirit.'!$A:$J,3,FALSE)),"",(VLOOKUP($A88,'A&V_Bild.&Spirit.'!$A:$J,3,FALSE))) -> Gruppen/Freiwillige | C88: =IF(ISERROR(VLOOKUP($A88,'A&V_Bild.&Spirit.'!$A:$J,6,FALSE)),"",(VLOOKUP($A88,'A&V_Bild.&Spirit.'!$A:$J,6,FALSE))) -> 0 | D88: =IF(ISERROR(VLOOKUP($A88,'A&V_Bild.&Spirit.'!$A:$J,7,FALSE)),"",(VLOOKUP($A88,'A&V_Bild.&Spirit.'!$A:$J,7,FALSE))) -> 0 | E88: =IF(ISERROR(VLOOKUP($A88,'A&V_Bild.&Spirit.'!$A:$J,8,FALSE)),"",(VLOOKUP($A88,'A&V_Bild.&Spirit.'!$A:$J,8,FALSE))) -> 0 | F88: =IF(ISERROR(VLOOKUP($A88,'A&V_Bild.&Spirit.'!$A:$J,9,FALSE)),"",(VLOOKUP($A88,'A&V_Bild.&Spirit.'!$A:$J,9,FALSE))) -> 0 | G88: =IF(ISERROR(VLOOKUP($A88,'A&V_Bild.&Spirit.'!$A:$J,10,FALSE)),"",(VLOOKUP($A88,'A&V_Bild.&Spirit.'!$A:$J,10,FALSE))) -> 0
A89: =CONCATENATE($C$6,'A&V_Bild.&Spirit.'!B189) -> E5 | B89: =IF(ISERROR(VLOOKUP($A89,'A&V_Bild.&Spirit.'!$A:$J,3,FALSE)),"",(VLOOKUP($A89,'A&V_Bild.&Spirit.'!$A:$J,3,FALSE))) -> Besondere und übrige Aufgaben | C89: =IF(ISERROR(VLOOKUP($A89,'A&V_Bild.&Spirit.'!$A:$J,6,FALSE)),"",(VLOOKUP($A89,'A&V_Bild.&Spirit.'!$A:$J,6,FALSE))) -> 0 | D89: =IF(ISERROR(VLOOKUP($A89,'A&V_Bild.&Spirit.'!$A:$J,7,FALSE)),"",(VLOOKUP($A89,'A&V_Bild.&Spirit.'!$A:$J,7,FALSE))) -> 0 | E89: =IF(ISERROR(VLOOKUP($A89,'A&V_Bild.&Spirit.'!$A:$J,8,FALSE)),"",(VLOOKUP($A89,'A&V_Bild.&Spirit.'!$A:$J,8,FALSE))) -> 0 | F89: =IF(ISERROR(VLOOKUP($A89,'A&V_Bild.&Spirit.'!$A:$J,9,FALSE)),"",(VLOOKUP($A89,'A&V_Bild.&Spirit.'!$A:$J,9,FALSE))) -> 0 | G89: =IF(ISERROR(VLOOKUP($A89,'A&V_Bild.&Spirit.'!$A:$J,10,FALSE)),"",(VLOOKUP($A89,'A&V_Bild.&Spirit.'!$A:$J,10,FALSE))) -> 0
A90: =CONCATENATE($C$6,'A&V_Bild.&Spirit.'!B190) -> E6 | B90: =IF(ISERROR(VLOOKUP($A90,'A&V_Bild.&Spirit.'!$A:$J,3,FALSE)),"",(VLOOKUP($A90,'A&V_Bild.&Spirit.'!$A:$J,3,FALSE))) -> … | C90: =IF(ISERROR(VLOOKUP($A90,'A&V_Bild.&Spirit.'!$A:$J,6,FALSE)),"",(VLOOKUP($A90,'A&V_Bild.&Spirit.'!$A:$J,6,FALSE))) -> 0 | D90: =IF(ISERROR(VLOOKUP($A90,'A&V_Bild.&Spirit.'!$A:$J,7,FALSE)),"",(VLOOKUP($A90,'A&V_Bild.&Spirit.'!$A:$J,7,FALSE))) -> 0 | E90: =IF(ISERROR(VLOOKUP($A90,'A&V_Bild.&Spirit.'!$A:$J,8,FALSE)),"",(VLOOKUP($A90,'A&V_Bild.&Spirit.'!$A:$J,8,FALSE))) -> 0 | F90: =IF(ISERROR(VLOOKUP($A90,'A&V_Bild.&Spirit.'!$A:$J,9,FALSE)),"",(VLOOKUP($A90,'A&V_Bild.&Spirit.'!$A:$J,9,FALSE))) -> 0 | G90: =IF(ISERROR(VLOOKUP($A90,'A&V_Bild.&Spirit.'!$A:$J,10,FALSE)),"",(VLOOKUP($A90,'A&V_Bild.&Spirit.'!$A:$J,10,FALSE))) -> 0
A91: =CONCATENATE($C$6,'A&V_Bild.&Spirit.'!B191) -> E7 | B91: =IF(ISERROR(VLOOKUP($A91,'A&V_Bild.&Spirit.'!$A:$J,3,FALSE)),"",(VLOOKUP($A91,'A&V_Bild.&Spirit.'!$A:$J,3,FALSE))) -> … | C91: =IF(ISERROR(VLOOKUP($A91,'A&V_Bild.&Spirit.'!$A:$J,6,FALSE)),"",(VLOOKUP($A91,'A&V_Bild.&Spirit.'!$A:$J,6,FALSE))) -> 0 | D91: =IF(ISERROR(VLOOKUP($A91,'A&V_Bild.&Spirit.'!$A:$J,7,FALSE)),"",(VLOOKUP($A91,'A&V_Bild.&Spirit.'!$A:$J,7,FALSE))) -> 0 | E91: =IF(ISERROR(VLOOKUP($A91,'A&V_Bild.&Spirit.'!$A:$J,8,FALSE)),"",(VLOOKUP($A91,'A&V_Bild.&Spirit.'!$A:$J,8,FALSE))) -> 0 | F91: =IF(ISERROR(VLOOKUP($A91,'A&V_Bild.&Spirit.'!$A:$J,9,FALSE)),"",(VLOOKUP($A91,'A&V_Bild.&Spirit.'!$A:$J,9,FALSE))) -> 0 | G91: =IF(ISERROR(VLOOKUP($A91,'A&V_Bild.&Spirit.'!$A:$J,10,FALSE)),"",(VLOOKUP($A91,'A&V_Bild.&Spirit.'!$A:$J,10,FALSE))) -> 0
A92: =CONCATENATE($C$6,'A&V_Bild.&Spirit.'!B192) -> E8 | B92: =IF(ISERROR(VLOOKUP($A92,'A&V_Bild.&Spirit.'!$A:$J,3,FALSE)),"",(VLOOKUP($A92,'A&V_Bild.&Spirit.'!$A:$J,3,FALSE))) -> … | C92: =IF(ISERROR(VLOOKUP($A92,'A&V_Bild.&Spirit.'!$A:$J,6,FALSE)),"",(VLOOKUP($A92,'A&V_Bild.&Spirit.'!$A:$J,6,FALSE))) -> 0 | D92: =IF(ISERROR(VLOOKUP($A92,'A&V_Bild.&Spirit.'!$A:$J,7,FALSE)),"",(VLOOKUP($A92,'A&V_Bild.&Spirit.'!$A:$J,7,FALSE))) -> 0 | E92: =IF(ISERROR(VLOOKUP($A92,'A&V_Bild.&Spirit.'!$A:$J,8,FALSE)),"",(VLOOKUP($A92,'A&V_Bild.&Spirit.'!$A:$J,8,FALSE))) -> 0 | F92: =IF(ISERROR(VLOOKUP($A92,'A&V_Bild.&Spirit.'!$A:$J,9,FALSE)),"",(VLOOKUP($A92,'A&V_Bild.&Spirit.'!$A:$J,9,FALSE))) -> 0 | G92: =IF(ISERROR(VLOOKUP($A92,'A&V_Bild.&Spirit.'!$A:$J,10,FALSE)),"",(VLOOKUP($A92,'A&V_Bild.&Spirit.'!$A:$J,10,FALSE))) -> 0
A93: =CONCATENATE($C$6,'A&V_Bild.&Spirit.'!B193) -> E9 | B93: =IF(ISERROR(VLOOKUP($A93,'A&V_Bild.&Spirit.'!$A:$J,3,FALSE)),"",(VLOOKUP($A93,'A&V_Bild.&Spirit.'!$A:$J,3,FALSE))) -> … | C93: =IF(ISERROR(VLOOKUP($A93,'A&V_Bild.&Spirit.'!$A:$J,6,FALSE)),"",(VLOOKUP($A93,'A&V_Bild.&Spirit.'!$A:$J,6,FALSE))) -> 0 | D93: =IF(ISERROR(VLOOKUP($A93,'A&V_Bild.&Spirit.'!$A:$J,7,FALSE)),"",(VLOOKUP($A93,'A&V_Bild.&Spirit.'!$A:$J,7,FALSE))) -> 0 | E93: =IF(ISERROR(VLOOKUP($A93,'A&V_Bild.&Spirit.'!$A:$J,8,FALSE)),"",(VLOOKUP($A93,'A&V_Bild.&Spirit.'!$A:$J,8,FALSE))) -> 0 | F93: =IF(ISERROR(VLOOKUP($A93,'A&V_Bild.&Spirit.'!$A:$J,9,FALSE)),"",(VLOOKUP($A93,'A&V_Bild.&Spirit.'!$A:$J,9,FALSE))) -> 0 | G93: =IF(ISERROR(VLOOKUP($A93,'A&V_Bild.&Spirit.'!$A:$J,10,FALSE)),"",(VLOOKUP($A93,'A&V_Bild.&Spirit.'!$A:$J,10,FALSE))) -> 0
A94: =CONCATENATE($C$6,'A&V_Bild.&Spirit.'!B194) -> E10 | B94: =IF(ISERROR(VLOOKUP($A94,'A&V_Bild.&Spirit.'!$A:$J,3,FALSE)),"",(VLOOKUP($A94,'A&V_Bild.&Spirit.'!$A:$J,3,FALSE))) -> … | C94: =IF(ISERROR(VLOOKUP($A94,'A&V_Bild.&Spirit.'!$A:$J,6,FALSE)),"",(VLOOKUP($A94,'A&V_Bild.&Spirit.'!$A:$J,6,FALSE))) -> 0 | D94: =IF(ISERROR(VLOOKUP($A94,'A&V_Bild.&Spirit.'!$A:$J,7,FALSE)),"",(VLOOKUP($A94,'A&V_Bild.&Spirit.'!$A:$J,7,FALSE))) -> 0 | E94: =IF(ISERROR(VLOOKUP($A94,'A&V_Bild.&Spirit.'!$A:$J,8,FALSE)),"",(VLOOKUP($A94,'A&V_Bild.&Spirit.'!$A:$J,8,FALSE))) -> 0 | F94: =IF(ISERROR(VLOOKUP($A94,'A&V_Bild.&Spirit.'!$A:$J,9,FALSE)),"",(VLOOKUP($A94,'A&V_Bild.&Spirit.'!$A:$J,9,FALSE))) -> 0 | G94: =IF(ISERROR(VLOOKUP($A94,'A&V_Bild.&Spirit.'!$A:$J,10,FALSE)),"",(VLOOKUP($A94,'A&V_Bild.&Spirit.'!$A:$J,10,FALSE))) -> 0
C95: a
A96: =CONCATENATE($C$6,'A&V_Aufb.&Leit.'!B17) -> G0 | B96: ='A&V_Aufb.&Leit.'!C17 -> Arbeitsbereich Gemeindeleitung | C96: ='A&V_Aufb.&Leit.'!D17 -> Anzahl Sitzungen | D96: Zeitbedarf in AT pro zugeteilte Grösse | F96: ='A&V_Aufb.&Leit.'!I17 -> Summe Zeitbedarf in AT | G96: ='A&V_Aufb.&Leit.'!J17 -> Bemerkung (Hauptverantwortung, Planung, konzeptioneller Ansatz)
C97: a | D97: Ausgangs- wert | E97: eigener Faktor
A98: =CONCATENATE($C$6,'A&V_Aufb.&Leit.'!B19) -> G1 | B98: =IF(ISERROR(VLOOKUP($A98,'A&V_Aufb.&Leit.'!$A:$J,3,FALSE)),"",(VLOOKUP($A98,'A&V_Aufb.&Leit.'!$A:$J,3,FALSE))) -> Sitzungen Pfarrkonvent | C98: =IF(ISERROR(VLOOKUP($A98,'A&V_Aufb.&Leit.'!$A:$J,6,FALSE)),"",(VLOOKUP($A98,'A&V_Aufb.&Leit.'!$A:$J,6,FALSE))) -> 0 | D98: =IF(ISERROR(VLOOKUP($A98,'A&V_Aufb.&Leit.'!$A:$J,7,FALSE)),"",(VLOOKUP($A98,'A&V_Aufb.&Leit.'!$A:$J,7,FALSE))) -> 0.2290950745 | E98: =IF(ISERROR(VLOOKUP($A98,'A&V_Aufb.&Leit.'!$A:$J,8,FALSE)),"",(VLOOKUP($A98,'A&V_Aufb.&Leit.'!$A:$J,8,FALSE))) -> 0 | F98: =IF(ISERROR(VLOOKUP($A98,'A&V_Aufb.&Leit.'!$A:$J,9,FALSE)),"",(VLOOKUP($A98,'A&V_Aufb.&Leit.'!$A:$J,9,FALSE))) -> 0 | G98: =IF(ISERROR(VLOOKUP($A98,'A&V_Aufb.&Leit.'!$A:$J,10,FALSE)),"",(VLOOKUP($A98,'A&V_Aufb.&Leit.'!$A:$J,10,FALSE))) -> 0
A99: =CONCATENATE($C$6,'A&V_Aufb.&Leit.'!B20) -> G2 | B99: =IF(ISERROR(VLOOKUP($A99,'A&V_Aufb.&Leit.'!$A:$J,3,FALSE)),"",(VLOOKUP($A99,'A&V_Aufb.&Leit.'!$A:$J,3,FALSE))) -> Leitung Pfarrkonvent (in AT) | C99: =IF(ISERROR(VLOOKUP($A99,'A&V_Aufb.&Leit.'!$A:$J,6,FALSE)),"",(VLOOKUP($A99,'A&V_Aufb.&Leit.'!$A:$J,6,FALSE))) -> 0 | D99: =IF(ISERROR(VLOOKUP($A99,'A&V_Aufb.&Leit.'!$A:$J,7,FALSE)),"",(VLOOKUP($A99,'A&V_Aufb.&Leit.'!$A:$J,7,FALSE))) -> 1 | E99: =IF(ISERROR(VLOOKUP($A99,'A&V_Aufb.&Leit.'!$A:$J,8,FALSE)),"",(VLOOKUP($A99,'A&V_Aufb.&Leit.'!$A:$J,8,FALSE))) -> 0 | F99: =IF(ISERROR(VLOOKUP($A99,'A&V_Aufb.&Leit.'!$A:$J,9,FALSE)),"",(VLOOKUP($A99,'A&V_Aufb.&Leit.'!$A:$J,9,FALSE))) -> 0 | G99: =IF(ISERROR(VLOOKUP($A99,'A&V_Aufb.&Leit.'!$A:$J,10,FALSE)),"",(VLOOKUP($A99,'A&V_Aufb.&Leit.'!$A:$J,10,FALSE))) -> 0
A100: =CONCATENATE($C$6,'A&V_Aufb.&Leit.'!B21) -> G3 | B100: =IF(ISERROR(VLOOKUP($A100,'A&V_Aufb.&Leit.'!$A:$J,3,FALSE)),"",(VLOOKUP($A100,'A&V_Aufb.&Leit.'!$A:$J,3,FALSE))) -> Vertretung des Pfarrkonvents in der KP | C100: =IF(ISERROR(VLOOKUP($A100,'A&V_Aufb.&Leit.'!$A:$J,6,FALSE)),"",(VLOOKUP($A100,'A&V_Aufb.&Leit.'!$A:$J,6,FALSE))) -> 0 | D100: =IF(ISERROR(VLOOKUP($A100,'A&V_Aufb.&Leit.'!$A:$J,7,FALSE)),"",(VLOOKUP($A100,'A&V_Aufb.&Leit.'!$A:$J,7,FALSE))) -> 0.3436426117 | E100: =IF(ISERROR(VLOOKUP($A100,'A&V_Aufb.&Leit.'!$A:$J,8,FALSE)),"",(VLOOKUP($A100,'A&V_Aufb.&Leit.'!$A:$J,8,FALSE))) -> 0 | F100: =IF(ISERROR(VLOOKUP($A100,'A&V_Aufb.&Leit.'!$A:$J,9,FALSE)),"",(VLOOKUP($A100,'A&V_Aufb.&Leit.'!$A:$J,9,FALSE))) -> 0 | G100: =IF(ISERROR(VLOOKUP($A100,'A&V_Aufb.&Leit.'!$A:$J,10,FALSE)),"",(VLOOKUP($A100,'A&V_Aufb.&Leit.'!$A:$J,10,FALSE))) -> 0
A101: =CONCATENATE($C$6,'A&V_Aufb.&Leit.'!B22) -> G4 | B101: =IF(ISERROR(VLOOKUP($A101,'A&V_Aufb.&Leit.'!$A:$J,3,FALSE)),"",(VLOOKUP($A101,'A&V_Aufb.&Leit.'!$A:$J,3,FALSE))) -> Sitzungen Gemeindekonvent | C101: =IF(ISERROR(VLOOKUP($A101,'A&V_Aufb.&Leit.'!$A:$J,6,FALSE)),"",(VLOOKUP($A101,'A&V_Aufb.&Leit.'!$A:$J,6,FALSE))) -> 0 | D101: =IF(ISERROR(VLOOKUP($A101,'A&V_Aufb.&Leit.'!$A:$J,7,FALSE)),"",(VLOOKUP($A101,'A&V_Aufb.&Leit.'!$A:$J,7,FALSE))) -> 0.4581901489 | E101: =IF(ISERROR(VLOOKUP($A101,'A&V_Aufb.&Leit.'!$A:$J,8,FALSE)),"",(VLOOKUP($A101,'A&V_Aufb.&Leit.'!$A:$J,8,FALSE))) -> 0 | F101: =IF(ISERROR(VLOOKUP($A101,'A&V_Aufb.&Leit.'!$A:$J,9,FALSE)),"",(VLOOKUP($A101,'A&V_Aufb.&Leit.'!$A:$J,9,FALSE))) -> 0 | G101: =IF(ISERROR(VLOOKUP($A101,'A&V_Aufb.&Leit.'!$A:$J,10,FALSE)),"",(VLOOKUP($A101,'A&V_Aufb.&Leit.'!$A:$J,10,FALSE))) -> 0
A102: =CONCATENATE($C$6,'A&V_Aufb.&Leit.'!B23) -> G5 | B102: =IF(ISERROR(VLOOKUP($A102,'A&V_Aufb.&Leit.'!$A:$J,3,FALSE)),"",(VLOOKUP($A102,'A&V_Aufb.&Leit.'!$A:$J,3,FALSE))) -> Kommissionen | C102: =IF(ISERROR(VLOOKUP($A102,'A&V_Aufb.&Leit.'!$A:$J,6,FALSE)),"",(VLOOKUP($A102,'A&V_Aufb.&Leit.'!$A:$J,6,FALSE))) -> 0 | D102: =IF(ISERROR(VLOOKUP($A102,'A&V_Aufb.&Leit.'!$A:$J,7,FALSE)),"",(VLOOKUP($A102,'A&V_Aufb.&Leit.'!$A:$J,7,FALSE))) -> 0.1718213058 | E102: =IF(ISERROR(VLOOKUP($A102,'A&V_Aufb.&Leit.'!$A:$J,8,FALSE)),"",(VLOOKUP($A102,'A&V_Aufb.&Leit.'!$A:$J,8,FALSE))) -> 0 | F102: =IF(ISERROR(VLOOKUP($A102,'A&V_Aufb.&Leit.'!$A:$J,9,FALSE)),"",(VLOOKUP($A102,'A&V_Aufb.&Leit.'!$A:$J,9,FALSE))) -> 0 | G102: =IF(ISERROR(VLOOKUP($A102,'A&V_Aufb.&Leit.'!$A:$J,10,FALSE)),"",(VLOOKUP($A102,'A&V_Aufb.&Leit.'!$A:$J,10,FALSE))) -> 0
A103: =CONCATENATE($C$6,'A&V_Aufb.&Leit.'!B24) -> G6 | B103: =IF(ISERROR(VLOOKUP($A103,'A&V_Aufb.&Leit.'!$A:$J,3,FALSE)),"",(VLOOKUP($A103,'A&V_Aufb.&Leit.'!$A:$J,3,FALSE))) -> Arbeitsgruppen | C103: =IF(ISERROR(VLOOKUP($A103,'A&V_Aufb.&Leit.'!$A:$J,6,FALSE)),"",(VLOOKUP($A103,'A&V_Aufb.&Leit.'!$A:$J,6,FALSE))) -> 0 | D103: =IF(ISERROR(VLOOKUP($A103,'A&V_Aufb.&Leit.'!$A:$J,7,FALSE)),"",(VLOOKUP($A103,'A&V_Aufb.&Leit.'!$A:$J,7,FALSE))) -> 0.1718213058 | E103: =IF(ISERROR(VLOOKUP($A103,'A&V_Aufb.&Leit.'!$A:$J,8,FALSE)),"",(VLOOKUP($A103,'A&V_Aufb.&Leit.'!$A:$J,8,FALSE))) -> 0 | F103: =IF(ISERROR(VLOOKUP($A103,'A&V_Aufb.&Leit.'!$A:$J,9,FALSE)),"",(VLOOKUP($A103,'A&V_Aufb.&Leit.'!$A:$J,9,FALSE))) -> 0 | G103: =IF(ISERROR(VLOOKUP($A103,'A&V_Aufb.&Leit.'!$A:$J,10,FALSE)),"",(VLOOKUP($A103,'A&V_Aufb.&Leit.'!$A:$J,10,FALSE))) -> 0
A104: =CONCATENATE($C$6,'A&V_Aufb.&Leit.'!B25) -> G7 | B104: =IF(ISERROR(VLOOKUP($A104,'A&V_Aufb.&Leit.'!$A:$J,3,FALSE)),"",(VLOOKUP($A104,'A&V_Aufb.&Leit.'!$A:$J,3,FALSE))) -> Schwerpunktleitung | C104: =IF(ISERROR(VLOOKUP($A104,'A&V_Aufb.&Leit.'!$A:$J,6,FALSE)),"",(VLOOKUP($A104,'A&V_Aufb.&Leit.'!$A:$J,6,FALSE))) -> 0 | D104: =IF(ISERROR(VLOOKUP($A104,'A&V_Aufb.&Leit.'!$A:$J,7,FALSE)),"",(VLOOKUP($A104,'A&V_Aufb.&Leit.'!$A:$J,7,FALSE))) -> 0 | E104: =IF(ISERROR(VLOOKUP($A104,'A&V_Aufb.&Leit.'!$A:$J,8,FALSE)),"",(VLOOKUP($A104,'A&V_Aufb.&Leit.'!$A:$J,8,FALSE))) -> 0 | F104: =IF(ISERROR(VLOOKUP($A104,'A&V_Aufb.&Leit.'!$A:$J,9,FALSE)),"",(VLOOKUP($A104,'A&V_Aufb.&Leit.'!$A:$J,9,FALSE))) -> 0 | G104: =IF(ISERROR(VLOOKUP($A104,'A&V_Aufb.&Leit.'!$A:$J,10,FALSE)),"",(VLOOKUP($A104,'A&V_Aufb.&Leit.'!$A:$J,10,FALSE))) -> 0
A105: =CONCATENATE($C$6,'A&V_Aufb.&Leit.'!B26) -> G8 | B105: =IF(ISERROR(VLOOKUP($A105,'A&V_Aufb.&Leit.'!$A:$J,3,FALSE)),"",(VLOOKUP($A105,'A&V_Aufb.&Leit.'!$A:$J,3,FALSE))) -> … | C105: =IF(ISERROR(VLOOKUP($A105,'A&V_Aufb.&Leit.'!$A:$J,6,FALSE)),"",(VLOOKUP($A105,'A&V_Aufb.&Leit.'!$A:$J,6,FALSE))) -> 0 | D105: =IF(ISERROR(VLOOKUP($A105,'A&V_Aufb.&Leit.'!$A:$J,7,FALSE)),"",(VLOOKUP($A105,'A&V_Aufb.&Leit.'!$A:$J,7,FALSE))) -> 0 | E105: =IF(ISERROR(VLOOKUP($A105,'A&V_Aufb.&Leit.'!$A:$J,8,FALSE)),"",(VLOOKUP($A105,'A&V_Aufb.&Leit.'!$A:$J,8,FALSE))) -> 0 | F105: =IF(ISERROR(VLOOKUP($A105,'A&V_Aufb.&Leit.'!$A:$J,9,FALSE)),"",(VLOOKUP($A105,'A&V_Aufb.&Leit.'!$A:$J,9,FALSE))) -> 0 | G105: =IF(ISERROR(VLOOKUP($A105,'A&V_Aufb.&Leit.'!$A:$J,10,FALSE)),"",(VLOOKUP($A105,'A&V_Aufb.&Leit.'!$A:$J,10,FALSE))) -> 0
A106: =CONCATENATE($C$6,'A&V_Aufb.&Leit.'!B27) -> G9 | B106: =IF(ISERROR(VLOOKUP($A106,'A&V_Aufb.&Leit.'!$A:$J,3,FALSE)),"",(VLOOKUP($A106,'A&V_Aufb.&Leit.'!$A:$J,3,FALSE))) -> … | C106: =IF(ISERROR(VLOOKUP($A106,'A&V_Aufb.&Leit.'!$A:$J,6,FALSE)),"",(VLOOKUP($A106,'A&V_Aufb.&Leit.'!$A:$J,6,FALSE))) -> 0 | D106: =IF(ISERROR(VLOOKUP($A106,'A&V_Aufb.&Leit.'!$A:$J,7,FALSE)),"",(VLOOKUP($A106,'A&V_Aufb.&Leit.'!$A:$J,7,FALSE))) -> 0 | E106: =IF(ISERROR(VLOOKUP($A106,'A&V_Aufb.&Leit.'!$A:$J,8,FALSE)),"",(VLOOKUP($A106,'A&V_Aufb.&Leit.'!$A:$J,8,FALSE))) -> 0 | F106: =IF(ISERROR(VLOOKUP($A106,'A&V_Aufb.&Leit.'!$A:$J,9,FALSE)),"",(VLOOKUP($A106,'A&V_Aufb.&Leit.'!$A:$J,9,FALSE))) -> 0 | G106: =IF(ISERROR(VLOOKUP($A106,'A&V_Aufb.&Leit.'!$A:$J,10,FALSE)),"",(VLOOKUP($A106,'A&V_Aufb.&Leit.'!$A:$J,10,FALSE))) -> 0
A107: =CONCATENATE($C$6,'A&V_Aufb.&Leit.'!B28) -> G10 | B107: =IF(ISERROR(VLOOKUP($A107,'A&V_Aufb.&Leit.'!$A:$J,3,FALSE)),"",(VLOOKUP($A107,'A&V_Aufb.&Leit.'!$A:$J,3,FALSE))) -> … | C107: =IF(ISERROR(VLOOKUP($A107,'A&V_Aufb.&Leit.'!$A:$J,6,FALSE)),"",(VLOOKUP($A107,'A&V_Aufb.&Leit.'!$A:$J,6,FALSE))) -> 0 | D107: =IF(ISERROR(VLOOKUP($A107,'A&V_Aufb.&Leit.'!$A:$J,7,FALSE)),"",(VLOOKUP($A107,'A&V_Aufb.&Leit.'!$A:$J,7,FALSE))) -> 0 | E107: =IF(ISERROR(VLOOKUP($A107,'A&V_Aufb.&Leit.'!$A:$J,8,FALSE)),"",(VLOOKUP($A107,'A&V_Aufb.&Leit.'!$A:$J,8,FALSE))) -> 0 | F107: =IF(ISERROR(VLOOKUP($A107,'A&V_Aufb.&Leit.'!$A:$J,9,FALSE)),"",(VLOOKUP($A107,'A&V_Aufb.&Leit.'!$A:$J,9,FALSE))) -> 0 | G107: =IF(ISERROR(VLOOKUP($A107,'A&V_Aufb.&Leit.'!$A:$J,10,FALSE)),"",(VLOOKUP($A107,'A&V_Aufb.&Leit.'!$A:$J,10,FALSE))) -> 0
A108: =CONCATENATE($C$6,'A&V_Aufb.&Leit.'!B29) -> G11 | B108: =IF(ISERROR(VLOOKUP($A108,'A&V_Aufb.&Leit.'!$A:$J,3,FALSE)),"",(VLOOKUP($A108,'A&V_Aufb.&Leit.'!$A:$J,3,FALSE))) -> … | C108: =IF(ISERROR(VLOOKUP($A108,'A&V_Aufb.&Leit.'!$A:$J,6,FALSE)),"",(VLOOKUP($A108,'A&V_Aufb.&Leit.'!$A:$J,6,FALSE))) -> 0 | D108: =IF(ISERROR(VLOOKUP($A108,'A&V_Aufb.&Leit.'!$A:$J,7,FALSE)),"",(VLOOKUP($A108,'A&V_Aufb.&Leit.'!$A:$J,7,FALSE))) -> 0 | E108: =IF(ISERROR(VLOOKUP($A108,'A&V_Aufb.&Leit.'!$A:$J,8,FALSE)),"",(VLOOKUP($A108,'A&V_Aufb.&Leit.'!$A:$J,8,FALSE))) -> 0 | F108: =IF(ISERROR(VLOOKUP($A108,'A&V_Aufb.&Leit.'!$A:$J,9,FALSE)),"",(VLOOKUP($A108,'A&V_Aufb.&Leit.'!$A:$J,9,FALSE))) -> 0 | G108: =IF(ISERROR(VLOOKUP($A108,'A&V_Aufb.&Leit.'!$A:$J,10,FALSE)),"",(VLOOKUP($A108,'A&V_Aufb.&Leit.'!$A:$J,10,FALSE))) -> 0
A109: =CONCATENATE($C$6,'A&V_Aufb.&Leit.'!B30) -> G12 | B109: =IF(ISERROR(VLOOKUP($A109,'A&V_Aufb.&Leit.'!$A:$J,3,FALSE)),"",(VLOOKUP($A109,'A&V_Aufb.&Leit.'!$A:$J,3,FALSE))) -> … | C109: =IF(ISERROR(VLOOKUP($A109,'A&V_Aufb.&Leit.'!$A:$J,6,FALSE)),"",(VLOOKUP($A109,'A&V_Aufb.&Leit.'!$A:$J,6,FALSE))) -> 0 | D109: =IF(ISERROR(VLOOKUP($A109,'A&V_Aufb.&Leit.'!$A:$J,7,FALSE)),"",(VLOOKUP($A109,'A&V_Aufb.&Leit.'!$A:$J,7,FALSE))) -> 0 | E109: =IF(ISERROR(VLOOKUP($A109,'A&V_Aufb.&Leit.'!$A:$J,8,FALSE)),"",(VLOOKUP($A109,'A&V_Aufb.&Leit.'!$A:$J,8,FALSE))) -> 0 | F109: =IF(ISERROR(VLOOKUP($A109,'A&V_Aufb.&Leit.'!$A:$J,9,FALSE)),"",(VLOOKUP($A109,'A&V_Aufb.&Leit.'!$A:$J,9,FALSE))) -> 0 | G109: =IF(ISERROR(VLOOKUP($A109,'A&V_Aufb.&Leit.'!$A:$J,10,FALSE)),"",(VLOOKUP($A109,'A&V_Aufb.&Leit.'!$A:$J,10,FALSE))) -> 0
C110: a
A111: =CONCATENATE($C$6,'A&V_Aufb.&Leit.'!B32) ->  | B111: ='A&V_Aufb.&Leit.'!C178 -> Arbeitsbereich Gemeindeaufbau | C111: ='A&V_Aufb.&Leit.'!D178 -> Anzahl Sitzungen | D111: ='A&V_Aufb.&Leit.'!G178 -> Zeitbedarf in AT pro zugeteilte Grösse | E111: ='A&V_Aufb.&Leit.'!H178 -> 0 | F111: ='A&V_Aufb.&Leit.'!I178 -> Summe Zeitbedarf in AT | G111: ='A&V_Aufb.&Leit.'!J178 -> Bemerkung (Hauptverantwortung, Planung, konzeptioneller Ansatz)
C112: a | D112: ='A&V_Aufb.&Leit.'!G179 -> Ausgangs- wert | E112: ='A&V_Aufb.&Leit.'!H179 -> eigener Faktor | G112: ='A&V_Aufb.&Leit.'!J179 -> 0
A113: =CONCATENATE($C$6,'A&V_Aufb.&Leit.'!B180) -> Ge1 | B113: =IF(ISERROR(VLOOKUP($A113,'A&V_Aufb.&Leit.'!$A:$J,3,FALSE)),"",(VLOOKUP($A113,'A&V_Aufb.&Leit.'!$A:$J,3,FALSE))) -> 0 | C113: =IF(ISERROR(VLOOKUP($A113,'A&V_Aufb.&Leit.'!$A:$J,6,FALSE)),"",(VLOOKUP($A113,'A&V_Aufb.&Leit.'!$A:$J,6,FALSE))) -> 0 | D113: =IF(ISERROR(VLOOKUP($A113,'A&V_Aufb.&Leit.'!$A:$J,7,FALSE)),"",(VLOOKUP($A113,'A&V_Aufb.&Leit.'!$A:$J,7,FALSE))) -> 0 | E113: =IF(ISERROR(VLOOKUP($A113,'A&V_Aufb.&Leit.'!$A:$J,8,FALSE)),"",(VLOOKUP($A113,'A&V_Aufb.&Leit.'!$A:$J,8,FALSE))) -> 0 | F113: =IF(ISERROR(VLOOKUP($A113,'A&V_Aufb.&Leit.'!$A:$J,9,FALSE)),"",(VLOOKUP($A113,'A&V_Aufb.&Leit.'!$A:$J,9,FALSE))) -> 0 | G113: =IF(ISERROR(VLOOKUP($A113,'A&V_Aufb.&Leit.'!$A:$J,10,FALSE)),"",(VLOOKUP($A113,'A&V_Aufb.&Leit.'!$A:$J,10,FALSE))) -> 0
A114: =CONCATENATE($C$6,'A&V_Aufb.&Leit.'!B181) -> Ge2 | B114: =IF(ISERROR(VLOOKUP($A114,'A&V_Aufb.&Leit.'!$A:$J,3,FALSE)),"",(VLOOKUP($A114,'A&V_Aufb.&Leit.'!$A:$J,3,FALSE))) -> 0 | C114: =IF(ISERROR(VLOOKUP($A114,'A&V_Aufb.&Leit.'!$A:$J,6,FALSE)),"",(VLOOKUP($A114,'A&V_Aufb.&Leit.'!$A:$J,6,FALSE))) -> 0 | D114: =IF(ISERROR(VLOOKUP($A114,'A&V_Aufb.&Leit.'!$A:$J,7,FALSE)),"",(VLOOKUP($A114,'A&V_Aufb.&Leit.'!$A:$J,7,FALSE))) -> 0 | E114: =IF(ISERROR(VLOOKUP($A114,'A&V_Aufb.&Leit.'!$A:$J,8,FALSE)),"",(VLOOKUP($A114,'A&V_Aufb.&Leit.'!$A:$J,8,FALSE))) -> 0 | F114: =IF(ISERROR(VLOOKUP($A114,'A&V_Aufb.&Leit.'!$A:$J,9,FALSE)),"",(VLOOKUP($A114,'A&V_Aufb.&Leit.'!$A:$J,9,FALSE))) -> 0 | G114: =IF(ISERROR(VLOOKUP($A114,'A&V_Aufb.&Leit.'!$A:$J,10,FALSE)),"",(VLOOKUP($A114,'A&V_Aufb.&Leit.'!$A:$J,10,FALSE))) -> 0
A115: =CONCATENATE($C$6,'A&V_Aufb.&Leit.'!B182) -> Ge3 | B115: =IF(ISERROR(VLOOKUP($A115,'A&V_Aufb.&Leit.'!$A:$J,3,FALSE)),"",(VLOOKUP($A115,'A&V_Aufb.&Leit.'!$A:$J,3,FALSE))) -> 0 | C115: =IF(ISERROR(VLOOKUP($A115,'A&V_Aufb.&Leit.'!$A:$J,6,FALSE)),"",(VLOOKUP($A115,'A&V_Aufb.&Leit.'!$A:$J,6,FALSE))) -> 0 | D115: =IF(ISERROR(VLOOKUP($A115,'A&V_Aufb.&Leit.'!$A:$J,7,FALSE)),"",(VLOOKUP($A115,'A&V_Aufb.&Leit.'!$A:$J,7,FALSE))) -> 0 | E115: =IF(ISERROR(VLOOKUP($A115,'A&V_Aufb.&Leit.'!$A:$J,8,FALSE)),"",(VLOOKUP($A115,'A&V_Aufb.&Leit.'!$A:$J,8,FALSE))) -> 0 | F115: =IF(ISERROR(VLOOKUP($A115,'A&V_Aufb.&Leit.'!$A:$J,9,FALSE)),"",(VLOOKUP($A115,'A&V_Aufb.&Leit.'!$A:$J,9,FALSE))) -> 0 | G115: =IF(ISERROR(VLOOKUP($A115,'A&V_Aufb.&Leit.'!$A:$J,10,FALSE)),"",(VLOOKUP($A115,'A&V_Aufb.&Leit.'!$A:$J,10,FALSE))) -> 0
A116: =CONCATENATE($C$6,'A&V_Aufb.&Leit.'!B183) -> Ge4 | B116: =IF(ISERROR(VLOOKUP($A116,'A&V_Aufb.&Leit.'!$A:$J,3,FALSE)),"",(VLOOKUP($A116,'A&V_Aufb.&Leit.'!$A:$J,3,FALSE))) -> 0 | C116: =IF(ISERROR(VLOOKUP($A116,'A&V_Aufb.&Leit.'!$A:$J,6,FALSE)),"",(VLOOKUP($A116,'A&V_Aufb.&Leit.'!$A:$J,6,FALSE))) -> 0 | D116: =IF(ISERROR(VLOOKUP($A116,'A&V_Aufb.&Leit.'!$A:$J,7,FALSE)),"",(VLOOKUP($A116,'A&V_Aufb.&Leit.'!$A:$J,7,FALSE))) -> 0 | E116: =IF(ISERROR(VLOOKUP($A116,'A&V_Aufb.&Leit.'!$A:$J,8,FALSE)),"",(VLOOKUP($A116,'A&V_Aufb.&Leit.'!$A:$J,8,FALSE))) -> 0 | F116: =IF(ISERROR(VLOOKUP($A116,'A&V_Aufb.&Leit.'!$A:$J,9,FALSE)),"",(VLOOKUP($A116,'A&V_Aufb.&Leit.'!$A:$J,9,FALSE))) -> 0 | G116: =IF(ISERROR(VLOOKUP($A116,'A&V_Aufb.&Leit.'!$A:$J,10,FALSE)),"",(VLOOKUP($A116,'A&V_Aufb.&Leit.'!$A:$J,10,FALSE))) -> 0
A117: =CONCATENATE($C$6,'A&V_Aufb.&Leit.'!B184) -> Ge5 | B117: =IF(ISERROR(VLOOKUP($A117,'A&V_Aufb.&Leit.'!$A:$J,3,FALSE)),"",(VLOOKUP($A117,'A&V_Aufb.&Leit.'!$A:$J,3,FALSE))) -> 0 | C117: =IF(ISERROR(VLOOKUP($A117,'A&V_Aufb.&Leit.'!$A:$J,6,FALSE)),"",(VLOOKUP($A117,'A&V_Aufb.&Leit.'!$A:$J,6,FALSE))) -> 0 | D117: =IF(ISERROR(VLOOKUP($A117,'A&V_Aufb.&Leit.'!$A:$J,7,FALSE)),"",(VLOOKUP($A117,'A&V_Aufb.&Leit.'!$A:$J,7,FALSE))) -> 0 | E117: =IF(ISERROR(VLOOKUP($A117,'A&V_Aufb.&Leit.'!$A:$J,8,FALSE)),"",(VLOOKUP($A117,'A&V_Aufb.&Leit.'!$A:$J,8,FALSE))) -> 0 | F117: =IF(ISERROR(VLOOKUP($A117,'A&V_Aufb.&Leit.'!$A:$J,9,FALSE)),"",(VLOOKUP($A117,'A&V_Aufb.&Leit.'!$A:$J,9,FALSE))) -> 0 | G117: =IF(ISERROR(VLOOKUP($A117,'A&V_Aufb.&Leit.'!$A:$J,10,FALSE)),"",(VLOOKUP($A117,'A&V_Aufb.&Leit.'!$A:$J,10,FALSE))) -> 0
A118: =CONCATENATE($C$6,'A&V_Aufb.&Leit.'!B185) -> Ge6 | B118: =IF(ISERROR(VLOOKUP($A118,'A&V_Aufb.&Leit.'!$A:$J,3,FALSE)),"",(VLOOKUP($A118,'A&V_Aufb.&Leit.'!$A:$J,3,FALSE))) -> 0 | C118: =IF(ISERROR(VLOOKUP($A118,'A&V_Aufb.&Leit.'!$A:$J,6,FALSE)),"",(VLOOKUP($A118,'A&V_Aufb.&Leit.'!$A:$J,6,FALSE))) -> 0 | D118: =IF(ISERROR(VLOOKUP($A118,'A&V_Aufb.&Leit.'!$A:$J,7,FALSE)),"",(VLOOKUP($A118,'A&V_Aufb.&Leit.'!$A:$J,7,FALSE))) -> 0 | E118: =IF(ISERROR(VLOOKUP($A118,'A&V_Aufb.&Leit.'!$A:$J,8,FALSE)),"",(VLOOKUP($A118,'A&V_Aufb.&Leit.'!$A:$J,8,FALSE))) -> 0 | F118: =IF(ISERROR(VLOOKUP($A118,'A&V_Aufb.&Leit.'!$A:$J,9,FALSE)),"",(VLOOKUP($A118,'A&V_Aufb.&Leit.'!$A:$J,9,FALSE))) -> 0 | G118: =IF(ISERROR(VLOOKUP($A118,'A&V_Aufb.&Leit.'!$A:$J,10,FALSE)),"",(VLOOKUP($A118,'A&V_Aufb.&Leit.'!$A:$J,10,FALSE))) -> 0
A119: =CONCATENATE($C$6,'A&V_Aufb.&Leit.'!B186) -> Ge7 | B119: =IF(ISERROR(VLOOKUP($A119,'A&V_Aufb.&Leit.'!$A:$J,3,FALSE)),"",(VLOOKUP($A119,'A&V_Aufb.&Leit.'!$A:$J,3,FALSE))) -> 0 | C119: =IF(ISERROR(VLOOKUP($A119,'A&V_Aufb.&Leit.'!$A:$J,6,FALSE)),"",(VLOOKUP($A119,'A&V_Aufb.&Leit.'!$A:$J,6,FALSE))) -> 0 | D119: =IF(ISERROR(VLOOKUP($A119,'A&V_Aufb.&Leit.'!$A:$J,7,FALSE)),"",(VLOOKUP($A119,'A&V_Aufb.&Leit.'!$A:$J,7,FALSE))) -> 0 | E119: =IF(ISERROR(VLOOKUP($A119,'A&V_Aufb.&Leit.'!$A:$J,8,FALSE)),"",(VLOOKUP($A119,'A&V_Aufb.&Leit.'!$A:$J,8,FALSE))) -> 0 | F119: =IF(ISERROR(VLOOKUP($A119,'A&V_Aufb.&Leit.'!$A:$J,9,FALSE)),"",(VLOOKUP($A119,'A&V_Aufb.&Leit.'!$A:$J,9,FALSE))) -> 0 | G119: =IF(ISERROR(VLOOKUP($A119,'A&V_Aufb.&Leit.'!$A:$J,10,FALSE)),"",(VLOOKUP($A119,'A&V_Aufb.&Leit.'!$A:$J,10,FALSE))) -> 0
A120: =CONCATENATE($C$6,'A&V_Aufb.&Leit.'!B187) -> Ge8 | B120: =IF(ISERROR(VLOOKUP($A120,'A&V_Aufb.&Leit.'!$A:$J,3,FALSE)),"",(VLOOKUP($A120,'A&V_Aufb.&Leit.'!$A:$J,3,FALSE))) -> 0 | C120: =IF(ISERROR(VLOOKUP($A120,'A&V_Aufb.&Leit.'!$A:$J,6,FALSE)),"",(VLOOKUP($A120,'A&V_Aufb.&Leit.'!$A:$J,6,FALSE))) -> 0 | D120: =IF(ISERROR(VLOOKUP($A120,'A&V_Aufb.&Leit.'!$A:$J,7,FALSE)),"",(VLOOKUP($A120,'A&V_Aufb.&Leit.'!$A:$J,7,FALSE))) -> 0 | E120: =IF(ISERROR(VLOOKUP($A120,'A&V_Aufb.&Leit.'!$A:$J,8,FALSE)),"",(VLOOKUP($A120,'A&V_Aufb.&Leit.'!$A:$J,8,FALSE))) -> 0 | F120: =IF(ISERROR(VLOOKUP($A120,'A&V_Aufb.&Leit.'!$A:$J,9,FALSE)),"",(VLOOKUP($A120,'A&V_Aufb.&Leit.'!$A:$J,9,FALSE))) -> 0 | G120: =IF(ISERROR(VLOOKUP($A120,'A&V_Aufb.&Leit.'!$A:$J,10,FALSE)),"",(VLOOKUP($A120,'A&V_Aufb.&Leit.'!$A:$J,10,FALSE))) -> 0
A121: =CONCATENATE($C$6,'A&V_Aufb.&Leit.'!B188) -> Ge9 | B121: =IF(ISERROR(VLOOKUP($A121,'A&V_Aufb.&Leit.'!$A:$J,3,FALSE)),"",(VLOOKUP($A121,'A&V_Aufb.&Leit.'!$A:$J,3,FALSE))) -> 0 | C121: =IF(ISERROR(VLOOKUP($A121,'A&V_Aufb.&Leit.'!$A:$J,6,FALSE)),"",(VLOOKUP($A121,'A&V_Aufb.&Leit.'!$A:$J,6,FALSE))) -> 0 | D121: =IF(ISERROR(VLOOKUP($A121,'A&V_Aufb.&Leit.'!$A:$J,7,FALSE)),"",(VLOOKUP($A121,'A&V_Aufb.&Leit.'!$A:$J,7,FALSE))) -> 0 | E121: =IF(ISERROR(VLOOKUP($A121,'A&V_Aufb.&Leit.'!$A:$J,8,FALSE)),"",(VLOOKUP($A121,'A&V_Aufb.&Leit.'!$A:$J,8,FALSE))) -> 0 | F121: =IF(ISERROR(VLOOKUP($A121,'A&V_Aufb.&Leit.'!$A:$J,9,FALSE)),"",(VLOOKUP($A121,'A&V_Aufb.&Leit.'!$A:$J,9,FALSE))) -> 0 | G121: =IF(ISERROR(VLOOKUP($A121,'A&V_Aufb.&Leit.'!$A:$J,10,FALSE)),"",(VLOOKUP($A121,'A&V_Aufb.&Leit.'!$A:$J,10,FALSE))) -> 0
A122: =CONCATENATE($C$6,'A&V_Aufb.&Leit.'!B189) -> Ge10 | B122: =IF(ISERROR(VLOOKUP($A122,'A&V_Aufb.&Leit.'!$A:$J,3,FALSE)),"",(VLOOKUP($A122,'A&V_Aufb.&Leit.'!$A:$J,3,FALSE))) -> 0 | C122: =IF(ISERROR(VLOOKUP($A122,'A&V_Aufb.&Leit.'!$A:$J,6,FALSE)),"",(VLOOKUP($A122,'A&V_Aufb.&Leit.'!$A:$J,6,FALSE))) -> 0 | D122: =IF(ISERROR(VLOOKUP($A122,'A&V_Aufb.&Leit.'!$A:$J,7,FALSE)),"",(VLOOKUP($A122,'A&V_Aufb.&Leit.'!$A:$J,7,FALSE))) -> 0 | E122: =IF(ISERROR(VLOOKUP($A122,'A&V_Aufb.&Leit.'!$A:$J,8,FALSE)),"",(VLOOKUP($A122,'A&V_Aufb.&Leit.'!$A:$J,8,FALSE))) -> 0 | F122: =IF(ISERROR(VLOOKUP($A122,'A&V_Aufb.&Leit.'!$A:$J,9,FALSE)),"",(VLOOKUP($A122,'A&V_Aufb.&Leit.'!$A:$J,9,FALSE))) -> 0 | G122: =IF(ISERROR(VLOOKUP($A122,'A&V_Aufb.&Leit.'!$A:$J,10,FALSE)),"",(VLOOKUP($A122,'A&V_Aufb.&Leit.'!$A:$J,10,FALSE))) -> 0
C123: a
A124: =CONCATENATE($C$6,'A&V_W.Dienste'!B17) -> WD0 | B124: ='A&V_W.Dienste'!C17 -> Arbeitsbereich Weitere Dienste | C124: ='A&V_W.Dienste'!D17 -> Anzahl | D124: Zeitbedarf in AT pro zugeteilte Grösse | F124: ='A&V_W.Dienste'!I17 -> Summe Zeitbedarf in AT | G124: ='A&V_W.Dienste'!J17 -> Bemerkung (Hauptverantwortung, Planung, konzeptioneller Ansatz)
C125: a | D125: Ausgangs- wert | E125: eigener Faktor
A126: =CONCATENATE($C$6,'A&V_W.Dienste'!B19) -> WD1 | B126: =IF(ISERROR(VLOOKUP($A126,'A&V_W.Dienste'!$A:$J,3,FALSE)),"",(VLOOKUP($A126,'A&V_W.Dienste'!$A:$J,3,FALSE))) -> Armeeseelsorge | C126: =IF(ISERROR(VLOOKUP($A126,'A&V_W.Dienste'!$A:$J,6,FALSE)),"",(VLOOKUP($A126,'A&V_W.Dienste'!$A:$J,6,FALSE))) -> 0 | D126: =IF(ISERROR(VLOOKUP($A126,'A&V_W.Dienste'!$A:$J,7,FALSE)),"",(VLOOKUP($A126,'A&V_W.Dienste'!$A:$J,7,FALSE))) -> 0 | E126: =IF(ISERROR(VLOOKUP($A126,'A&V_W.Dienste'!$A:$J,8,FALSE)),"",(VLOOKUP($A126,'A&V_W.Dienste'!$A:$J,8,FALSE))) -> 0 | F126: =IF(ISERROR(VLOOKUP($A126,'A&V_W.Dienste'!$A:$J,9,FALSE)),"",(VLOOKUP($A126,'A&V_W.Dienste'!$A:$J,9,FALSE))) -> 0 | G126: =IF(ISERROR(VLOOKUP($A126,'A&V_W.Dienste'!$A:$J,10,FALSE)),"",(VLOOKUP($A126,'A&V_W.Dienste'!$A:$J,10,FALSE))) -> 0
A127: =CONCATENATE($C$6,'A&V_W.Dienste'!B20) -> WD2 | B127: =IF(ISERROR(VLOOKUP($A127,'A&V_W.Dienste'!$A:$J,3,FALSE)),"",(VLOOKUP($A127,'A&V_W.Dienste'!$A:$J,3,FALSE))) -> Militär- / Bevölkerungsschutzdienst | C127: =IF(ISERROR(VLOOKUP($A127,'A&V_W.Dienste'!$A:$J,6,FALSE)),"",(VLOOKUP($A127,'A&V_W.Dienste'!$A:$J,6,FALSE))) -> 0 | D127: =IF(ISERROR(VLOOKUP($A127,'A&V_W.Dienste'!$A:$J,7,FALSE)),"",(VLOOKUP($A127,'A&V_W.Dienste'!$A:$J,7,FALSE))) -> 0 | E127: =IF(ISERROR(VLOOKUP($A127,'A&V_W.Dienste'!$A:$J,8,FALSE)),"",(VLOOKUP($A127,'A&V_W.Dienste'!$A:$J,8,FALSE))) -> 0 | F127: =IF(ISERROR(VLOOKUP($A127,'A&V_W.Dienste'!$A:$J,9,FALSE)),"",(VLOOKUP($A127,'A&V_W.Dienste'!$A:$J,9,FALSE))) -> 0 | G127: =IF(ISERROR(VLOOKUP($A127,'A&V_W.Dienste'!$A:$J,10,FALSE)),"",(VLOOKUP($A127,'A&V_W.Dienste'!$A:$J,10,FALSE))) -> 0
A128: =CONCATENATE($C$6,'A&V_W.Dienste'!B21) -> WD3 | B128: =IF(ISERROR(VLOOKUP($A128,'A&V_W.Dienste'!$A:$J,3,FALSE)),"",(VLOOKUP($A128,'A&V_W.Dienste'!$A:$J,3,FALSE))) -> WEA | C128: =IF(ISERROR(VLOOKUP($A128,'A&V_W.Dienste'!$A:$J,6,FALSE)),"",(VLOOKUP($A128,'A&V_W.Dienste'!$A:$J,6,FALSE))) -> 0 | D128: =IF(ISERROR(VLOOKUP($A128,'A&V_W.Dienste'!$A:$J,7,FALSE)),"",(VLOOKUP($A128,'A&V_W.Dienste'!$A:$J,7,FALSE))) -> 0 | E128: =IF(ISERROR(VLOOKUP($A128,'A&V_W.Dienste'!$A:$J,8,FALSE)),"",(VLOOKUP($A128,'A&V_W.Dienste'!$A:$J,8,FALSE))) -> 0 | F128: =IF(ISERROR(VLOOKUP($A128,'A&V_W.Dienste'!$A:$J,9,FALSE)),"",(VLOOKUP($A128,'A&V_W.Dienste'!$A:$J,9,FALSE))) -> 0 | G128: =IF(ISERROR(VLOOKUP($A128,'A&V_W.Dienste'!$A:$J,10,FALSE)),"",(VLOOKUP($A128,'A&V_W.Dienste'!$A:$J,10,FALSE))) -> 0
A129: =CONCATENATE($C$6,'A&V_W.Dienste'!B22) -> WD4 | B129: =IF(ISERROR(VLOOKUP($A129,'A&V_W.Dienste'!$A:$J,3,FALSE)),"",(VLOOKUP($A129,'A&V_W.Dienste'!$A:$J,3,FALSE))) -> Langzeitweiterbildung | C129: =IF(ISERROR(VLOOKUP($A129,'A&V_W.Dienste'!$A:$J,6,FALSE)),"",(VLOOKUP($A129,'A&V_W.Dienste'!$A:$J,6,FALSE))) -> 0 | D129: =IF(ISERROR(VLOOKUP($A129,'A&V_W.Dienste'!$A:$J,7,FALSE)),"",(VLOOKUP($A129,'A&V_W.Dienste'!$A:$J,7,FALSE))) -> 0 | E129: =IF(ISERROR(VLOOKUP($A129,'A&V_W.Dienste'!$A:$J,8,FALSE)),"",(VLOOKUP($A129,'A&V_W.Dienste'!$A:$J,8,FALSE))) -> 0 | F129: =IF(ISERROR(VLOOKUP($A129,'A&V_W.Dienste'!$A:$J,9,FALSE)),"",(VLOOKUP($A129,'A&V_W.Dienste'!$A:$J,9,FALSE))) -> 0 | G129: =IF(ISERROR(VLOOKUP($A129,'A&V_W.Dienste'!$A:$J,10,FALSE)),"",(VLOOKUP($A129,'A&V_W.Dienste'!$A:$J,10,FALSE))) -> 0
A130: =CONCATENATE($C$6,'A&V_W.Dienste'!B23) -> WD5 | B130: =IF(ISERROR(VLOOKUP($A130,'A&V_W.Dienste'!$A:$J,3,FALSE)),"",(VLOOKUP($A130,'A&V_W.Dienste'!$A:$J,3,FALSE))) -> Öffentliche Ämter, Nebenbesch. | C130: =IF(ISERROR(VLOOKUP($A130,'A&V_W.Dienste'!$A:$J,6,FALSE)),"",(VLOOKUP($A130,'A&V_W.Dienste'!$A:$J,6,FALSE))) -> 0 | D130: =IF(ISERROR(VLOOKUP($A130,'A&V_W.Dienste'!$A:$J,7,FALSE)),"",(VLOOKUP($A130,'A&V_W.Dienste'!$A:$J,7,FALSE))) -> 0 | E130: =IF(ISERROR(VLOOKUP($A130,'A&V_W.Dienste'!$A:$J,8,FALSE)),"",(VLOOKUP($A130,'A&V_W.Dienste'!$A:$J,8,FALSE))) -> 0 | F130: =IF(ISERROR(VLOOKUP($A130,'A&V_W.Dienste'!$A:$J,9,FALSE)),"",(VLOOKUP($A130,'A&V_W.Dienste'!$A:$J,9,FALSE))) -> 0 | G130: =IF(ISERROR(VLOOKUP($A130,'A&V_W.Dienste'!$A:$J,10,FALSE)),"",(VLOOKUP($A130,'A&V_W.Dienste'!$A:$J,10,FALSE))) -> 0
A131: =CONCATENATE($C$6,'A&V_W.Dienste'!B24) -> WD6 | B131: =IF(ISERROR(VLOOKUP($A131,'A&V_W.Dienste'!$A:$J,3,FALSE)),"",(VLOOKUP($A131,'A&V_W.Dienste'!$A:$J,3,FALSE))) -> Besondere und übrige Aufgaben | C131: =IF(ISERROR(VLOOKUP($A131,'A&V_W.Dienste'!$A:$J,6,FALSE)),"",(VLOOKUP($A131,'A&V_W.Dienste'!$A:$J,6,FALSE))) -> 0 | D131: =IF(ISERROR(VLOOKUP($A131,'A&V_W.Dienste'!$A:$J,7,FALSE)),"",(VLOOKUP($A131,'A&V_W.Dienste'!$A:$J,7,FALSE))) -> 0 | E131: =IF(ISERROR(VLOOKUP($A131,'A&V_W.Dienste'!$A:$J,8,FALSE)),"",(VLOOKUP($A131,'A&V_W.Dienste'!$A:$J,8,FALSE))) -> 0 | F131: =IF(ISERROR(VLOOKUP($A131,'A&V_W.Dienste'!$A:$J,9,FALSE)),"",(VLOOKUP($A131,'A&V_W.Dienste'!$A:$J,9,FALSE))) -> 0 | G131: =IF(ISERROR(VLOOKUP($A131,'A&V_W.Dienste'!$A:$J,10,FALSE)),"",(VLOOKUP($A131,'A&V_W.Dienste'!$A:$J,10,FALSE))) -> 0
A132: =CONCATENATE($C$6,'A&V_W.Dienste'!B25) -> WD7 | B132: =IF(ISERROR(VLOOKUP($A132,'A&V_W.Dienste'!$A:$J,3,FALSE)),"",(VLOOKUP($A132,'A&V_W.Dienste'!$A:$J,3,FALSE))) -> … | C132: =IF(ISERROR(VLOOKUP($A132,'A&V_W.Dienste'!$A:$J,6,FALSE)),"",(VLOOKUP($A132,'A&V_W.Dienste'!$A:$J,6,FALSE))) -> 0 | D132: =IF(ISERROR(VLOOKUP($A132,'A&V_W.Dienste'!$A:$J,7,FALSE)),"",(VLOOKUP($A132,'A&V_W.Dienste'!$A:$J,7,FALSE))) -> 0 | E132: =IF(ISERROR(VLOOKUP($A132,'A&V_W.Dienste'!$A:$J,8,FALSE)),"",(VLOOKUP($A132,'A&V_W.Dienste'!$A:$J,8,FALSE))) -> 0 | F132: =IF(ISERROR(VLOOKUP($A132,'A&V_W.Dienste'!$A:$J,9,FALSE)),"",(VLOOKUP($A132,'A&V_W.Dienste'!$A:$J,9,FALSE))) -> 0 | G132: =IF(ISERROR(VLOOKUP($A132,'A&V_W.Dienste'!$A:$J,10,FALSE)),"",(VLOOKUP($A132,'A&V_W.Dienste'!$A:$J,10,FALSE))) -> 0
A133: =CONCATENATE($C$6,'A&V_W.Dienste'!B26) -> WD8 | B133: =IF(ISERROR(VLOOKUP($A133,'A&V_W.Dienste'!$A:$J,3,FALSE)),"",(VLOOKUP($A133,'A&V_W.Dienste'!$A:$J,3,FALSE))) -> … | C133: =IF(ISERROR(VLOOKUP($A133,'A&V_W.Dienste'!$A:$J,6,FALSE)),"",(VLOOKUP($A133,'A&V_W.Dienste'!$A:$J,6,FALSE))) -> 0 | D133: =IF(ISERROR(VLOOKUP($A133,'A&V_W.Dienste'!$A:$J,7,FALSE)),"",(VLOOKUP($A133,'A&V_W.Dienste'!$A:$J,7,FALSE))) -> 0 | E133: =IF(ISERROR(VLOOKUP($A133,'A&V_W.Dienste'!$A:$J,8,FALSE)),"",(VLOOKUP($A133,'A&V_W.Dienste'!$A:$J,8,FALSE))) -> 0 | F133: =IF(ISERROR(VLOOKUP($A133,'A&V_W.Dienste'!$A:$J,9,FALSE)),"",(VLOOKUP($A133,'A&V_W.Dienste'!$A:$J,9,FALSE))) -> 0 | G133: =IF(ISERROR(VLOOKUP($A133,'A&V_W.Dienste'!$A:$J,10,FALSE)),"",(VLOOKUP($A133,'A&V_W.Dienste'!$A:$J,10,FALSE))) -> 0
A134: =CONCATENATE($C$6,'A&V_W.Dienste'!B27) -> WD9 | B134: =IF(ISERROR(VLOOKUP($A134,'A&V_W.Dienste'!$A:$J,3,FALSE)),"",(VLOOKUP($A134,'A&V_W.Dienste'!$A:$J,3,FALSE))) -> … | C134: =IF(ISERROR(VLOOKUP($A134,'A&V_W.Dienste'!$A:$J,6,FALSE)),"",(VLOOKUP($A134,'A&V_W.Dienste'!$A:$J,6,FALSE))) -> 0 | D134: =IF(ISERROR(VLOOKUP($A134,'A&V_W.Dienste'!$A:$J,7,FALSE)),"",(VLOOKUP($A134,'A&V_W.Dienste'!$A:$J,7,FALSE))) -> 0 | E134: =IF(ISERROR(VLOOKUP($A134,'A&V_W.Dienste'!$A:$J,8,FALSE)),"",(VLOOKUP($A134,'A&V_W.Dienste'!$A:$J,8,FALSE))) -> 0 | F134: =IF(ISERROR(VLOOKUP($A134,'A&V_W.Dienste'!$A:$J,9,FALSE)),"",(VLOOKUP($A134,'A&V_W.Dienste'!$A:$J,9,FALSE))) -> 0 | G134: =IF(ISERROR(VLOOKUP($A134,'A&V_W.Dienste'!$A:$J,10,FALSE)),"",(VLOOKUP($A134,'A&V_W.Dienste'!$A:$J,10,FALSE))) -> 0
A135: =CONCATENATE($C$6,'A&V_W.Dienste'!B28) -> WD10 | B135: =IF(ISERROR(VLOOKUP($A135,'A&V_W.Dienste'!$A:$J,3,FALSE)),"",(VLOOKUP($A135,'A&V_W.Dienste'!$A:$J,3,FALSE))) -> … | C135: =IF(ISERROR(VLOOKUP($A135,'A&V_W.Dienste'!$A:$J,6,FALSE)),"",(VLOOKUP($A135,'A&V_W.Dienste'!$A:$J,6,FALSE))) -> 0 | D135: =IF(ISERROR(VLOOKUP($A135,'A&V_W.Dienste'!$A:$J,7,FALSE)),"",(VLOOKUP($A135,'A&V_W.Dienste'!$A:$J,7,FALSE))) -> 0 | E135: =IF(ISERROR(VLOOKUP($A135,'A&V_W.Dienste'!$A:$J,8,FALSE)),"",(VLOOKUP($A135,'A&V_W.Dienste'!$A:$J,8,FALSE))) -> 0 | F135: =IF(ISERROR(VLOOKUP($A135,'A&V_W.Dienste'!$A:$J,9,FALSE)),"",(VLOOKUP($A135,'A&V_W.Dienste'!$A:$J,9,FALSE))) -> 0 | G135: =IF(ISERROR(VLOOKUP($A135,'A&V_W.Dienste'!$A:$J,10,FALSE)),"",(VLOOKUP($A135,'A&V_W.Dienste'!$A:$J,10,FALSE))) -> 0
C136: a
C137: a
B145: Summe Zeitbedarf Aufgaben- und Verantwortungsbereich für alle Mitarbeitenden | F145: =+'A&V_Verk.&GD'!I197+'A&V_Diak.&Seels.'!I440+'A&V_Bild.&Spirit.'!I322+'A&V_Aufb.&Leit.'!I328+'A&V_W.Dienste'!I157 -> 0

Sheet Grafik Gesamtpensum
A1: Grafische Darstellung Gesamtpensum
A5: Arbeitsbereich | B5: ='A&V_Verk.&GD'!I17 -> Summe Zeitbedarf in AT | C5: %-Anteil
A7: Gottesdienst / Kasualien | B7: ='A&V_Verk.&GD'!I18 -> 0 | C7: =IF($B$16=0,0,B7/$B$16) -> 0
A8: Seelsorge | B8: ='A&V_Diak.&Seels.'!I18 -> 0 | C8: 0
A9: Diakonie | B9: ='A&V_Diak.&Seels.'!I160 -> 0 | C9: 0
A10: Seniorenarbeit | B10: ='A&V_Diak.&Seels.'!I291 -> 0 | C10: 0
A11: Konfirmandenarbeit und rpg | B11: ='A&V_Bild.&Spirit.'!I18 -> 0 | C11: 0
A12: Erwachsenenbildung | B12: ='A&V_Bild.&Spirit.'!I184 -> 0 | C12: 0
A13: Gemeindeleitung | B13: ='A&V_Aufb.&Leit.'!I18 -> 0 | C13: 0
A14: Gemeindeaufbau | B14: ='A&V_Aufb.&Leit.'!I179 -> 0 | C14: 0
A15: Weitere Dienste | B15: ='A&V_W.Dienste'!I18 -> 0 | C15: 0
A16: Summe | B16: =SUM(B7:B15) -> 0 | C16: =SUM(C7:C15) -> 0

Sheet Gesetzestexte (hidden)
B1: Gesetzestexte und Erläuterungen
B3: Auszug aus der Kirchenordnung (KO, LS 181.10)
B5: tbu Hier folgen die relevanten Gesetzestexte
B7: Auszug aus der Kirchenordnung (KO, LS 181.10)
B8: § 15 1 Die Landeskirche arbeitet mit der Theologischen Fakultät der Universität Zürich zusammen, namentlich bei der Aus- und Weiterbildung von Theologinnen und Theologen sowie zur Bearbei-tung wissenschaftlich-theologischer Fragestellungen. 2 Der Kirchenrat nimmt zu Berufungsanträgen der Theologischen Fakultät Stellung. 3 Die Theologische Fakultät ist eingeladen, eine Vertretung in die Kirchensynode abzuordnen 3 Der Kirchenrat regelt in der Vollzugsverordnung die Berechnung des Ferienanspruchs und den Bezug der Ferien.
B10: Pfarramtliche Aufgaben gemäss Art. 112 und 113 der Kirchenordnung werden in der Kirchgemeinde wahrgenommen. Über Ausnahmen entscheidet die Kirchenpflege. Der Pfarrkonvent organisiert die Aufgaben- und Verantwortungsbereiche in Bezug auf die einzelnen Pfarrstellen und Pfarrpersonen. Er berücksichtigt dabei insbesondere die durch die Kirchenpflege festgelegte strategische Ausrichtung der Kirchgemeinde sowie von der Kirchenpflege erteilte Kommissions- oder Teamaufträge
B13: § 115 1 In Kirchgemeinden mit einem Pfarrkonvent erarbeitet dieser innert sechs Monaten seit der letzten Wahl gemäss Art. 125 eine Pfarrdienstordnung und legt sie der Kirchenpflege zur Genehmigung vor. 2 Die Pfarrdienstordnung bezweckt insbesondere, die Arbeit der Pfarrerinnen und Pfarrer unter Wahrung des Gesamtzusammenhanges der Gemeinde unter diesen aufzuteilen.
B15: § 29 1 Die Landeskirche nimmt ihren Auftrag wahr durch die Verkündigung des Evangeliums in Wort und Tat in den vier Handlungsfeldern Verkündigung und Gottesdienst, Diakonie und Seelsorge, Bildung und Spiritualität sowie Gemeindeaufbau und Leitung.
B17: § 150 1 Die Kirchenpflege, die Pfarrerinnen und Pfarrer sowie die Angestellten sind in gemeinsamer Verantwortung zum Aufbau der Gemeinde gerufen. 2 Die Kirchenpflege nimmt ihre Aufgaben im Rahmen der behördlichen Verantwortung gemäss Kirchenordnung und kantonalem Recht wahr. 3 Die Pfarrerinnen und Pfarrer sowie die Angestellten erfüllen ihre Aufgaben je in ihrem besonderen Dienst gemäss der Kirchenordnung, den Vorgaben der Kirchenpflege und den besonderen Gegebenheiten der Kirchgemeinde.
B23: Art. 115 1 In Kirchgemeinden mit einem Pfarrkonvent erarbeitet dieser innert sechs Monaten seit der letzten Wahl gemäss Art. 125 eine Pfarrdienstordnung und legt sie der Kirchenpflege zur Genehmigung vor. 2 Die Pfarrdienstordnung bezweckt insbesondere, die Arbeit der Pfarrerinnen und Pfarrer unter Wahrung des Gesamtzusammenhanges der Gemeinde unter diesen aufzuteilen. KO Art. 29 1 Die Landeskirche nimmt ihren Auftrag wahr durch die Verkündigung des Evangeliums in Wort und Tat in den vier Handlungsfeldern Verkündigung und Gottesdienst, Diakonie und Seelsorge, Bildung und Spiritualität sowie Gemeindeaufbau und Leitung. KO Art. 150 1 Die Kirchenpflege, die Pfarrerinnen und Pfarrer sowie die Angestellten sind in gemeinsamer Verantwortung zum Aufbau der Gemeinde gerufen. 2 Die Kirchenpflege nimmt ihre Aufgaben im Rahmen der behördlichen Verantwortung gemäss Kirchenordnung und kantonalem Recht wahr. 3 Die Pfarrerinnen und Pfarrer sowie die Angestellten erfüllen ihre Aufgaben je in ihrem besonderen Dienst gemäss der Kirchenordnung, den Vorgaben der Kirchenpflege und den besonderen Gegebenheiten der Kirchgemeinde. KO Art. 162 Abs. 1 unverändert. Konstituierung 2 An den Sitzungen der Kirchenpflege nehmen mit beratender Stimme und Antragsrecht teil: a. in einer Kirchgemeinde ohne Pfarrkonvent die Pfarrerin oder der Pfarrer, b. in einer Kirchgemeinde mit einem Pfarrkonvent die oder der Vor- sitzende und die weitere Vertretung des Pfarrkonventes gemäss Art. 114 Abs. 3 lit. b sowie weitere Pfarrerinnen und Pfarrer auf Einladung der Kirchenpflege, KO Art. 114 1 Sind im Pfarramt einer Kirchgemeinde mehrere Pfarrerinnen und Pfarrer tätig, so bilden sie den Pfarrkonvent. 2 Der Pfarrkonvent verantwortet den Aufbau der Gemeinde in theologischer Hinsicht. Er ist Ort der Aussprache, des Austausches und der Koordination. Auszug aus dem Leitfaden Organisationsmodelle: Teams erhalten von der Kirchenpflege ihre spezifische Aufgaben und personelle Teambesetzungen – zeitlich befristet oder unbefristet – zugewiesen. Eine solche Teamaufgabe kann erfüllt werden an einem bestimmten kirchlichen Ort (z.B. im Quartier x, im Kirchgemeindehaus y) und /oder in einer bestimmten kirchlichen Form (z.B. als Familienkirche, als mobiles Kirchencafé). Der Teamauftrag kann einen lebensräumlichen (Erfüllung des kirchlichen Auftrages für die Menschen in den Dörfern A und B, kirchliche Bildungsarbeit im südlichen Bezirksteil) und/oder einen lebensweltlichen (Taizé-Feiern, Streetchurch) Schwerpunkt besitzen. Ort/Form und lebensräumliche / lebensweltliche Ausrichtung können kombiniert werden und sind im Auftrag für ein Team schriftlich festzuhalten. Teams mit ihren Aufträgen sind damit entscheidende Elemente des Gemeindeaufbaus. Sie bilden das operative Gegenstück zur strategischen Leitung der Kirchgemeinde, welche die Kirchenpflege wahrnimmt, unterstützt durch Gemeindekonvent und Pfarrkonvent. Auszug aus dem Leitfaden Organisationsmodelle: Kommissionen erhalten von der Kirchenpflege Aufträge, die sie mit den ihnen von der Kirchenpflege zugewiesenen Teams selbstständig erledigen. Die Kirchenpflege kann die delegierten Aufgaben offener oder detaillierter definieren und dadurch den Kommissionen mehr oder weniger Handlungsautonomie und Entscheidungsbefugnisse gewähren. Wenig Handlungsautonomie bedeutet: Die Kommission führt mit ihrem Team einen detaillierten Auftrag aus, den ihr die Kirchenpflege vorgibt. Eine grosse Handlungsautonomie bedeutet: Der Auftrag der Kommission ist offen formuliert. Er hat die Form eines Leistungsauftrags, der es der Kommission freistellt, wie sie mit ihrem Team die Leistungen erbringt. Dazu steht der Kommission ein Globalbudget zur Verfügung, das sie eigenverantwortlich zur Erreichung der Ziele einsetzen kann. Auszug aus dem Leitfaden Organisationsmodelle: Mit «lebensRÄUMLICHEROrientierung»werden kirchliche Orte und Formen bezeichnet, die territorial gefasst sind, d.h. die innerhalb der Fläche eines bestimmten Gebietes Kirche gestalten. Die Kirchenpflege entscheidet, ob sie die interdisziplinären Teams dieses lebensräumlichen Bereiches nach Themen/Ressorts ausrichtet oder entlang von geographischen Orten und Quartieren. Mit «lebensWELTLICHER Orientierung»werden kirchliche Orte und Formen bezeichnet, die eine bestimmte Zielgruppe, ein bestimmtes Milieu ansprechen. Diese Orte und Formen zeichnen sich oft aus durch einen hohen Grad von Beteiligung und Mitgestaltung der Teilnehmenden. Sie sind zwar in einer Kirchgemeinde angesiedelt, entwickeln aber regionale oder überregionale Ausstrahlungskraft. Zusammen bilden die beiden «Typen» von kirchlichen Orten und Formen eine mixed economy – ein sich gegenseitig befruchtendes Geflecht von verschiedenartigen kirchlichen Orten und Formen innerhalb einer Kirchgemeinde. Alle diese kirchlichen Orte und Formen werden durch Teams und Kommissionen verantwortet und gestaltet. Siehe oben, allenfalls hier einfügen. KO Art. 150 1 Die Kirchenpflege, die Pfarrerinnen und Pfarrer sowie die Angestellten sind in gemeinsamer Verantwortung zum Aufbau der Gemeinde gerufen. 2 Die Kirchenpflege nimmt ihre Aufgaben im Rahmen der behördlichen Verantwortung gemäss Kirchenordnung und kantonalem Recht wahr. 3 Die Pfarrerinnen und Pfarrer sowie die Angestellten erfüllen ihre Aufgaben je in ihrem besonderen Dienst gemäss der Kirchenordnung, den Vorgaben der Kirchenpflege und den besonderen Gegebenheiten der Kirchgemeinde. KO Art. 150, s.o. PVO § 91. 1 Die Tätigkeit im Pfarramt kennzeichnet sich als umfassen- den Dienst im Rahmen der Landeskirche. 2 Der Kirchenrat regelt die zeitliche Beanspruchung der Pfarrerin- nen und Pfarrer in der Vollzugsverordnung. VVO PVO § 131. 1 Die zeitliche Beanspruchung der in einer Kirchgemeinde tätigen Pfarrerinnen und Pfarrer richtet sich nach den Erfordernissen des Pfarramtes als umfassender Dienst im Rahmen der Landeskirche und nach den Aufgaben gemäss Art. 113 der Kirchenordnung. 2 Die zeitliche Beanspruchung orientiert sich an einer 5½-Tage- Woche. 3 In einer Kirchgemeinde tätige Pfarrerinnen und Pfarrer sind im Rahmen der Erfordernisse des Pfarramtes und der Aufgaben gemäss Art. 113 der Kirchenordnung in der Einteilung ihrer Arbeitszeit frei. Sie legen ihre Freitage in Absprache mit der Kirchenpflege fest. 4 Der Kirchenrat kann in einer Kirchgemeinde tätige Pfarrerinnen und Pfarrer verpflichten, auf Vertrauensbasis eine persönliche Zeit- buchhaltung zu führen.
